Workbook

Sheet CV195B-dresser (2)
G2: Job nbr : | H2: C1243 | J2: Document number
G3: Name : | H3: JT60SA | J3: C1243-SP-452 A1(4)
J5: Reference
C6: Valves Datasheet | E6: WARM VALVES | J6: =[4]!nom_p() -> CV195B-dresser (2)
L7: =[4]!Collar_From_DN(J7,"V") -> 60
L8: =[4]!Collar_From_DN(J8,"V") -> 250
B9: PROJECT | L9: =[4]!Collar_From_DN(J9,"V") -> 60
C10: Tag Number | E10: =J6 -> CV195B-dresser (2) | H10: PID Number | L10: =[4]!Collar_From_DN(J10,"V") -> 60 | N10: =[4]!vlookup_colonne(J6,"_table_main","col_description") -> 
C11: Valve Description | E11: =[4]!vlookup_colonne(J6,"_table_main","col_description") ->  | L11: =[4]!Collar_From_DN(J11,"V") -> 60
C12: Equipement / Line | L12: =[4]!Collar_From_DN(J12,"V") -> 60
C13: Remarks for the design : | E13: =[4]!vlookup_colonne(J6,"_table_main","col_type") ->  | L13: =[4]!Collar_From_DN(J13,"V") -> 60
L14: =[4]!Collar_From_DN(J14,"V") -> 60
B15: PROCESS | L15: =[4]!Collar_From_DN(J15,"V") -> 60
C16: Case | H16: Minimum flow | I16: Minimum Flow | J16: Max Flow | K16: Max Flow | L16: =[4]!Collar_From_DN(J16,"V") -> 250 | N16: =J26+#REF! -> 
L17: =[4]!Collar_From_DN(J17,"V") -> 60
C18: Fluid Composition | H18: Helium | I18: Helium | J18: Helium | K18: Helium | L18: =[4]!Collar_From_DN(J18,"V") -> 250
C19: Number | H19: 10 | I19: 10 | J19: 10 | K19: 10 | L19: =[4]!Collar_From_DN(J19,"V") -> 60
C20: Inlet Fluid | L20: =[4]!Collar_From_DN(J20,"V") -> 60
C21: Outlet Fluid | L21: =[4]!Collar_From_DN(J21,"V") -> 60
H22: =[4]!Flow_Test(H19,H31,H32,H27,H36,$K$60) -> Chocked Flow | I22: =[4]!Flow_Test(I19,I31,I32,I27,I36,$K$60) -> Chocked Flow | J22: =[4]!Flow_Test(J19,J31,J32,J27,J36,$K$60) -> Chocked Flow | K22: =[4]!Flow_Test(K19,K31,K32,K27,K36,$K$60) -> Chocked Flow | L22: =[4]!Collar_From_DN(J22,"V") -> 250
G23: g/s | H23: =IF($G$26="Nm3/h",44.6153*H26*H48/3600,H26) -> 600 | I23: =IF($G$26="Nm3/h",44.6153*I26*I48/3600,I26) -> 30 | J23: =IF($G$26="Nm3/h",44.6153*J26*J48/3600,J26) -> 50 | K23: =IF($G$26="Nm3/h",44.6153*K26*K48/3600,K26) -> 70 | L23: =[4]!Collar_From_DN(J23,"V") -> 120
G24: Nm3/h | H24: =IF($G$26="g/s",H26*3.6/H41,H26) -> 12104.65228 | I24: =IF($G$26="g/s",I26*3.6/I41,I26) -> 605.2326139 | J24: =IF($G$26="g/s",J26*3.6/J41,J26) -> 1008.721023 | K24: =IF($G$26="g/s",K26*3.6/K41,K26) -> 1412.209432 | L24: =[4]!Collar_From_DN(J24,"V") -> 250
G25: m3/h | H25: =H23*3.6/H39 -> 659.9328616 | I25: =I23*3.6/I39 -> 43.21199991 | J25: =J23*3.6/J39 -> 72.01999984 | K25: =K23*3.6/K39 -> 100.8279998 | L25: =[4]!Collar_From_DN(J25,"V") -> 160
C26: Flowrate | G26: g/s | H26: 600 | I26: 30 | J26: 50 | K26: 70 | L26: =[4]!Collar_From_DN(J26,"V") -> 120 | M26: =[4]!ESTFORMULE(H26) -> FALSE | N26: =[4]!ESTFORMULE(I26) -> FALSE | O26: =[4]!ESTFORMULE(J26) -> FALSE | P26: =[4]!ESTFORMULE(K26) -> FALSE
G27: K | H27: =IF($G$29="K",H29,273.15+H29) -> 306 | I27: =IF($G$29="K",I29,273.15+I29) -> 306 | J27: 306 | K27: 306 | L27: =[4]!Collar_From_DN(J27,"V") -> 250
G28: °C | H28: =IF($G$29="K",H29-273.15,H29) -> 32.85 | I28: =IF($G$29="K",I29-273.15,I29) -> 32.85 | J28: 32.85 | K28: 32.85 | L28: =[4]!Collar_From_DN(J28,"V") -> 80
C29: Inlet Temperature | G29: K | H29: =273.15+32.85 -> 306 | I29: 306 | J29: 306 | K29: 306 | L29: =[4]!Collar_From_DN(J29,"V") -> 250 | M29: =[4]!ESTFORMULE(H29) -> TRUE | N29: =[4]!ESTFORMULE(I29) -> FALSE | O29: =[4]!ESTFORMULE(J29) -> FALSE | P29: =[4]!ESTFORMULE(K29) -> FALSE
C30: Outlet Temperature | G30: K | H30: =[4]!Tout(H19,H31,H32,H29) -> 307.2299931 | I30: =[4]!Tout(I19,I31,I32,I29) -> 306.9193698 | J30: =[4]!Tout(J19,J31,J32,J29) -> 306.9193698 | K30: =[4]!Tout(K19,K31,K32,K29) -> 306.9193698 | L30: =[4]!Collar_From_DN(J30,"V") -> 250
C31: Pressure | E31: Inlet | F31: Pin | G31: bar abs | H31: 21 | I31: 16 | J31: 16 | K31: 16 | L31: =[4]!Collar_From_DN(J31,"V") -> 60 | M31: =[4]!ESTFORMULE(H31) -> FALSE | N31: =[4]!ESTFORMULE(I31) -> FALSE | O31: =[4]!ESTFORMULE(J31) -> FALSE | P31: =[4]!ESTFORMULE(K31) -> FALSE
E32: Outlet | F32: Pout | G32: bar abs | H32: 1.2 | I32: 1.2 | J32: 1.2 | K32: 1.2 | L32: =[4]!Collar_From_DN(J32,"V") -> 60 | M32: =[4]!ESTFORMULE(H32) -> FALSE | N32: =[4]!ESTFORMULE(I32) -> FALSE | O32: =[4]!ESTFORMULE(J32) -> FALSE | P32: =[4]!ESTFORMULE(K32) -> FALSE
C33: Differential Pressure | F33: DP | G33: bar | H33: =H31-H32 -> 19.8 | I33: =I31-I32 -> 14.8 | J33: =J31-J32 -> 14.8 | K33: =K31-K32 -> 14.8 | L33: =[4]!Collar_From_DN(J33,"V") -> 60 | M33: =[4]!ESTFORMULE(H33) -> TRUE | N33: =[4]!ESTFORMULE(I33) -> TRUE | O33: =[4]!ESTFORMULE(J33) -> TRUE | P33: =[4]!ESTFORMULE(K33) -> TRUE
C34: Maximum Effective Differential Pressure | F34: DP | G34: bar | H34: =[4]!dp_max(H19,H23*H36,H31,H32,H27,$K$60) -> 17.01 | I34: =[4]!dp_max(I19,I23*I36,I31,I32,I27,$K$60) -> 12.96 | J34: =[4]!dp_max(J19,J23*J36,J31,J32,J27,$K$60) -> 12.96 | K34: =[4]!dp_max(K19,K23*K36,K31,K32,K27,$K$60) -> 12.96 | L34: =[4]!Collar_From_DN(J34,"V") -> 60
C35: Phase State | E35: Inlet | H35: =+[4]!PhaseState(H36) -> Gas | I35: =+[4]!PhaseState(I36) -> Gas | J35: =+[4]!PhaseState(J36) -> Gas | K35: =+[4]!PhaseState(K36) -> Gas | L35: =[4]!Collar_From_DN(J35,"V") -> 250
C36: Vapour Fraction | E36: Inlet | G36: % | H36: =+[4]!VapourFraction_in(H19,H31,H32,H27) -> 1 | I36: =+[4]!VapourFraction_in(I19,I31,I32,I27) -> 1 | J36: =+[4]!VapourFraction_in(J19,J31,J32,J27) -> 1 | K36: =+[4]!VapourFraction_in(K19,K31,K32,K27) -> 1 | L36: =[4]!Collar_From_DN(J36,"V") -> 60
C37: Phase State | E37: Outlet | H37: =+[4]!PhaseState(H38) -> Gas | I37: =+[4]!PhaseState(I38) -> Gas | J37: =+[4]!PhaseState(J38) -> Gas | K37: =+[4]!PhaseState(K38) -> Gas | L37: =[4]!Collar_From_DN(J37,"V") -> 250
C38: Vapour Fraction | E38: Outlet | G38: % | H38: =+[4]!VapourFraction_out(H19,H31,H32,H27,H36) -> 1 | I38: =+[4]!VapourFraction_out(I19,I31,I32,I27,I36) -> 1 | J38: =+[4]!VapourFraction_out(J19,J31,J32,J27,J36) -> 1 | K38: =+[4]!VapourFraction_out(K19,K31,K32,K27,K36) -> 1 | L38: =[4]!Collar_From_DN(J38,"V") -> 60
C39: Fluid density | E39: Inlet | G39: kg/m3 | H39: =[4]!densite(H19,H31,H27,H23,H36) -> 3.273060224 | I39: =[4]!densite(I19,I31,I27,I23,I36) -> 2.499305754 | J39: =[4]!densite(J19,J31,J27,J23,J36) -> 2.499305754 | K39: =[4]!densite(K19,K31,K27,K23,K36) -> 2.499305754 | L39: =[4]!Collar_From_DN(J39,"V") -> 60 | O39: =378/3600 -> 0.105
C40: Fluid density | E40: Outlet | G40: kg/m3 | H40: =[4]!densite_out(H19,H31,H32,H29,H36) -> 0.1879327973 | I40: =[4]!densite_out(I19,I31,I32,I29,I36) -> 0.1881228827 | J40: =[4]!densite_out(J19,J31,J32,J29,J36) -> 0.1881228827 | K40: =[4]!densite_out(K19,K31,K32,K29,K36) -> 0.1881228827 | L40: =[4]!Collar_From_DN(J40,"V") -> 60 | M40: =[4]!g_(11,J31,H29) -> 1.406772879
C41: Normal fluid density | G41: kg/Nm3 | H41: =[4]!densite(H19,1.013,273.15,H23,0) -> 0.1784437876 | I41: =[4]!densite(I19,1.013,273.15,I23,0) -> 0.1784437876 | J41: =[4]!densite(J19,1.013,273.15,J23,0) -> 0.1784437876 | K41: =[4]!densite(K19,1.013,273.15,K23,0) -> 0.1784437876 | L41: =[4]!Collar_From_DN(J41,"V") -> 60
C42: Compressibility z (gas phase) | H42: =IF(AND(H36>0,H36<1),[4]!Z_(H19,H31,H44+0.01),[4]!Z_(H19,H31,H27)) -> 1.009388356 | I42: =IF(AND(I36>0,I36<1),[4]!Z_(I19,I31,I44+0.01),[4]!Z_(I19,I31,I27)) -> 1.007148685 | J42: =IF(AND(J36>0,J36<1),[4]!Z_(J19,J31,J44+0.01),[4]!Z_(J19,J31,J27)) -> 1.007148685 | K42: =IF(AND(K36>0,K36<1),[4]!Z_(K19,K31,K44+0.01),[4]!Z_(K19,K31,K27)) -> 1.007148685 | L42: =[4]!Collar_From_DN(J42,"V") -> 60
C43: Saturation Pression | E43: Inlet | G43: bar abs | H43: =[4]!P_saturation(H19,H27) -> 0 | I43: =[4]!P_saturation(I19,I27) -> 0 | J43: =[4]!P_saturation(J19,J27) -> 0 | K43: =[4]!P_saturation(K19,K27) -> 0 | L43: =[4]!Collar_From_DN(J43,"V") -> 60
C44: Saturation Temperature | E44: Inlet | G44: K | H44: =[4]!T_saturation(H19,H31) -> 0 | I44: =[4]!T_saturation(I19,I31) -> 0 | J44: =[4]!T_saturation(J19,J31) -> 0 | K44: =[4]!T_saturation(K19,K31) -> 0 | L44: =[4]!Collar_From_DN(J44,"V") -> 60
C45: Saturation Temperature | E45: Outlet | G45: K | H45: =[4]!T_saturation(H19,H32) -> 4.406842338 | I45: =[4]!T_saturation(I19,I32) -> 4.406842338 | J45: =[4]!T_saturation(J19,J32) -> 4.406842338 | K45: =[4]!T_saturation(K19,K32) -> 4.406842338 | L45: =[4]!Collar_From_DN(J45,"V") -> 60
C46: Critical Pressure | G46: bar abs | H46: =[4]!Pc_(H19) -> 2.275 | I46: =[4]!Pc_(I19) -> 2.275 | J46: =[4]!Pc_(J19) -> 2.275 | K46: =[4]!Pc_(K19) -> 2.275 | L46: =[4]!Collar_From_DN(J46,"V") -> 60
C47: Critical Temperature | G47: K | H47: =[4]!Tc_(H19) -> 5.1953 | I47: =[4]!Tc_(I19) -> 5.1953 | J47: =[4]!Tc_(J19) -> 5.1953 | K47: =[4]!Tc_(K19) -> 5.1953 | L47: =[4]!Collar_From_DN(J47,"V") -> 60
C48: Molar Mass | H48: =[4]!M_(H19) -> 4.0026 | I48: =[4]!M_(I19) -> 4.0026 | J48: =[4]!M_(J19) -> 4.0026 | K48: =[4]!M_(K19) -> 4.0026 | L48: =[4]!Collar_From_DN(J48,"V") -> 60
L49: =[4]!Collar_From_DN(J49,"V") -> 60
C50: Gravity /Air | E50: Inlet | F50: dg | H50: =[4]!FConstant(H19,12)/28.959*H42 ->  | I50: =[4]!FConstant(I19,12)/28.959*I42 ->  | J50: =[4]!FConstant(J19,12)/28.959*J42 ->  | K50: =[4]!FConstant(K19,12)/28.959*K42 ->  | L50: =[4]!Collar_From_DN(J50,"V") -> 
C51: Gravity /Water | E51: Inlet | F51: dg | H51: =H39/1000 -> 0.003273060224 | I51: =I39/1000 -> 0.002499305754 | J51: =J39/1000 -> 0.002499305754 | K51: =K39/1000 -> 0.002499305754 | L51: =[4]!Collar_From_DN(J51,"V") -> 60
L52: =[4]!Collar_From_DN(J52,"V") -> 60
C53: Gaseous Cv (considering 100% gas flow) | G53: Usgpm PSI | H53: =[4]!cv_gaz(H19,H23*H36,H31,H32,H27,$K$60) -> 17.45869269 | I53: =[4]!cv_gaz(I19,I23*I36,I31,I32,I27,$K$60) -> 1.144454905 | J53: =[4]!cv_gaz(J19,J23*J36,J31,J32,J27,$K$60) -> 1.907424841 | K53: =[4]!cv_gaz(K19,K23*K36,K31,K32,K27,$K$60) -> 2.670394777 | L53: =[4]!Collar_From_DN(J53,"V") -> 60
C54: Liquid Cv (considering 100% liquid flow) | G54: Usgpm PSI | H54: =[4]!CvLiq(H19,H23*(1-H36),H31,H32,H27,H36,$K$60) -> 0 | I54: =[4]!CvLiq(I19,I23*(1-I36),I31,I32,I27,I36,$K$60) -> 0 | J54: =[4]!CvLiq(J19,J23*(1-J36),J31,J32,J27,J36,$K$60) -> 0 | K54: =[4]!CvLiq(K19,K23*(1-K36),K31,K32,K27,K36,$K$60) -> 0 | L54: =[4]!Collar_From_DN(J54,"V") -> 60
C55: Estimated Cv | G55: Usgpm PSI | H55: =H53+H54 -> 17.45869269 | I55: =I53+I54 -> 1.144454905 | J55: =J53+J54 -> 1.907424841 | K55: =K53+K54 -> 2.670394777 | L55: =[4]!Collar_From_DN(J55,"V") -> 60
C56: Estimated Kv | G56: m3/h bar | H56: =H55*0.864978 -> 15.10138509 | I56: =I55*0.864978 -> 0.9899283145 | J56: =J55*0.864978 -> 1.649880524 | K56: =K55*0.864978 -> 2.309832734 | L56: =[4]!Collar_From_DN(J56,"V") -> 60
L57: =[4]!Collar_From_DN(J57,"V") -> 60
G58: %Cv | H58: =P68 -> 1.033058739 | I58: =Q68 -> 0.06771922512 | J58: 0.1128653752 | K58: 0.1580115253 | O58: Estimation
G59: %Trim | H59: =P69 -> 1.007062508 | I59: 0.41535599 | J59: 0.5262803648 | K59: 0.5993443827 | P59: =H16 -> Minimum flow | Q59: =I16 -> Minimum Flow | R59: =J16 -> Max Flow | S59: =K16 -> Max Flow | U59: DN | V59: 40 | W59: CVs
G60: Cvs | H60: =P70 -> 16.9 | I60: 100 | J60: XT | K60: 0.67 | O60: Cv | P60: =H55 -> 17.45869269 | Q60: =I55 -> 1.144454905 | R60: =J55 -> 1.907424841 | S60: =K55 -> 2.670394777 | U60: Supplier | V60: V | W60: =[4]!Cv_From_DN($V$59,V60) -> 40
O61: %Cv | P61: =[4]!Cv_From_Trim(P62,I60) -> 0.2511886432 | Q61: =Q60/P63 -> 0.01646595651 | R61: =R60/P63 -> 0.02744326085 | S61: =S60/P63 -> 0.03842056519 | U61: Supplier | V61: W | W61: =[4]!Cv_From_DN($V$59,V61) -> 52
H62: Inlet | I62: 1" | J62: =VLOOKUP(I62,INDIRECT(VLOOKUP($E$83,Table_Piping_Class,7,FALSE)),4,FALSE) -> 27.86 | K62: Seat | L62: =[4]!Collar_From_DN(#REF!,"V") ->  | M62: =4/1000*H26/(PI()*(25/2000)^2*H40)/[4]!Sound_speed(11,H32,H30) -> 19.48398968 | O62: % OPEN | P62: 0.7 | Q62: =[4]!Trim_From_Cv(Q61,$I$60) -> 0.108293482 | R62: =[4]!Trim_From_Cv(R61,$I$60) -> 0.2192178568 | S62: =[4]!Trim_From_Cv(S61,$I$60) -> 0.2922818747 | U62: Supplier | V62: F | W62: =[4]!Cv_From_DN($V$59,V62) -> 46.8
H63: Valve | I63: 1" | J63: =VLOOKUP(I63,INDIRECT(VLOOKUP($E$83,Table_Piping_Class,7,FALSE)),4,FALSE) -> 27.86 | L63: =[4]!Collar_From_DN(#REF!,"V") ->  | M63: =[4]!Sound_speed(11,H32,H30) -> 1335.244735 | O63: Cvmax | P63: =IF(I60="Linear",MAX(H55:K55),P60/P61) -> 69.50430749
H64: outlet | I64: 4" | J64: =VLOOKUP(I64,INDIRECT(VLOOKUP($E$83,Table_Piping_Class,7,FALSE)),4,FALSE) -> 108.2 | L64: =[4]!Collar_From_DN(#REF!,"V") ->  | M64: =M62/M63 -> 0.01459207378
L65: =[4]!Collar_From_DN(I64,"V") -> 250 | O65: Vérification du % d'ouverture pour un Cv Donné
G66: Inlet piping | H66: =[4]!speed_and_mach(H19,H31,H29,H39,H26,$J$62) -> 301 m/s ; 0.29 | I66: =[4]!speed_and_mach(I19,I31,I29,I39,I26,$J$62) -> 20 m/s ; 0.02 | J66: =[4]!speed_and_mach(J19,J31,J29,J39,J26,$J$62) -> 33 m/s ; 0.03 | K66: =[4]!speed_and_mach(K19,K31,K29,K39,K26,$J$62) -> 46 m/s ; 0.04 | L66: =[4]!Collar_From_DN(#REF!,"V") ->  | P66: =P59 -> Minimum flow | Q66: Minimum Flow | R66: Max Flow | S66: Max Flow | V66: Inch. | W66: DN
G67: valve seat | H67: =[4]!Speed_valve(H24,H29,H31,25,H19) -> 0.3343551136 | I67: =[4]!Speed_valve(I24,I29,I31,25,I19) -> 0.02198712631 | J67: =[4]!Speed_valve(J24,J29,J31,25,J19) -> 0.03664521052 | K67: =[4]!Speed_valve(K24,K29,K31,25,K19) -> 0.05130329473 | L67: =[4]!Collar_From_DN(#REF!,"V") ->  | O67: Cv | P67: 17.45869269 | Q67: 1.144454905 | R67: 1.907424841 | S67: 2.670394777 | U67: V | V67: =VLOOKUP(W67,table_DN_to_inch,3,FALSE) -> 1" | W67: =[4]!DN_From_Cv($P$70,U67) -> 25
G68: valve outlet | H68: =[4]!speed_and_mach(H19,H32,H30,H39,H26,$J$63) -> 301 m/s ; 0.29 | I68: =[4]!speed_and_mach(I19,I32,I30,I39,I26,$J$63) -> 20 m/s ; 0.02 | J68: =[4]!speed_and_mach(J19,J32,J30,J39,J26,$J$63) -> 33 m/s ; 0.03 | K68: =[4]!speed_and_mach(K19,K32,K30,K39,K26,$J$63) -> 46 m/s ; 0.04 | L68: =[4]!Collar_From_DN(J70,"V") -> 250 | O68: %Cv | P68: =P67/P70 -> 1.033058739 | Q68: =Q67/P70 -> 0.06771922512 | R68: =R67/P70 -> 0.1128653752 | S68: =S67/P70 -> 0.1580115253 | U68: W | V68: =VLOOKUP(W68,table_DN_to_inch,3,FALSE) -> 1" | W68: =[4]!DN_From_Cv($P$70,U68) -> 25
G69: piping outlet | H69: =[4]!speed_and_mach(H19,H32,H30,H40,H26,$J$64) -> 347 m/s ; 0.34 | I69: =[4]!speed_and_mach(I19,I32,I30,I40,I26,$J$64) -> 17 m/s ; 0.02 | J69: =[4]!speed_and_mach(J19,J32,J30,J40,J26,$J$64) -> 29 m/s ; 0.03 | K69: =[4]!speed_and_mach(K19,K32,K30,K40,K26,$J$64) -> 40 m/s ; 0.04 | L69: =[4]!Collar_From_DN(#REF!,"V") ->  | O69: % OPEN | P69: =[4]!Trim_From_Cv(P68,$I$60) -> 1.007062508 | Q69: =[4]!Trim_From_Cv(Q68,$I$60) -> 0.41535599 | R69: =[4]!Trim_From_Cv(R68,$I$60) -> 0.5262803648 | S69: =[4]!Trim_From_Cv(S68,$I$60) -> 0.5993443827 | U69: F | V69: =VLOOKUP(W69,table_DN_to_inch,3,FALSE) -> 1" | W69: =[4]!DN_From_Cv($P$70,U69) -> 25
G70: Tvc | H70: =[4]!T_vc(H19,H31,H32,H30,$K$60) -> 230.6336314 | I70: =[4]!T_vc(I19,I31,I32,I30,$K$60) -> 230.351031 | J70: =[4]!T_vc(J19,J31,J32,J30,$K$60) -> 230.351031 | K70: =[4]!T_vc(K19,K31,K32,K30,$K$60) -> 230.351031 | L70: =[4]!Collar_From_DN(#REF!,"V") ->  | O70: Cvmax | P70: 16.9
L71: =[4]!Collar_From_DN(J71,"V") -> 60
L72: =[4]!Collar_From_DN(#REF!,"V") -> 
B73: DESIGN SPECIFICATION | C73: 1. Design | G73: 5. Actuator | L73: =[4]!Collar_From_DN(#REF!,"V") ->  | O73: % Supplier | P73: =[4]!bary_(P68,1,$Y$88,$X$89:$X$99,$Y$89:$Y$99) -> 3.443529131 | Q73: =[4]!bary_(Q68,1,$Y$88,$X$89:$X$99,$Y$89:$Y$99) -> 0.3027458047 | R73: =[4]!bary_(R68,1,$Y$88,$X$89:$X$99,$Y$89:$Y$99) -> 0.4127546625 | S73: =[4]!bary_(S68,1,$Y$88,$X$89:$X$99,$Y$89:$Y$99) -> 0.4859646356
C74: Regulation | E74: Refrigeration Ordinance | G74: Actuator type | J74: Single Effect | L74: =[4]!Collar_From_DN(#REF!,"V") -> 
C75: Construction Code | E75: ASME | G75: Shut-Off Pressure (Mpa) | J75: =[4]!vlookup_colonne(J6,"_table_main","col_shutoff_DP") ->  | L75: =[4]!Collar_From_DN(#REF!,"V") -> 
C76: Design Pressure | E76: 1 | G76: Power supply | J76: NA | L76: =[4]!Collar_From_DN(#REF!,"V") -> 
C77: Design Temperature (min / max) | E77: 273 | F77: 400 | G77: Failure position (FO/FC) | J77: =[4]!vlookup_colonne(J6,"_table_main","col_FO_FC") ->  | L77: =[4]!Collar_From_DN(#REF!,"V") -> 
C78: Equipment Conditions (location / temp.) | E78: Inside | F78: 10°C/+40°C | G78: Medium and pressure min. | J78: air @ 5-7barg (-40°C) | L78: =[4]!Collar_From_DN(#REF!,"V") -> 
C79: Electrical Code | E79: IEC | G79: Filter / Regulator / Air Instru. Tubing | J79: YES / YES / acc. ambient temp. | L79: =[4]!Collar_From_DN(#REF!,"V") -> 
C80: Moisture | E80: 30%-87% | G80: 6. Positioner | L80: =[4]!Collar_From_DN(#REF!,"V") -> 
C81: Insulation Class | E81: IP54 | G81: Positioner type | J81: Electro-Pneumatic | L81: =[4]!Collar_From_DN(#REF!,"V") -> 
C82: 2. Piping | G82: Positionner input signal | J82: 4-20mA | L82: =[4]!Collar_From_DN(#REF!,"V") -> 
C83: Piping Class | E83: =IF(E76<=1,"A-01-S-5H-Y(0)","A-03-S-5H-Y(0)") -> A-01-S-5H-Y(0) | G83: 7. Accessories | L83: =[4]!Collar_From_DN(#REF!,"V") -> 
C84: Piping nominal size in/ out (mm) | E84: =I62 -> 1" | F84: =I64 -> 4" | G84: Fully Close (ZSL) / Fully open (ZSH) | J84: =[4]!vlookup_colonne(J6,"_table_main","col_ZSL") ->  | K84: =[4]!vlookup_colonne(J6,"_table_main","col_ZSH") ->  | L84: =[4]!Collar_From_DN(J72,"V") -> 60
C85: Piping Size (Øxmm) | E85: =VLOOKUP(E84,INDIRECT(VLOOKUP($E$83,Table_Piping_Class,7,FALSE)),5,FALSE) -> 33.4x2.77mm | F85: =VLOOKUP(F84,INDIRECT(VLOOKUP($E$83,Table_Piping_Class,7,FALSE)),5,FALSE) -> 114.3x3.05mm | G85: Tag of Switch | J85: =IF(J84="YES","ZSL"&RIGHT(J6,LEN(J6)-2),"") ->  | K85: =IF(K84="YES","ZSH"&RIGHT(J6,LEN(J6)-2),"") ->  | L85: =[4]!Collar_From_DN(J73,"V") -> 60
C86: 3. Valve body/Assembly | G86: Fast Closing (Dedicated Solenoïd valve) | J86: =[4]!vlookup_colonne(J6,"_table_main","col_EV") ->  | L86: =[4]!Collar_From_DN(J74,"V") -> 250
C87: Valve type | E87: Globe | G87: Tag of Electrovalve | J87: =IF(J86="YES","EV"&RIGHT(J6,LEN(J6)-2),"") ->  | L87: - | R87: h (%) | S87: F (%) | X87: %Cv | Y87: %trim | Z87: Cv | AA87: %Cv
C88: Body pattern | E88: Straight | G88: Positionner feedback signal | J88: =[4]!vlookup_colonne(J6,"_table_main","col_4_20_FeedBack") ->  | R88: 0 | S88: =[4]!Cv_From_Trim(R88,$I$60) -> 0 | X88: 1 | Y88: 1 | Z88: 0 | AA88: 0 | AD88: Lineaire | AE88: =%
C89: Estimated size | E89: =[4]!DN_From_Cv(P70,V60) -> 25 | G89: Slow Opening/ Closing (~2min) | J89: =[4]!vlookup_colonne(J6,"_table_main","col_Slow_Opening") ->  | R89: 0.05 | S89: =[4]!Cv_From_Trim(R89,$I$60) -> 0.007924465962 | X89: 0 | Y89: 0 | AD89: 0 | AE89: 0
C90: Body / bonnet material | E90: 304L or 316L | G90: 8. Special Design | R90: 0.1 | S90: =[4]!Cv_From_Trim(R90,$I$60) -> 0.01584893192 | X90: =+AA90 -> 0.03 | Y90: 0.1 | Z90: 0.18 | AA90: =Z90/$Z$99 -> 0.03 | AD90: 0.54 | AE90: 0.18
C91: Piping end connexion EN1092-1 | E91: BW: Butt-Welded | G91: Interface to vaccum enclosure | J91: - | R91: 0.15 | S91: =[4]!Cv_From_Trim(R91,$I$60) -> 0.01995262315 | X91: =+AA91 -> 0.045 | Y91: 0.2 | Z91: 0.27 | AA91: =Z91/$Z$99 -> 0.045 | AD91: 1.1 | AE91: 0.27
C92: Packing | E92: See spec | G92: Thermalisation | J92: =[4]!vlookup_colonne(J6,"_table_main","col_Intercept") ->  | R92: 0.2 | S92: =[4]!Cv_From_Trim(R92,$I$60) -> 0.02511886432 | X92: 0.06666666667 | Y92: 0.3 | Z92: 0.4 | AA92: 0.06666666667 | AD92: 1.6 | AE92: 0.4
C93: Cleanliness | E93: See spec | G93: Handwheel | J93: - | R93: 0.25 | S93: =[4]!Cv_From_Trim(R93,$I$60) -> 0.0316227766 | X93: 0.105 | Y93: 0.4 | Z93: 0.63 | AA93: 0.105 | AD93: 2.1 | AE93: 0.63
C94: Leakage to atmosphere | E94: See spec | G94: Locker | J94: - | R94: 0.3 | S94: =[4]!Cv_From_Trim(R94,$I$60) -> 0.03981071706 | X94: 0.1666666667 | Y94: 0.5 | Z94: 1 | AA94: 0.1666666667 | AD94: 2.7 | AE94: 1
C95: 4. Plug | G95: 9. Quality Control | R95: 0.35 | S95: =[4]!Cv_From_Trim(R95,$I$60) -> 0.05011872336 | X95: 0.3 | Y95: 0.6 | Z95: 1.8 | AA95: 0.3 | AD95: 3.3 | AE95: 1.8
C96: Flow Tend to Open / To Close | E96: =[4]!vlookup_colonne(J6,"_table_main","col_FTO_FTC") ->  | G96: Inspection Test Plan (ITP) | J96: Yes | R96: 0.4 | S96: =[4]!Cv_From_Trim(R96,$I$60) -> 0.06309573445 | X96: 0.4666666667 | Y96: 0.7 | Z96: 2.8 | AA96: 0.4666666667 | AD96: 4 | AE96: 2.8
C97: Characteristic | E97: Equal % | G97: Material Certificat | J97: 3.1 | R97: 0.45 | S97: =[4]!Cv_From_Trim(R97,$I$60) -> 0.07943282347 | X97: 0.6666666667 | Y97: 0.8 | Z97: 4 | AA97: 0.6666666667 | AD97: 4.6 | AE97: 4
C98: Rangeability | E98: =I60 -> 100 | R98: 0.5 | S98: =[4]!Cv_From_Trim(R98,$I$60) -> 0.1 | X98: 0.8666666667 | Y98: 0.9 | Z98: 5.2 | AA98: 0.8666666667 | AD98: 5.3 | AE98: 5.2
C99: Seal | E99: See spec | R99: 0.55 | S99: =[4]!Cv_From_Trim(R99,$I$60) -> 0.1258925412 | X99: 1 | Y99: 1 | Z99: 6 | AA99: 1 | AD99: 6 | AE99: 6
C100: Leakage class ANSI-FCI-70-2 | E100: VI | R100: 0.6 | S100: =[4]!Cv_From_Trim(R100,$I$60) -> 0.1584893192
R101: 0.65 | S101: =[4]!Cv_From_Trim(R101,$I$60) -> 0.1995262315
B102: VENDOR | C102: Valve Main Characteristic | G102: Actuator and Positionner | R102: 0.7 | S102: =[4]!Cv_From_Trim(R102,$I$60) -> 0.2511886432
C103: Valve Manufacturer & Model | G103: Actuator Manufacturer & Model | R103: 0.75 | S103: =[4]!Cv_From_Trim(R103,$I$60) -> 0.316227766
C104: Seat Size (mm) / Valve Cv (Usgpm PSI) | G104: Air Pressure | R104: 0.8 | S104: =[4]!Cv_From_Trim(R104,$I$60) -> 0.3981071706
C105: DN and PN | G105: Positionner Manufacturer & Model | R105: 0.85 | S105: =[4]!Cv_From_Trim(R105,$I$60) -> 0.5011872336
C106: Interfaces (BW Ø x mm / Flanges) | R106: 0.85 | S106: =[4]!Cv_From_Trim(R106,$I$60) -> 0.5011872336
C107: Cryogenic extension bonnet length | G107: Vendor Remark | R107: 0.9 | S107: =[4]!Cv_From_Trim(R107,$I$60) -> 0.6309573445
C108: Cold box cover plate diameter | R108: 0.95 | S108: =[4]!Cv_From_Trim(R108,$I$60) -> 0.7943282347
C109: Heat Leak | R109: 1 | S109: =[4]!Cv_From_Trim(R109,$I$60) -> 1
C110: Plug seal material
B113: Gaseous Phase : Normal Flow (ΔP< Pin/2) : | H113: Critical Flow (ΔP ≥ Pin/2) :
B115: Liquid phase :
C117: Nm3 = m3 reduced to 0°C and 1.013 bar abs.
C118: ref : C.P. A0001. Use these formula with AL Normal Units only ! Nm3 = m3 reduced to 0°C and 1.013 bar abs.
B119: REMARKS | C119: 3"
B126: Revision | D126: DATE | E126: BY | F126: CHECKED | G126: EVOLUTION | K126: Page
B127: 1 | D127: 2013-07-05 | E127: V.HELOIN | F127: A.MACHEFEL | G127: Major Revision
B128: 2 | D128: 2013-08-05 | E128: V.HELOIN | F128: A.MACHEFEL | G128: Issue For Order | K128: =+[4]!Nb_pageauto() -> 4/2
B129: 3 | D129: 20/09/2013 | E129: V.HELOIN | F129: A.MACHEFEL | G129: Issue For PIM
B130: 4 | D130: 21/10/2013 | E130: V.HELOIN | F130: A.MACHEFEL | G130: Issue After VELAN datasheet Review

Sheet Data
B5: Data
B6: Gaspak Local =1, Gaspak Serveur = 2 | E6: 1
B7: Regulation | C7: ConstructionCode | D7: MaterialCertificat | E7: Etat | F7: ValveFunction | G7: ValveType | H7: PlugType | I7: BodyPattern | J7: EndConnection | K7: Cleanliness | L7: PlugCharacteristic | M7: ActuatorType | N7: FailureType | O7: PositionerType | P7: Type | Q7: ElectricalCode | R7: YESNO | S7: Oring
B8: ASME | C8: ASME | D8: 2.2 | E8: Gaseous | F8: TOR | G8: Globe Valve | H8: FTO | I8: Straight | J8: BW: Butt-Welded | K8: Oxygen Service | L8: Equal % | M8: Single Effect | N8: FC : Failure Close | O8: Electro-Pneumatic | P8: Manual | Q8: IEC | R8: YES | S8: NBR | T8: A01S5HA
B9: 97/23/CE | C9: CODAP 2005 | D9: 3.1 | E9: Liquid | F9: Manual | G9: Eccentric rotary plug | H9: FTC | I9: Angle | J9: Flanged | K9: Oil and grease free | L9: Quick Opening | M9: Double Effect | N9: FO: Failure Open | O9: Electric | P9: TOR | Q9: UL | R9: NO | S9: FPM | T9: A03S5HA
B10: SELO | C10: AD Merckblatt | G10: Butterfly valve | K10: Passivating | L10: Linear
B11: HPGSL | G11: Ball valve | L11: Dig
G12: Synchronized block and bleed
G13: Three Lever Valve
B17: PIPE DIMENSIONS WITH (Small thickness)
E19: DN (inch) | F19: Din (mm) | G19: Dim (Øxmm)
D20: A03S5HA(5) | E20: 1/4" | F20: =VLOOKUP(E20,INDIRECT(VLOOKUP(D20,Table_Piping_Class,7,FALSE)),4,FALSE) ->  | G20: =VLOOKUP(E20,INDIRECT(VLOOKUP(D20,Table_Piping_Class,7,FALSE)),5,FALSE) -> 
C23: Table_Piping_Class
D24: DN (inch) | E24: DN (mm) | F24: Dext (mm) | G24: e (mm) | H24: Din (mm) | I24: TABLE
C25: E42S5H(2) | D25: 4 | E25: 5 | F25: 6 | G25: 7 | H25: 8 | I25: Piping_Class_01
C26: E44S5H-A(0) | D26: 30 | E26: 30 | F26: 31 | G26: 32 | H26: 33 | I26: Piping_Class_05
C27: E46S5H-A(2) | D27: 10 | E27: 11 | F27: 12 | G27: 13 | H27: 14 | I27: Piping_Class_02
B28: LP | C28: A-01-S-5H-Y(0) | D28: 16 | E28: 17 | F28: 18 | G28: 19 | H28: 20 | I28: Piping_Class_03
B29: HP | C29: A-03-S-5H-Y(0) | D29: 23 | E29: 24 | F29: 25 | G29: 26 | H29: 27 | I29: Piping_Class_04
C31: 1 | D31: 2 | E31: 3 | F31: 4 | G31: 5 | H31: 6 | I31: 7 | J31: 8 | K31: 9 | L31: 10 | M31: 11 | N31: 12 | O31: 13 | P31: 14 | Q31: 15 | R31: 16 | S31: 17 | T31: 18 | U31: 19 | V31: 20 | W31: 21 | X31: 22 | Y31: 23 | Z31: 24 | AA31: 25 | AB31: 26 | AC31: 27 | AD31: 28 | AE31: 29 | AF31: 30 | AG31: 31 | AH31: 32 | AI31: 33 | AJ31: 34
F32: =C25 -> E42S5H(2) | J32: Piping_Class_01 | L32: =C27 -> E46S5H-A(2) | P32: Piping_Class_02 | R32: =C28 -> A-01-S-5H-Y(0) | W32: Piping_Class_03 | Y32: =C29 -> A-03-S-5H-Y(0) | AD32: Piping_Class_04 | AF32: =AC25 -> 0 | AJ32: Piping_Class_05
E33: SEAT | F33: DN (mm) | G33: Dext (mm) | H33: e (mm) | I33: Din (mm) | J33: dim | L33: DN (mm) | M33: Dext (mm) | N33: e (mm) | O33: Din (mm) | P33: dim | R33: DN (inch) | S33: Dext (mm) | T33: e (mm) | U33: Din (mm) | V33: dim | W33: SCHEDULE | Y33: DN (inch) | Z33: Dext (mm) | AA33: e (mm) | AB33: Din (mm) | AC33: dim | AD33: SCHEDULE | AF33: DN (mm) | AG33: Dext (mm) | AH33: e (mm) | AI33: Din (mm) | AJ33: dim
C34: DN06 | D34: 1/8" | E34: 6 | F34: 6OD | G34: 6 | H34: 1 | I34: =G34-H34*2 -> 4 | J34: =CONCATENATE(G34,"x",H34) -> 6x1 | L34: 6OD | M34: 6 | N34: 1 | O34: =M34-N34*2 -> 4 | P34: =CONCATENATE(M34,"x",N34) -> 6x1 | R34: 1/8" | S34: 10.3 | T34: 1.65 | U34: =+S34-2*T34 -> 7 | V34: =CONCATENATE(S34,"x",T34) -> 10.3x1.65 | W34: 10 | Y34: 1/8" | Z34: 10.3 | AA34: 1.65 | AB34: =+Z34-2*AA34 -> 7 | AC34: =CONCATENATE(Z34,"x",AA34) -> 10.3x1.65 | AD34: 10 | AF34: 6OD | AG34: 6 | AH34: 1 | AI34: =AG34-AH34*2 -> 4 | AJ34: =CONCATENATE(AG34,"x",AH34) -> 6x1
B35: 8 | C35: DN08 | D35: 1/4" | E35: 8 | F35: DN08 | G35: 13.5 | H35: 1.6 | I35: =G35-H35*2 -> 10.3 | J35: =CONCATENATE(G35,"x",H35,"mm") -> 13.5x1.6mm | L35: DN08 | M35: 13.5 | N35: 1.6 | O35: =M35-N35*2 -> 10.3 | P35: =CONCATENATE(M35,"x",N35,"mm") -> 13.5x1.6mm | R35: 1/4" | S35: 13.7 | T35: 1.65 | U35: =+S35-2*T35 -> 10.4 | V35: =CONCATENATE(S35,"x",T35,"mm") -> 13.7x1.65mm | W35: 10 | Y35: 1/4" | Z35: 13.7 | AA35: 1.65 | AB35: =+Z35-2*AA35 -> 10.4 | AC35: =CONCATENATE(Z35,"x",AA35,"mm") -> 13.7x1.65mm | AD35: 10 | AF35: DN08 | AG35: 13.5 | AH35: 1.6 | AI35: =AG35-AH35*2 -> 10.3 | AJ35: =CONCATENATE(AG35,"x",AH35,"mm") -> 13.5x1.6mm
B36: 10 | C36: DN10 | D36: 3/8" | E36: 10 | F36: DN10 | G36: 17.2 | H36: 1.6 | I36: 14 | J36: =CONCATENATE(G36,"x",H36,"mm") -> 17.2x1.6mm | L36: DN10 | M36: 17.2 | N36: 1.6 | O36: 14 | P36: =CONCATENATE(M36,"x",N36,"mm") -> 17.2x1.6mm | R36: 3/8" | S36: 17.15 | T36: 1.65 | U36: 13.85 | V36: =CONCATENATE(S36,"x",T36,"mm") -> 17.15x1.65mm | W36: 10 | Y36: 3/8" | Z36: 17.15 | AA36: 1.65 | AB36: 13.85 | AC36: =CONCATENATE(Z36,"x",AA36,"mm") -> 17.15x1.65mm | AD36: 10 | AF36: DN10 | AG36: 17.2 | AH36: 1.6 | AI36: =AG36-AH36*2 -> 14 | AJ36: =CONCATENATE(AG36,"x",AH36,"mm") -> 17.2x1.6mm
B37: 15 | C37: DN15 | D37: 1/2" | E37: 15 | F37: DN15 | G37: 21.3 | H37: 1.6 | I37: 18.1 | J37: 21.3x1.6mm | L37: DN15 | M37: 21.3 | N37: 1.6 | O37: 18.1 | P37: 21.3x1.6mm | R37: 1/2" | S37: 21.34 | T37: 1.65 | U37: 18.04 | V37: 21.34x1.65mm | W37: 5 | Y37: 1/2" | Z37: 21.34 | AA37: 1.65 | AB37: 18.04 | AC37: 21.34x1.65mm | AD37: 5 | AF37: DN15 | AG37: 21.3 | AH37: 1.6 | AI37: 18.1 | AJ37: 21.3x1.6mm
B38: 20 | C38: DN20 | D38: 3/4" | E38: 20 | F38: DN20 | G38: 26.9 | H38: 1.6 | I38: 23.7 | J38: 26.9x1.6mm | L38: DN20 | M38: 26.9 | N38: 1.6 | O38: 23.7 | P38: 26.9x1.6mm | R38: 3/4" | S38: 26.67 | T38: 1.65 | U38: 23.37 | V38: 26.67x1.65mm | W38: 5 | Y38: 3/4" | Z38: 26.67 | AA38: 1.65 | AB38: 23.37 | AC38: 26.67x1.65mm | AD38: 5 | AF38: DN20 | AG38: 26.9 | AH38: 1.6 | AI38: 23.7 | AJ38: 26.9x1.6mm
B39: 25 | C39: DN25 | D39: 1" | E39: 25 | F39: DN25 | G39: 33.7 | H39: 1.6 | I39: 30.5 | J39: 33.7x1.6mm | L39: DN25 | M39: 33.7 | N39: 1.6 | O39: 30.5 | P39: 33.7x1.6mm | R39: 1" | S39: 33.4 | T39: 2.77 | U39: 27.86 | V39: 33.4x2.77mm | W39: 5 | Y39: 1" | Z39: 33.4 | AA39: 2.77 | AB39: 27.86 | AC39: 33.4x2.77mm | AD39: 5 | AF39: DN25 | AG39: 33.7 | AH39: 1.6 | AI39: 30.5 | AJ39: 33.7x1.6mm
B40: 32 | C40: DN32 | D40: 1"1/4 | E40: 32 | F40: DN32 | G40: 42.4 | H40: 1.6 | I40: 39.2 | J40: 42.4x1.6mm | L40: DN32 | M40: 42.4 | N40: 1.6 | O40: 39.2 | P40: 42.4x1.6mm | R40: 1"1/4 | S40: 42.16 | T40: 2.77 | U40: 36.62 | V40: 42.16x2.77mm | W40: 10 | Y40: 1"1/4 | Z40: 42.16 | AA40: 2.77 | AB40: 36.62 | AC40: 42.16x2.77mm | AD40: 10 | AF40: DN32 | AG40: 42.4 | AH40: 1.6 | AI40: 39.2 | AJ40: 42.4x1.6mm
B41: 40 | C41: DN40 | D41: 1"1/2 | E41: 40 | F41: DN40 | G41: 48.3 | H41: 1.6 | I41: 45.1 | J41: 48.3x1.6mm | L41: DN40 | M41: 48.3 | N41: 1.6 | O41: 45.1 | P41: 48.3x1.6mm | R41: 1"1/2 | S41: 48.26 | T41: 2.77 | U41: 42.72 | V41: 48.26x2.77mm | W41: 10 | Y41: 1"1/2 | Z41: 48.26 | AA41: 2.77 | AB41: 42.72 | AC41: 48.26x2.77mm | AD41: 10 | AF41: DN40 | AG41: 48.3 | AH41: 1.6 | AI41: 45.1 | AJ41: 48.3x1.6mm
B42: 50 | C42: DN50 | D42: 2" | E42: 50 | F42: DN50 | G42: 60.3 | H42: 1.6 | I42: 57.1 | J42: 60.3x1.6mm | L42: DN50 | M42: 60.3 | N42: 2 | O42: 57.1 | P42: 60.3x2mm | R42: 2" | S42: 60.3 | T42: 2.77 | U42: 54.76 | V42: 60.3x2.77mm | W42: 10 | Y42: 2" | Z42: 60.3 | AA42: 2.77 | AB42: 54.76 | AC42: 60.3x2.77mm | AD42: 10 | AF42: DN50 | AG42: 60.3 | AH42: 1.6 | AI42: 57.1 | AJ42: 60.3x1.6mm
B43: 65 | C43: DN65 | D43: 2"1/2 | E43: 65 | F43: DN65 | G43: 76.1 | H43: 1.6 | I43: 72.9 | J43: 76.1x1.6mm | L43: DN65 | M43: 76.1 | N43: 2.9 | O43: 72.9 | P43: 76.1x2.9mm | R43: 2"1/2 | S43: 73.03 | T43: 3.05 | U43: 66.93 | V43: 73.03x3.05mm | W43: 10 | Y43: 2"1/2 | Z43: 73.03 | AA43: 3.05 | AB43: 66.93 | AC43: 73.03x3.05mm | AD43: 10 | AF43: DN65 | AG43: 76.1 | AH43: 2 | AI43: 72.1 | AJ43: 76.1x2mm
B44: 80 | C44: DN80 | D44: 3" | E44: 80 | F44: DN80 | G44: 86.9 | H44: 1.6 | I44: 83.7 | J44: 86.9x1.6mm | L44: DN80 | M44: 86.9 | N44: 3.05 | O44: 83.7 | P44: 86.9x3.05mm | R44: 3" | S44: 88.9 | T44: 3.05 | U44: 82.8 | V44: 88.9x3.05mm | W44: 10 | Y44: 3" | Z44: 88.9 | AA44: 3.05 | AB44: 82.8 | AC44: 88.9x3.05mm | AD44: 10 | AF44: DN80 | AG44: 86.9 | AH44: 2 | AI44: 82.9 | AJ44: 86.9x2mm
B45: 100 | C45: DN100 | D45: 4" | E45: 100 | F45: DN100 | G45: 114.3 | H45: 2 | I45: 111.1 | J45: 114.3x2mm | L45: DN100 | M45: 114.3 | N45: 6.02 | O45: 111.1 | P45: 114.3x6.02mm | R45: 4" | S45: 114.3 | T45: 3.05 | U45: 108.2 | V45: 114.3x3.05mm | W45: 10 | Y45: 4" | Z45: 114.3 | AA45: 3.05 | AB45: 108.2 | AC45: 114.3x3.05mm | AD45: 10 | AF45: DN100 | AG45: 114.3 | AH45: 2 | AI45: 110.3 | AJ45: 114.3x2mm
B46: 125 | C46: DN125 | D46: 5" | E46: 125 | F46: DN125 | R46: 5" | S46: 141.3 | T46: 3.4 | U46: =+S46-2*T46 -> 134.5 | V46: =CONCATENATE(S46,"x",T46,"mm") -> 141.3x3.4mm | W46: 10 | Y46: 5" | Z46: 141.3 | AA46: 3.4 | AB46: 134.5 | AC46: 141.3x3.4mm | AD46: 10 | AF46: DN125 | AG46: 139.7 | AH46: 2 | AI46: 135.7 | AJ46: 139.7x2mm
B47: 150 | C47: DN150 | D47: 6" | E47: 150 | F47: DN150 | R47: 6" | S47: 168.3 | T47: 3.4 | U47: 161.5 | V47: 168.3x3.4mm | W47: 10 | Y47: 6" | Z47: 168.3 | AA47: 3.4 | AB47: 161.5 | AC47: 168.3x3.4mm | AD47: 10 | AF47: DN150 | AG47: 168.3 | AH47: 2 | AI47: 164.3 | AJ47: 168.3x2mm
B48: 200 | C48: DN200 | D48: 8" | E48: 200 | F48: DN200 | R48: 8" | S48: 219.1 | T48: 3.76 | U48: 211.58 | V48: 219.1x3.76mm | W48: 10 | Y48: 8" | Z48: 219.1 | AA48: 3.76 | AB48: 211.58 | AC48: 219.1x3.76mm | AD48: 10 | AF48: DN200 | AG48: 219.1 | AH48: 2 | AI48: 215.1 | AJ48: 219.1x2mm
B49: 250 | C49: DN250 | D49: 10" | E49: 250 | F49: DN250 | R49: 10" | S49: 273 | T49: 4.19 | U49: 264.62 | V49: 273x4.19mm | W49: 10 | Y49: 10" | Z49: 273 | AA49: 4.19 | AB49: 264.62 | AC49: 273x4.19mm | AD49: 10 | AF49: DN250 | AG49: 273 | AH49: 3 | AI49: 267 | AJ49: 273x3mm
B50: 300 | C50: DN300 | D50: 12" | E50: 300 | F50: DN300 | R50: 12" | S50: 323.9 | T50: 4.57 | U50: 314.76 | V50: 323.9x4.57mm | W50: 10 | Y50: 12" | Z50: 323.9 | AA50: 4.57 | AB50: 314.76 | AC50: 323.9x4.57mm | AD50: 10 | AF50: DN300 | AG50: 323.9 | AH50: 3 | AI50: 317.9 | AJ50: 323.9x3mm
B51: 350 | C51: DN350 | D51: 14" | R51: 14" | S51: 355.6 | T51: 4.77 | U51: 346.06 | V51: 355.6x4.77mm | W51: 10 | Y51: 14" | Z51: 355.6 | AA51: 4.77 | AB51: 346.06 | AC51: 355.6x4.77mm | AD51: 10
B63: Cv Estimation Regulation Globe Valve
B66: DN | C66: 0.5 | D66: =3/4 -> 0.75 | E66: 1 | F66: 1.25 | G66: 1.5 | H66: 2 | I66: 2.5 | J66: 3 | K66: 4 | L66: 5 | M66: 6 | N66: 7 | O66: 8 | P66: 9 | Q66: 10 | R66: 11 | S66: 12 | T66: 13 | U66: 14 | V66: 15 | W66: 16 | X66: 17 | Y66: 18 | Z66: 19 | AA66: 20 | AB66: 21 | AC66: 22 | AD66: 23 | AE66: 24
B67: KV | C67: 9.2 | D67: 8.5 | E67: 7.8 | F67: 7.5 | G67: 7.1 | H67: 6.5 | I67: 6.1 | J67: 6.1 | K67: 5.8 | L67: 5.8 | M67: 5.1 | N67: 5.1 | O67: 4.8 | P67: 4.8 | Q67: 4.8 | R67: 4.8 | S67: 4.4 | T67: 4.4 | U67: 4.4 | V67: 4.4 | W67: 4.4 | X67: 4.4 | Y67: 4.1 | Z67: 4.1 | AA67: 4.1 | AB67: 4.1 | AC67: 4.1 | AD67: 4.1 | AE67: 4.1
C69: d | D69: 0.5 | E69: inches | I69: d | J69: 1 | K69: inches
C70: K | D70: =HLOOKUP(D69,C66:AE67,2,FALSE) -> 9.2 | I70: K | J70: 0.07
C71: Cv | D71: =29.9*D69^2/D70^0.5 -> 2.464434519 | I71: Cv | J71: =29.9*J69^2/J70^0.5 -> 113.0113774 | M71: K=894,01*d^4/Cv^2
C72: Pourcentage min | D72: 0.1 | I72: Pourcentage min | J72: 0.1
C73: Cvmax | D73: =D72*D71 -> 0.2464434519 | I73: Cvmax | J73: =J72*J71 -> 11.30113774
C74: Pourcentage max | D74: 0.95 | I74: Pourcentage max | J74: 0.95
C75: Cvmax | D75: =D74*D71 -> 2.341212793 | I75: Cvmax | J75: =J74*J71 -> 107.3608086
B79: Manufacturer Data
D81: Coéfficient de débit Cv des vannes de régulation
D82: VELAN | E82: WEKA | F82: FLOWSERVE | G82: TRUCHOT
C83: DN2 | D83: 0.1 | F83: 0.01
C84: DN4 | D84: 0.3 | F84: 0.29
C85: DN6 | D85: 1.3 | E85: 1.12 | F85: 1.86
C86: DN8 | D86: 2.1 | E86: 2.4 | F86: 1.86
C87: DN10 | D87: 2.5 | E87: 3.5 | F87: 2.9 | G87: 3.1
C88: DN15 | D88: 5 | E88: 7 | F88: =E88*1.16 -> 8.12 | G88: 7
C89: DN20 | D89: 11 | E89: 14 | F89: =E89*1.16 -> 16.24 | G89: 15
C90: DN25 | D90: 16.2 | E90: 17.4 | F90: =E90*1.16 -> 20.184 | G90: 18.5
C91: DN32 | D91: 24 | E91: 27.3 | G91: 22
C92: DN40 | D92: 46.4 | E92: 58 | F92: 46.4 | G92: 35
C93: DN50 | D93: 69.6 | E93: 87 | F93: 73.08 | G93: 50
C94: DN65 | D94: 120 | E94: 116
C95: DN80 | D95: 186 | E95: 198 | F95: 185.6
C96: DN100 | D96: 250 | E96: 302 | F96: 290
C97: DN125 | D97: 430 | E97: 430
C98: DN150 | E98: 650
C99: DN200
C100: DN250
C103: WEKA
C106: CV max | D106: vanne size | F106: CV max | G106: vanne size | I106: CV max | J106: vanne size | L106: - for a linear flow characteristic Kvs, min-max = ca. 1.1...1.3*Kv(calc)
C107: 0.005 | D107: DN2 | F107: 0.5 | G107: DN10 | I107: 7.9 | J107: DN25 | L107: - for an equal-% flow characteristic Kvs, min-max = ca. 1.1...2.0*Kv(calc)
C108: 0.008 | D108: DN2 | F108: 0.64 | G108: DN10 | I108: 9.1 | J108: DN25 | L108: - for a specific modified flow characteristic Kvs, min-max = ca. 1.1...1.6*Kv(calc)
C109: 0.017 | D109: DN2 | F109: 0.73 | G109: DN10 | I109: 10.3 | J109: DN25
C110: 0.026 | D110: DN2 | F110: 1 | G110: DN10 | I110: 11.5 | J110: DN25
C111: 0.035 | D111: DN2 | F111: 1.2 | G111: DN10 | I111: 12.7 | J111: DN25
C112: 0.047 | D112: DN2 | F112: 1.3 | G112: DN10 | I112: 15.8 | J112: DN25
C113: 0.058 | D113: DN2 | F113: 1.6 | G113: DN10 | I113: 16 | J113: DN25 | M113: ON/OFF VALVES
C114: 0.07 | D114: DN2 | F114: 2.1 | G114: DN10 | I114: 16.5 | J114: DN25
C115: 0.081 | D115: DN2 | F115: 2.7 | G115: DN10 | I115: 16.8 | J115: DN25 | M115: 1.39 | N115: DN6
C116: 0.06 | D116: DN4 | F116: 3.3 | G116: DN10 | I116: 17.1 | J116: DN25 | M116: 2.44 | N116: DN8
C117: 0.09 | D117: DN4 | F117: 1.2 | G117: DN15 | I117: 13.1 | J117: DN32 | M117: 3.5 | N117: DN10
C118: 0.12 | D118: DN4 | F118: 1.7 | G118: DN15 | I118: 14.7 | J118: DN32 | M118: 7 | N118: DN15
C119: 0.2 | D119: DN4 | F119: 2.7 | G119: DN15 | I119: 16.2 | J119: DN32 | M119: 14 | N119: DN20
C120: 0.29 | D120: DN4 | F120: 3.6 | G120: DN15 | I120: 17.6 | J120: DN32 | M120: 17.4 | N120: DN25
C121: 0.38 | D121: DN4 | F121: 4.7 | G121: DN15 | I121: 19.1 | J121: DN32 | M121: 27.3 | N121: DN32
C122: 0.52 | D122: DN4 | F122: 5.8 | G122: DN15 | I122: 23.6 | J122: DN32 | M122: 58 | N122: DN40
C123: 0.7 | D123: DN4 | F123: 5.9 | G123: DN15 | I123: 24 | J123: DN32
C124: 0.14 | D124: DN6 | F124: 6.2 | G124: DN15 | I124: 24.5 | J124: DN32
C125: 0.17 | D125: DN6 | F125: 6.5 | G125: DN15 | I125: 24.9 | J125: DN32
C126: 0.23 | D126: DN6 | F126: 6.7 | G126: DN15 | I126: 25.3 | J126: DN32
C127: 0.29 | D127: DN6 | F127: 6.2 | G127: DN20 | I127: 24 | J127: DN40
C128: 0.42 | D128: DN6 | F128: 6.3 | G128: DN20 | I128: =22*1.16 -> 25.52 | J128: DN40
C129: 0.58 | D129: DN6 | F129: 7 | G129: DN20 | I129: 28 | J129: DN40
C130: 0.65 | D130: DN6 | F130: 8.1 | G130: DN20 | I130: =27.6*1.16 -> 32.016 | J130: DN40
C131: 0.8 | D131: DN6 | F131: 9.2 | G131: DN20 | I131: 35 | J131: DN40
C132: 0.93 | D132: DN6 | F132: 10.7 | G132: DN20 | I132: =35*1.16 -> 40.6 | J132: DN40
C133: 1.28 | D133: DN6 | F133: 11.4 | G133: DN20 | I133: 48 | J133: DN40
C134: 0.29 | D134: DN8 | F134: 11.7 | G134: DN20 | I134: 49 | J134: DN40
C135: 0.87 | D135: DN8 | F135: 12.2 | G135: DN20 | I135: 50 | J135: DN40
C136: 1.28 | D136: DN8 | F136: 12.8 | G136: DN20 | I136: 51 | J136: DN40
C137: 1.63 | D137: DN8 | I137: 52 | J137: DN40
C138: 2.09 | D138: DN8
C139: 2.33 | D139: DN8
P155: DN | Q155: Seat | R155: BW
P156: 2 | Q156: 2 | R156: 13.0x1,5 | S156: =CONCATENATE("BW : ",R156) -> BW : 13.0x1,5
P157: 4 | Q157: 4 | R157: 13.0x1,5 | S157: =CONCATENATE("BW : ",R157) -> BW : 13.0x1,5
P158: 6 | Q158: 6 | R158: 13.0x1,5 | S158: BW : 13.0x1,5
P159: 8 | Q159: 8 | R159: 13.0x1,5 | S159: BW : 13.0x1,5
P160: 10 | Q160: 10 | R160: 17.2x1.6 | S160: BW : 17.2x1.6
P161: 15 | Q161: 15 | R161: 21.3x2.0 | S161: BW : 21.3x2.0
P162: 20 | Q162: 20 | R162: 26.9x2.0 | S162: BW : 26.9x2.0
P163: 25 | Q163: 25 | R163: 33.7x2.0 | S163: BW : 33.7x2.0
P164: 32 | Q164: 32 | R164: 42.4x2.0 | S164: BW : 42.4x2.0
P165: 40-36 | Q165: 36 | R165: 48.3x2.0 | S165: BW : 48.3x2.0
P166: 40 | Q166: 40 | R166: 48.3x2.0 | S166: BW : 48.3x2.0
P167: 50 | Q167: 50 | R167: 60.3x2.0 | S167: BW : 60.3x2.0
P168: 65 | Q168: 65 | R168: 76.1x2.0 | S168: BW : 76.1x2.0
P169: 80 | Q169: 80 | R169: 88.9x2.0 | S169: BW : 88.9x2.0
P170: 100 | Q170: 100 | R170: 114.3x2.6 | S170: BW : 114.3x2.6
P171: 125 | Q171: 120 | R171: 139.7x2.6 | S171: BW : 139.7x2.6
P172: 150 | Q172: 144 | R172: 168.3x2.6 | S172: BW : 168.3x2.6
P173: 200 | Q173: 190 | R173: 219.3x2.9 | S173: BW : 219.3x2.9
P174: 250 | Q174: 240 | R174: 273.0x3.2 | S174: BW : 273.0x3.2
P175: 300 | Q175: 285 | R175: 323.9x3.2 | S175: BW : 323.9x3.2
P176: 400 | Q176: 380 | R176: 406.4x4.8 | S176: BW : 406.4x4.8
C200: As a general rule it is assumed that the min Kvs value by flow plug should be at 5...10% of the max rated Kvs value for the given valve size DN.
K201: =
K202: Cvmin = Cvmax/200
C204: VELAN
T213: NT13068 | V213: rev A | X213: 2004-06-13
T214: Vannes cryogéniques ACRG - ACRG Cryogenic valves
T215: DN | U215: Seat diameter (mm) | V215: Standard plug tolerances (mm) | X215: Minimal plug Tolerances (mm) | Z215: Standard seat tolerances (mm) | AB215: Minimal Seat tolerances (mm) | AD215: Standard Rangeability | AE215: CV0* | AF215: Rmax pour CV max | AH215: Standard Plug/seat | AI215: Minimal Plug/seat | AJ215: Section
T216: 6 - 15 | U216: 6 | V216: 0 | W216: -0.006 | X216: 0 | Y216: -0.004 | Z216: 0 | AA216: 0.01 | AB216: 0 | AC216: 0.006 | AD216: 100 | AE216: 0.006 | AF216: 239 | AH216: =AA216-W216 -> 0.016 | AI216: =AC216-Y216 -> 0.01 | AK216: =AI216/AH216 -> 0.625
U217: 13 | V217: 0 | W217: -0.01 | X217: 0 | Y217: -0.004 | Z217: 0 | AA217: 0.015 | AB217: 0 | AC217: 0.008 | AD217: 100 | AE217: 0.021 | AF217: 281 | AH217: =AA217-W217 -> 0.025 | AI217: =AC217-Y217 -> 0.012 | AK217: 0.48
T218: 20 - 32 | U218: 25 | V218: 0 | W218: -0.013 | X218: 0 | Y218: -0.006 | Z218: 0 | AA218: 0.021 | AB218: 0 | AC218: 0.012 | AD218: 100 | AE218: 0.062 | AF218: 292 | AH218: =AA218-W218 -> 0.034 | AI218: 0.018 | AK218: 0.5294117647
T219: 40 - 50 | U219: 45 | V219: 0 | W219: -0.016 | X219: 0 | Y219: -0.008 | Z219: 0 | AA219: 0.025 | AB219: 0 | AC219: 0.015 | AD219: 100 | AE219: 0.212 | AF219: 330 | AH219: 0.041 | AI219: 0.023 | AK219: 0.5609756098
T220: 65 | U220: 65 | V220: 0 | W220: -0.019 | X220: 0 | Y220: -0.008 | Z220: 0 | AA220: 0.03 | AB220: 0 | AC220: 0.02 | AD220: 100 | AE220: 0.331 | AF220: 363 | AH220: 0.049 | AI220: 0.028 | AK220: 0.5714285714
T221: 80 | U221: 92 | V221: 0 | W221: -0.022 | X221: 0 | Y221: -0.012 | Z221: 0 | AA221: 0.035 | AB221: 0 | AC221: 0.025 | AD221: 100 | AE221: 0.599 | AF221: 311 | AH221: 0.057 | AI221: 0.037 | AK221: 0.649122807
T222: 100 | U222: 116 | V222: 0 | W222: -0.022 | X222: 0 | Y222: -0.018 | Z222: 0 | AA222: 0.035 | AB222: 0 | AC222: 0.03 | AD222: 100 | AE222: 0.85 | AF222: 318 | AH222: 0.057 | AI222: 0.048 | AK222: 0.8421052632
T223: 125 - 150 | U223: 140 | V223: 0 | W223: -0.025 | X223: 0 | Y223: -0.02 | Z223: 0 | AA223: 0.04 | AB223: 0 | AC223: 0.03 | AD223: 100 | AE223: 1.57 | AF223: 382 | AH223: 0.065 | AI223: 0.05 | AK223: 0.7692307692
T224: 250 | U224: 230 | V224: 0 | W224: -0.029 | X224: 0 | Y224: -0.025 | Z224: 0 | AA224: 0.05 | AB224: 0 | AC224: 0.04 | AD224: 100 | AE224: 3.182 | AF224: 377 | AH224: 0.079 | AI224: 0.065 | AK224: 0.8227848101
T225: CV0 = CV for 0% opening
T226: Rmaxi = Cvplug / CV0
T227: * this value can be greatly reduced (rangeability increased) by fitting the plug with the seat
B238: SPEED LIMITATIONS
C242: Fluid Type | D242: Valve Type | E242: Continuous duty | F242: Infrequent duty | G242: Pipe velocity
C243: LIQUID | D243: Globe, Eccentric | E243: < or = 10 m/s | F243: < or = 12 m/s | G243: 2 to 3 m/s
D244: Ex-centred Butterfly | E244: < or = 7 m/s | F244: < or = 8,5 m/s
D245: Centred Butterfly | E245: < or = 7 m/s | F245: < or = 8,5 m/s
C246: Superheated STEAM
D247: Butterfly | E247: < 0,5 mach | F247: < 0,7 mach
C248: GAS | D248: Globe, Eccentric | E248: < 0,3 mach | F248: < 0,5 mach
D249: Butterfly | E249: < 0,5 mach | F249: < 0,7 mach
C252: · For water or fluids containing erosive particles, the speed is limited to 6 m/s.
C253: · Gas speed is expressed in Mach, which is the ratio between the flow speed, and the sonic speed of the gas.
C254: · For gas or steam, the flow velocity V (m/s) and the sound speed can be calculated with the equations:
C255: Standard formula for fluid speed in the valve | F255: Formula for sound speed in a gas
C256: V = 1,23 x (QxT) / (P2xD²) | F256: V = 91 x √ (K x T / M)
C257: - Q = volume flow rate (Nm3/h) | F257: - K = ratio of specific heat
C258: - T = temperature (°K) | F258: - M = molecular weight
C259: - P2 = downstream pressure (barabs) | F259: - T = temperature °K
C260: - D = internal diameter of valve port (mm)
B262: EQUAL PERCENTAGE AND LINEAR - VALVES
B263: (Extract from Weka documentation no. 20080118 Rev. June 2009 - FHo)
B265: - Kv: SI units: Numerical value in m3/h of H 2 O at 5-40°C flowing through the valve at Δp=1bar
B266: - Cv: Customary US units: Numerical value in US gal/min of H2O at 60°F/16°C flowing through the valve at Δp=1psi
B267: - Conversion: Cv=1.16*Kv or Kv=0.86*Cv
B269: d) Equal percentage flow characteristics (eq-%, = %):
B270: The equal percentage flow characteristic is designed to linearize the installed flow characteristic in normal control valve applications,
B271: where the amount of pressure drop available to the control valve decrease with the opening of the valve, due to the increase in
B272: pressure losses in other parts of the system, such as pipes, pumps, heat exchanger etc.
B273: However a control valve is always part of a real systems where pressure drop varies with losses in the process piping and the other
B274: operating equipments in series with the control valve the resulting installed flow characteristic may by quit different. In any case where
B275: process piping is attached to the valve, the piping pressure loss, a function of flow rate, will cause the valve pressure drop to vary as a
B276: function of flow rate, even if the pressures at the source and receiver are constant.
B277: Values of an ideal inherent equal percentage flow characteristic:
B279: Expressed mathematically: Φ = Φo*e^(n/h)
C280: - Φ = fraction of KV
C281: - Φ(0) = lowest fraction of rated Kv (usually at h(0)) conform to the specific flow characteristic
C282: - e = 2.7183, the base of the natural logarithms
C283: - n = log(1/Φo)
C284: - h = rated travel
B286: pressure losses in other parts of the system, such as pipes, pumps, heat exchanger etc.
B287: An ideal inherent equal percentage flow characteristics would yield the same percentage of Kv-flow increase for each percentage
B288: increment of travel.
B289: Common are equal percentages flow characteristics of about 1:20 up to 1:50 in some special case up to 1:100.
B290: Values of an ideal inherent equal percentage flow characteristic:
C291: For Φo =1:20= | D291: =1/20 -> 0.05
C292: h% | D292: 0 | E292: 0.05 | F292: 0.1 | G292: 0.2 | H292: 0.3 | I292: 0.4 | J292: 0.5 | K292: 0.6 | L292: 0.7 | M292: 0.8 | N292: 0.9 | O292: 1
C293: Φ% | D293: 0.05 | E293: =$D$293*EXP(1)^(LOG(1/$D$293,EXP(1))*E292) -> 0.05807931748 | F293: 0.06746414238 | G293: 0.09102821015 | H293: 0.1228228026 | I293: 0.1657227009 | J293: 0.2236067977 | K293: 0.3017088168 | L293: 0.4070905315 | M293: 0.5492802717 | N293: 0.7411344491 | O293: 1
C294: Increase is of about 35% over the previous Kv-value for each 10% increase in travel, for inherent rangeability 1:20.
C295: For Φo =1:50= | D295: =1/50 -> 0.02
C296: h% | D296: 0 | E296: 0.05 | F296: 0.1 | G296: 0.2 | H296: 0.3 | I296: 0.4 | J296: 0.5 | K296: 0.6 | L296: 0.7 | M296: 0.8 | N296: 0.9 | O296: 1
C297: Φ% | D297: 0.02 | E297: =$D$297*EXP(1)^(LOG(1/$D$297,EXP(1))*E296) -> 0.02432083581 | F297: 0.02957515273 | G297: 0.04373448296 | H297: 0.06467270066 | I297: 0.09563524998 | J297: 0.1414213562 | K297: 0.2091279105 | L297: 0.3092494947 | M297: 0.4573050519 | N297: 0.6762433378 | O297: 1
C298: Increase is of about 48% over the previous Kv-value for each 10% increase in travel, for inherent rangeability 1:50.
C299: For Φo =1:100= | D299: =1/100 -> 0.01
C300: h% | D300: 0 | E300: 0.05 | F300: 0.1 | G300: 0.2 | H300: 0.3 | I300: 0.4 | J300: 0.5 | K300: 0.6 | L300: 0.7 | M300: 0.8 | N300: 0.9 | O300: 1
... 68 more rows

Sheet Fluides
C1: Liste des fluides disponibles
A2: 1 | B2: 1 | C2: Ammoniac | D2: C:\Program files\GaspakDemo5\NH379.gas | H2: 1
A3: 2 | B3: 2 | C3: Argon | D3: C:\Program files\GaspakDemo5\ARGON83.gas | H3: 2
A4: 3 | B4: 21 | C4: Azote | D4: C:\Program files\GaspakDemo5\N273.gas | H4: 21
A5: 4 | B5: 22 | C5: Azote | D5: C:\Program files\GaspakDemo5\N286.gas | H5: 22
A6: 5 | B6: 4 | C6: Butane Normal | D6: C:\Program files\GaspakDemo5\NORB86.gas | H6: 4
A7: 6 | B7: 7 | C7: Deutérium | D7: C:\Program files\GaspakDemo5\D286.gas | H7: 7
A8: 7 | B8: 5 | C8: Dioxide de carbone | D8: C:\Program files\GaspakDemo5\CO289.gas | H8: 5
A9: 8 | B9: 27 | C9: Eau | D9: C:\Program files\GaspakDemo5\H2O89.gas | H9: 27
A10: 9 | B10: 8 | C10: Ethane | D10: C:\Program files\GaspakDemo5\C2H686.gas | H10: 8
A11: 10 | B11: 9 | C11: Ethylène | D11: C:\Program files\GaspakDemo5\C2H481.gas | H11: 9
A12: 11 | B12: 10 | C12: Ethylène | D12: C:\Program files\GaspakDemo5\C2H486.gas | H12: 10 | J12: 1 | K12: Ammonia
A13: 12 | B13: 11 | C13: Helium | D13: C:\Program files\GaspakDemo5\HE89.gas | H13: 11
A14: 13 | B14: 16 | C14: Hydrogen Sulfide | D14: C:\Program files\GaspakDemo5\H2S93.gas | H14: 16 | J14: 18
A15: 14 | B15: 3 | C15: Isobutane | D15: C:\Program files\GaspakDemo5\ISOB86.gas | H15: 3 | J15: Neon
A16: 15 | B16: 17 | C16: Krypton | D16: C:\Program files\GaspakDemo5\KR90.gas | H16: 17 | J16: 2
A17: 16 | B17: 18 | C17: Méthane | D17: C:\Program files\GaspakDemo5\METH86.gas | H17: 18 | J17: Argon
A18: 17 | B18: 19 | C18: Méthane | D18: C:\Program files\GaspakDemo5\CH489.gas | H18: 19 | J18: 19
A19: 18 | B19: 6 | C19: Monoxide de carbone | D19: C:\Program files\GaspakDemo5\CO85.gas | H19: 6 | J19: Nitrogen
A20: 19 | B20: 20 | C20: Néon | D20: C:\Program files\GaspakDemo5\NE91.gas | H20: 20 | J20: 3
A21: 20 | B21: 23 | C21: Nitrogene Trifluoride | D21: C:\Program files\GaspakDemo5\NF380.gas | H21: 23 | J21: iso-Butane
A22: 21 | B22: 13 | C22: Normal Hydrogene | D22: C:\Program files\GaspakDemo5\NH291.gas | H22: 13 | J22: 20
A23: 22 | B23: 24 | C23: Oxygène | D23: C:\Program files\GaspakDemo5\O278.gas | H23: 24 | J23: Nitrogen Trifluoride
A24: 23 | B24: 25 | C24: Oxygène | D24: C:\Program files\GaspakDemo5\O285.gas | H24: 25 | J24: 4
A25: 24 | B25: 15 | C25: ParaHydrogène | D25: C:\Program files\GaspakDemo5\PH275.gas | H25: 15 | J25: n-Butane
A26: 25 | B26: 26 | C26: Propane | D26: C:\Program files\GaspakDemo5\C3H886.gas | H26: 26 | J26: 21
A27: 26 | B27: 29 | C27: R11 | D27: C:\Program files\GaspakDemo5\R1191.gas | H27: 29 | J27: Oxygen
A28: 27 | B28: 30 | C28: R12 | D28: C:\Program files\GaspakDemo5\R1291.gas | H28: 30 | J28: 5
A29: 28 | B29: 33 | C29: R123 | D29: C:\Program files\GaspakDemo5\R123N93.gas | H29: 33 | J29: Carbon Dioxide
A30: 29 | B30: 34 | C30: R124 | D30: C:\Program files\GaspakDemo5\R124N93.gas | H30: 34 | J30: 22
A31: 30 | B31: 35 | C31: R125 | D31: C:\Program files\GaspakDemo5\R125N93.gas | H31: 35 | J31: Propane
A32: 31 | B32: 36 | C32: R134 | D32: C:\Program files\GaspakDemo5\R134AN92.gas | H32: 36 | J32: 6
A33: 32 | B33: 37 | C33: R134 | D33: C:\Program files\GaspakDemo5\R134AT93.gas | H33: 37 | J33: Carbon Monoxide
A34: 33 | B34: 38 | C34: R152 | D34: C:\Program files\GaspakDemo5\R152AT94.gas | H34: 38 | J34: 23
A35: 34 | B35: 31 | C35: R22 | D35: C:\Program files\GaspakDemo5\R2291.gas | H35: 31 | J35: Water
A36: 35 | B36: 32 | C36: R32 | D36: C:\Program files\GaspakDemo5\R32N93.gas | H36: 32 | J36: 7
A37: 36 | B37: 50 | C37: R32 | D37: C:\Program files\GaspakDemo5\R32N94.gas | H37: 50 | J37: Deuterium
A38: 37 | B38: 28 | C38: Xénon | D38: C:\Program files\GaspakDemo5\\XE90.gas | H38: 28 | J38: 24
A39: 38 | B39: Phosphine | C39: 1.45 | D39: 10.6 | J39: Xenon
A40: 39 | B40: Protoxyde d'azote | C40: 1.872 | D40: 13.6 | J40: 8
A41: 40 | B41: R11 gaz | C41: 6.2 | D41: 10.16 | J41: Ethane
A42: 41 | B42: R12 gaz | C42: 5.75 | D42: 11.99 | J42: 25
A43: 42 | B43: R22 gaz | C43: 4.23 | D43: 11.8 | J43: Refrigerant-11
A44: 43 | B44: Silane | C44: 1.36 | D44: 10.8 | J44: 9
A45: 44 | B45: Sulfure d'hydrogène | C45: 1.45 | D45: 11.79 | J45: Ethylene
A46: 45 | B46: R11 liq | C46: 1500 | D46: 567.5 | J46: 26
A47: 46 | B47: R12 liq | C47: 1350 | D47: 260 | J47: Refrigerant-12
A48: 47 | B48: R22 liq | C48: 1250 | D48: 210 | J48: 10
A49: 48 | B49: R32 liq | C49: 1000 | D49: 193.2 | J49: Helium-4
A50: 49 | B50: R123 liq | C50: 1500 | D50: 569.6 | J50: 27
A51: 50 | B51: R124 liq | C51: 1400 | D51: 346 | J51: Refrigerant-22
A52: 51 | B52: R125 liq | C52: 1250 | D52: 205 | J52: 11
A53: 52 | B53: R152a liq | C53: 950 | D53: 214 | J53: equil Hydrogen
J54: 28
J55: Refrigerant-32
J56: 12
J57: normal Hydrogen
J58: 29
J59: Refrigerant-123
J60: 13
J61: ortho Hydrogen
J62: 30
J63: Refrigerant-124
J64: 14
J65: para Hydrogen
J66: 31
J67: Refrigerant-125
J68: 15
J69: Hydrogen Sulfide
J70: 32
J71: Refrigerant-134A
J72: 16
J73: Krypton
J74: 33
J75: Refrigerant-152A

Sheet Property GasPak
B2: FluidProperties(Fluide;Entrée1;Valeur de E1;Entrée2;Valeur de E2;Sortie;Phase;Unités)
B3: Fluide num. | C3: 11 | D3: -
B4: Pression | C4: 1 | D4: Bars
B5: Temperature (2) | C5: 77 | D5: K
B6: Pression (1) | C6: =C4*100000 -> 100000 | D6: Pa
B7: Densité (3) | C7: =[2]!FluidProperties($C$3,1,$C$6,2,$C$5,3,0,1) ->  | D7: kg/m3 | F7: 16 | G7: =[2]!FluidProperties($C$3,1,$C$4,2,$C$23-10,F7,0,1) -> 
B8: Enthalpie (5) | C8: =[2]!FluidProperties($C$3,1,$C$6,2,$C$5,5,0,1)/1000 ->  | D8: kJ/kg
B9: Entropie (4) | C9: =[2]!FluidProperties($C$3,1,$C$6,2,$C$5,4,0,1)/1000 ->  | D9: kJ/kg-K
B10: Energie Interne (6) | C10: =[2]!FluidProperties($C$3,1,$C$6,2,$C$5,6,0,1)/1000 ->  | D10: kJ/kg | F10: 12 | G10: =[2]!FConstant(C3,F10) -> 
B11: Cp (10) | C11: =[2]!FluidProperties($C$3,1,$C$6,2,$C$5,10,0,1)/1000 ->  | D11: kJ/kg-K
B12: Cv (9) | C12: =[2]!FluidProperties($C$3,1,$C$6,2,$C$5,9,0,1)/1000 ->  | D12: kJ/kg-K
B13: g (11) | C13: =[2]!FluidProperties($C$3,1,$C$6,2,$C$5,11,0,1) ->  | D13: --
B14: Conductivité (22) | C14: =[2]!FluidProperties($C$3,1,$C$6,2,$C$5,22,0,1) ->  | D14: W/m.K
B15: Viscosité (21) | C15: =[2]!FluidProperties($C$3,1,$C$6,2,$C$5,21,0,1) ->  | D15: Pa.s
B16: Vitesse du Son (15) | C16: =[2]!FluidProperties($C$3,1,$C$6,2,$C$5,15,0,1) ->  | D16: m/s
B17: Prandlt (24) | C17: =[2]!FluidProperties($C$3,1,$C$6,2,$C$5,24,0,1) ->  | D17: --
B18: Chaleur Latente (29) | C18: =[2]!FluidProperties($C$3,1,$C$6,10,$C$5,29,0,1)/1000 ->  | D18: kJ/kg
B19: Z (20) | C19: =[2]!FluidProperties($C$3,1,$C$6,2,$C$5,20,0,1) ->  | D19: --
B20: Gas constant R (4) | C20: =[2]!FConstant(C3,4) ->  | D20: --
B21: Masse Molaire | C21: =C19*C7*C20*C5/C4/100000*1000 ->  | D21: g/mol
B22: Sat P (1) | C22: =[2]!FluidProperties(C3,2,C5,10,0,1,2,1)/100000 ->  | D22: bars
B23: Sat T (2) | C23: =[2]!FluidProperties(C3,1,C4*100000,10,0,2,2,1) ->  | D23: K
B24: V(dH/dV) à P=cste (17) | C24: =[2]!FluidProperties($C$3,1,$C$6,2,$C$5,17,0,1)/1000 ->  | D24: kJ/kg
B29: Ammonia | C29: 1 | D29: Pressure | E29: Pressure upper limit
B30: Argon | C30: 2 | D30: Temperature | E30: Temperature upper limit
B31: Butane, Iso | C31: 3 | D31: Density | E31: Temperature lower limit
B32: Butane, Normal | C32: 4 | D32: Entropy | E32: Gas constant "R"
B33: Carbon Dioxide | C33: 5 | D33: Enthalpy | E33: Critical pressure
B34: Carbon Monoxide | C34: 6 | D34: Internal energy | E34: Critical temeprature
B35: Deuterium | C35: 7 | D35: dP/dD | E35: Critical density
B36: Ethane | C36: 8 | D36: dP/dT | E36: Triple point pressure
B37: Ethylene | C37: 9 | D37: Cv | E37: Triple point temperature
B38: Ethylene | C38: 10 | D38: Cp | E38: Triple point vapor density
B39: Helium | C39: 11 | D39: Gamma | E39: Triple point liquid density
B40: Hydrogen, Equilibrium | C40: 12 | D40: Alpha | E40: Molecular weight
B41: Hydrogen, Normal | C41: 13 | D41: Gruneisen | E41: Pressure of the standard state
B42: Hydrogen, Ortho | C42: 14 | D42: Kt | E42: Accentric factor
B43: Hydrogen, Para | C43: 15 | D43: Sound speed
B44: Hydrogen Sulfide | C44: 16 | D44: JT coefficient
B45: Krypton | C45: 17 | D45: (dH/dV)*V @ const P
B46: Methane | C46: 18 | D46: dH/dT @ const density
B47: Methane | C47: 19 | D47: dS/dT @ const density
B48: Neon | C48: 20 | D48: Z compressibility factor
B49: Nitrogen | C49: 21 | D49: Viscosity
B50: Nitrogen | C50: 22 | D50: Conductivity
B51: Nitrogen Trifluoride | C51: 23 | D51: Thermal diffusivity
B52: Oxygen | C52: 24 | D52: Prandtl number
B53: Oxygen | C53: 25 | D53: Surface tension
B54: Propane | C54: 26 | D54: Dielectric constant
B55: Water | C55: 27 | D55: PV/RT
B56: Xenon | C56: 28 | D56: dP/dT @ const sat
B57: R-11 | C57: 29 | D57: Latent heat
B58: R-12 | C58: 30 | D58: Fugacity / Pressure
B59: R-22 | C59: 31
B60: R-32 | C60: 32
B61: R-123 | C61: 33
B62: R-124 | C62: 34
B63: R-125 | C63: 35
B64: R-134a | C64: 36
B65: R-134a | C65: 37
B66: R-152a | C66: 38

Sheet Property HePak (hidden)
A1: HePak Spreadsheet Example
A2: Using HeCalc, HeProperty, HeUnit and HeInput
A3: Try new input values (shown in red)
C5: Thermodynamic state definition
C6: Input 1 | D6: Input 2 | E6: Validate
B7: Index | C7: 2 | D7: 44 | E7: =[3]!heProperty(Input2) -> 
B8: Name | C8: =[3]!heProperty(Input1) ->  | D8: =[3]!heProperty(Input2) -> 
B9: Value | C9: 6 | D9: 0 | E9: Unit System | F9: 1
B10: Units | C10: =[3]!heunit(Input1,Units) ->  | D10: =[3]!heunit(Input2,Units) -> 
B12: 2 | C12: Error Message
B13: 3
B15: Property | C15: Property | E15: Property
B16: Index | C16: Name | D16: Value | E16: Units
B17: 0 | C17: =[3]!heProperty(B17) ->  | D17: =[3]!hecalc(B17,0,Input1,Value1,Input2,Value2,Units) ->  | E17: =[3]!heunit(B17,Units) ->  | H17: =D17 -> 
B18: 1 | C18: =[3]!heProperty(B18) ->  | D18: =[3]!hecalc(B18,0,Input1,Value1,Input2,Value2,Units) ->  | E18: =[3]!heunit(B18,Units) -> 
B19: 2 | C19: =[3]!heProperty(B19) ->  | D19: =[3]!hecalc(B19,0,Input1,Value1,Input2,Value2,Units) ->  | E19: =[3]!heunit(B19,Units) -> 
B20: 3 | C20: =[3]!heProperty(B20) ->  | D20: =[3]!hecalc(B20,0,Input1,Value1,Input2,Value2,Units) ->  | E20: =[3]!heunit(B20,Units) -> 
B21: 4 | C21: =[3]!heProperty(B21) ->  | D21: =[3]!hecalc(B21,0,Input1,Value1,Input2,Value2,Units) ->  | E21: =[3]!heunit(B21,Units) -> 
B22: 5 | C22: =[3]!heProperty(B22) ->  | D22: =[3]!hecalc(B22,0,Input1,Value1,Input2,Value2,Units) ->  | E22: =[3]!heunit(B22,Units) -> 
B23: 6 | C23: =[3]!heProperty(B23) ->  | D23: =[3]!hecalc(B23,0,Input1,Value1,Input2,Value2,Units) ->  | E23: =[3]!heunit(B23,Units) -> 
B24: 7 | C24: =[3]!heProperty(B24) ->  | D24: =[3]!hecalc(B24,0,Input1,Value1,Input2,Value2,Units) ->  | E24: =[3]!heunit(B24,Units) -> 
B25: 8 | C25: =[3]!heProperty(B25) ->  | D25: =[3]!hecalc(B25,0,Input1,Value1,Input2,Value2,Units) ->  | E25: =[3]!heunit(B25,Units) -> 
B26: 9 | C26: =[3]!heProperty(B26) ->  | D26: =[3]!hecalc(B26,0,Input1,Value1,Input2,Value2,Units) ->  | E26: =[3]!heunit(B26,Units) ->  | I26: 9407.923752
B27: 10 | C27: =[3]!heProperty(B27) ->  | D27: =[3]!hecalc(B27,0,Input1,Value1,Input2,Value2,Units) ->  | E27: =[3]!heunit(B27,Units) -> 
B28: 11 | C28: =[3]!heProperty(B28) ->  | D28: =[3]!hecalc(B28,0,Input1,Value1,Input2,Value2,Units) ->  | E28: =[3]!heunit(B28,Units) -> 
B29: 12 | C29: =[3]!heProperty(B29) ->  | D29: =[3]!hecalc(B29,0,Input1,Value1,Input2,Value2,Units) ->  | E29: =[3]!heunit(B29,Units) -> 
B30: 13 | C30: =[3]!heProperty(B30) ->  | D30: =[3]!hecalc(B30,0,Input1,Value1,Input2,Value2,Units) -> 
B31: 14 | C31: =[3]!heProperty(B31) ->  | D31: =[3]!hecalc(B31,0,Input1,Value1,Input2,Value2,Units) ->  | E31: =[3]!heunit(B31,Units) -> 
B32: 15 | C32: =[3]!heProperty(B32) ->  | D32: =[3]!hecalc(B32,0,Input1,Value1,Input2,Value2,Units) ->  | E32: =[3]!heunit(B32,Units) -> 
B33: 16 | C33: =[3]!heProperty(B33) ->  | D33: =[3]!hecalc(B33,0,Input1,Value1,Input2,Value2,Units) ->  | E33: =[3]!heunit(B33,Units) -> 
B34: 17 | C34: =[3]!heProperty(B34) ->  | D34: =[3]!hecalc(B34,0,Input1,Value1,Input2,Value2,Units) ->  | E34: =[3]!heunit(B34,Units) -> 
B35: 18 | C35: =[3]!heProperty(B35) ->  | D35: =[3]!hecalc(B35,0,Input1,Value1,Input2,Value2,Units) ->  | E35: =[3]!heunit(B35,Units) -> 
B36: 19 | C36: =[3]!heProperty(B36) ->  | D36: =[3]!hecalc(B36,0,Input1,Value1,Input2,Value2,Units) ->  | E36: =[3]!heunit(B36,Units) ->  | I36: =[3]!hecalc(19,0,1,Value1,2,Value2,1) -> 
B37: 20 | C37: =[3]!heProperty(B37) ->  | D37: =[3]!hecalc(B37,0,Input1,Value1,Input2,Value2,Units) ->  | E37: =[3]!heunit(B37,Units) ->  | I37: =[3]!hecalc(20,0,1,P,2,T,1) -> 
B38: 21 | C38: =[3]!heProperty(B38) ->  | D38: =[3]!hecalc(B38,0,Input1,Value1,Input2,Value2,Units) ->  | E38: =[3]!heunit(B38,Units) -> 
B39: 22 | C39: =[3]!heProperty(B39) ->  | D39: =[3]!hecalc(B39,0,Input1,Value1,Input2,Value2,Units) ->  | E39: =[3]!heunit(B39,Units) -> 
B40: 23 | C40: =[3]!heProperty(B40) ->  | D40: =[3]!hecalc(B40,0,Input1,Value1,Input2,Value2,Units) ->  | E40: =[3]!heunit(B40,Units) -> 
B41: 24 | C41: =[3]!heProperty(B41) ->  | D41: =[3]!hecalc(B41,0,Input1,Value1,Input2,Value2,Units) ->  | E41: =[3]!heunit(B41,Units) -> 
B42: 25 | C42: =[3]!heProperty(B42) ->  | D42: =[3]!hecalc(B42,0,Input1,Value1,Input2,Value2,Units) ->  | E42: =[3]!heunit(B42,Units) -> 
B43: 26 | C43: =[3]!heProperty(B43) ->  | D43: =[3]!hecalc(B43,0,Input1,Value1,Input2,Value2,Units) ->  | E43: =[3]!heunit(B43,Units) -> 
B44: 27 | C44: =[3]!heProperty(B44) ->  | D44: =[3]!hecalc(B44,0,Input1,Value1,Input2,Value2,Units) ->  | E44: =[3]!heunit(B44,Units) -> 
B45: 28 | C45: =[3]!heProperty(B45) ->  | D45: =[3]!hecalc(B45,0,Input1,Value1,Input2,Value2,Units) ->  | E45: =[3]!heunit(B45,Units) -> 
B46: 29 | C46: =[3]!heProperty(B46) ->  | D46: =[3]!hecalc(B46,0,Input1,Value1,Input2,Value2,Units) ->  | E46: =[3]!heunit(B46,Units) -> 
B47: 30 | C47: =[3]!heProperty(B47) ->  | D47: =[3]!hecalc(B47,0,Input1,Value1,Input2,Value2,Units) ->  | E47: =[3]!heunit(B47,Units) -> 
B48: 31 | C48: =[3]!heProperty(B48) ->  | D48: =[3]!hecalc(B48,0,Input1,Value1,Input2,Value2,Units) ->  | E48: =[3]!heunit(B48,Units) -> 
B49: 32 | C49: =[3]!heProperty(B49) ->  | D49: =[3]!hecalc(B49,0,Input1,Value1,Input2,Value2,Units) ->  | E49: =[3]!heunit(B49,Units) -> 
B50: 33 | C50: =[3]!heProperty(B50) ->  | D50: =[3]!hecalc(B50,0,Input1,Value1,Input2,Value2,Units) ->  | E50: =[3]!heunit(B50,Units) -> 
B51: 34 | C51: =[3]!heProperty(B51) ->  | D51: =[3]!hecalc(B51,0,Input1,Value1,Input2,Value2,Units) ->  | E51: =[3]!heunit(B51,Units) -> 
B52: 35 | C52: =[3]!heProperty(B52) ->  | D52: =[3]!hecalc(B52,0,Input1,Value1,Input2,Value2,Units) ->  | E52: =[3]!heunit(B52,Units) -> 
B53: 36 | C53: =[3]!heProperty(B53) ->  | D53: =[3]!hecalc(B53,0,Input1,Value1,Input2,Value2,Units) ->  | E53: =[3]!heunit(B53,Units) -> 
B54: 37 | C54: =[3]!heProperty(B54) ->  | D54: =[3]!hecalc(B54,0,Input1,Value1,Input2,Value2,Units) ->  | E54: =[3]!heunit(B54,Units) -> 
B55: 38 | C55: =[3]!heProperty(B55) ->  | D55: =[3]!hecalc(B55,0,Input1,Value1,Input2,Value2,Units) ->  | E55: =[3]!heunit(B55,Units) -> 
B56: 39 | C56: =[3]!heProperty(B56) ->  | D56: =[3]!hecalc(B56,0,Input1,Value1,Input2,Value2,Units) ->  | E56: =[3]!heunit(B56,Units) -> 
B57: 40 | C57: reserved
B58: 41 | C58: =[3]!heProperty(B58) ->  | D58: Input only | E58: N/A
B59: 42 | C59: =[3]!heProperty(B59) ->  | D59: Input only | E59: N/A
B60: 43 | C60: =[3]!heProperty(B60) ->  | D60: Input only | E60: N/A
B61: 44 | C61: =[3]!heProperty(B61) ->  | D61: Input only | E61: N/A

Sheet Dump_Case_A (hidden)
B1: Case: | C1: 03-1800s\(03)-JT60-CALCULA-Case_A-RETOUR FIVE.HSC
B2: Flowsheet: | C2: Case (Main)
B3: Current Flowsheet Environment: | C3: Case (Main)
B5: Name | C5: Vapour Fraction | D5: Temperature | E5: Pressure | F5: Molar Flow | G5: Mass Flow | H5: Liquid Volume Flow | I5: Heat Flow
A6: 1 | C6: <none> | D6: K | E6: bar | F6: Nm3/h(gas) | G6: g/s | H6: m3/h | I6: W*
B8: HP1-2 | C8: 1 | D8: 306.0354216 | E8: 15.43 | F8: 12848.12628 | G8: 637.3843176 | H8: 18.49515966 | I8: 1016046.397
B9: LP2 | C9: 1 | D9: 78.18467947 | E9: 1.265 | F9: 11867.08647 | G9: 588.7157895 | H9: 17.08293132 | I9: 239188.186
B10: HP3-2 | C10: 1 | D10: 40.04703866 | E10: 13.41 | F10: 8458.77502 | G10: 419.632437 | H10: 12.17659222 | I10: 87414.45827
B11: LP3 | C11: 1 | D11: 37.175959 | E11: 1.28 | F11: 11867.08647 | G11: 588.7157895 | H11: 17.08293132 | I11: 113626.1249
B12: T1Inlet | C12: 1 | D12: 40.04849997 | E12: 14.77 | F12: 3859.206874 | G12: 191.4518806 | H12: 5.555412961 | I12: 39894.13856
B13: MP4 | C13: 1 | D13: 31.10556047 | E13: 6.357497281 | F13: 3853.159599 | G13: 191.1518806 | H13: 5.546707777 | I13: 30718.84708
B14: HP4 | C14: 1 | D14: 31.2167802 | E14: 13.39 | F14: 8458.77502 | G14: 419.632437 | H14: 12.17659222 | I14: 67392.47038
B15: MP5 | C15: 1 | D15: 18.20669086 | E15: 6.307497281 | F15: 3853.159599 | G15: 191.1518806 | H15: 5.546707777 | I15: 17318.45968
B16: LP5 | C16: 1 | D16: 17.05257408 | E16: 1.3 | F16: 11867.08647 | G16: 588.7157895 | H16: 17.08293132 | I16: 51566.20769
B17: HP6 | C17: 1 | D17: 11.64421199 | E17: 13.16 | F17: 8458.77502 | G17: 419.632437 | H17: 12.17659222 | I17: 18561.04243
B18: LP6 | C18: 1 | D18: 11.51774128 | E18: 1.33 | F18: 8019.974142 | G18: 397.8639089 | H18: 11.54492873 | I18: 23062.89178
B19: HP7 | C19: 1 | D19: 7.290196131 | E19: 13.15 | F19: 8458.77502 | G19: 419.632437 | H19: 12.17659222 | I19: 5401.858361
B20: LP7 | C20: 1 | D20: 6.009904373 | E20: 1.335 | F20: 8019.974142 | G20: 397.8639089 | H20: 11.54492873 | I20: 10562.96025
B21: HP7-4 | C21: 1 | D21: 6.119846319 | E21: 4.88 | F21: 8040.906341 | G21: 398.902337 | H21: 11.57506109 | I21: 3065.450769
B22: LP8 | C22: 1 | D22: 4.78427342 | E22: 1.34 | F22: 8019.974142 | G22: 397.8639089 | H22: 11.54492873 | I22: 7017.863957
B23: JT2-3 | C23: 0.1846529823 | D23: 4.299666428 | E23: 1.089 | F23: 1855.725688 | G23: 92.06092975 | H23: 2.67135784 | I23: -100.2212197
B24: LHe 3,6K | C24: 0 | D24: 3.601771594 | E24: 0.53 | F24: 0 | G24: 0 | H24: 0 | I24: 0
B25: HP5 | C25: 1 | D25: 18.20669086 | E25: 13.37 | F25: 8458.77502 | G25: 419.632437 | H25: 12.17659222 | I25: 36433.19976
B26: GHe 4,3K | C26: 1 | D26: 4.300587218 | E26: 1.089 | F26: 8027.979138 | G26: 398.2610297 | H26: 11.55645209 | I26: 6149.383406
B27: LHe 4,3K | C27: 0 | D27: 4.300587218 | E27: 1.089 | F27: 0 | G27: 0 | H27: 0 | I27: 0
B28: GHe 3,6K | C28: 1 | D28: 3.601771594 | E28: 0.53 | F28: 470.5063168 | G28: 23.34140722 | H28: 0.6773041654 | I28: 347.8176049
B29: HP8-3 | C29: 0 | D29: 4.908573302 | E29: 4.86 | F29: 8040.906341 | G29: 398.902337 | H29: 11.57506109 | I29: -434.2610795
B30: HP8-5 | C30: 0 | D30: 4.908573302 | E30: 4.86 | F30: 6185.180653 | G30: 306.8414072 | H30: 8.903703245 | I30: -334.0398599
B31: VLP0 | C31: 0.1692622314 | D31: 3.601310611 | E31: 0.53 | F31: 470.5063168 | G31: 23.34140722 | H31: 0.6773041654 | I31: -97.91442852
B32: MP | C32: 1 | D32: 1167.997691 | E32: 16 | F32: 13542.72224 | G32: 671.8426159 | H32: 19.49504577 | I32: 4077535.304
B33: MP-1 | C33: 1 | D33: 306 | E33: 16 | F33: 13542.72224 | G33: 671.8426159 | H33: 19.49504577 | I33: 1070975.94
B34: TS_inlet | C34: 1 | D34: 79.32561961 | E34: 15 | F34: 8566.972108 | G34: 425 | H34: 12.3323443 | I34: 176636.1075
B35: TS_outlet | C35: 1 | D35: 99.28787818 | E35: 13.5 | F35: 8566.972108 | G35: 425 | H35: 12.3323443 | I35: 220736.1076
B36: To Comp LP | C36: 1 | D36: 299.2357524 | E36: 1.05 | F36: 13542.72224 | G36: 671.8426159 | H36: 19.49504577 | I36: 1044138.496
B37: LIN-a | C37: 0 | D37: 78.45665878 | E37: 1.15 | F37: 624.4115967 | G37: 216.7747633 | H37: 0.9677756542 | I37: -25824.75205
B38: GAN-b | C38: 1 | D38: 78.08355758 | E38: 1.1 | F38: 663.7523727 | G38: 230.4325612 | H38: 1.02874993 | I38: 17924.10821
B39: HP2-5 | C39: 1 | D39: 79.32509503 | E39: 15.01 | F39: 12848.12628 | G39: 637.3843176 | H39: 18.49515966 | I39: 264905.9112
B40: to_CL-1 | C40: 1 | D40: 79.25609521 | E40: 13.41 | F40: 132.9180261 | G40: 6.593947125 | H40: 0.1913384147 | I40: 2735.549462
B41: CL_inlet | C41: 1 | D41: 49.99999952 | E41: 4 | F41: 530.1443916 | G41: 26.3 | H41: 0.7631544825 | I41: 6840.556094
B42: CL_outlet | C42: 1 | D42: 300 | E42: 1.05 | F42: 530.1443916 | G42: 26.3 | H42: 0.7631544825 | I42: 40978.28929
B43: GAN-c | C43: 1 | D43: 298.3642337 | E43: 1.05 | F43: 663.7523727 | G43: 230.4325612 | H43: 1.02874993 | I43: 71307.41516
B44: After Comp | C44: 1 | D44: 306.0310716 | E44: 15.5 | F44: 13542.72224 | G44: 671.8426159 | H44: 19.49504577 | I44: 1070975.94
B45: LPbypass | C45: 1 | D45: 306.0310716 | E45: 15.5 | F45: 406.2816672 | G45: 20.15527848 | H45: 0.5848513732 | I45: 32129.27821
B46: Paliers | C46: 1 | D46: 306.0310716 | E46: 15.5 | F46: 241.8909772 | G46: 12 | H46: 0.3482073684 | I46: 19129.05044
B47: Recycle | C47: 1 | D47: 307 | E47: 1.05 | F47: 268.7005605 | G47: 13.33 | H47: 0.3868003518 | I47: 21254.11582
B48: To recycle | C48: 1 | D48: 277.311564 | E48: 1.33 | F48: 268.7005605 | G48: 13.33 | H48: 0.3868003518 | I48: 19200.41322
B49: T1Outlet | C49: 1 | D49: 31.10556047 | E49: 6.357497281 | F49: 3859.206874 | G49: 191.4518806 | H49: 5.555412961 | I49: 30767.05825
B50: T1Leak | C50: 1 | D50: 31.10556047 | E50: 6.357497281 | F50: 6.047274429 | G50: 0.3 | H50: 0.008705184211 | I50: 48.21116118
B51: T2Outlet-1 | C51: 1 | D51: 11.6110007 | E51: 1.33 | F51: 3853.159599 | G51: 191.1518806 | H51: 5.546707777 | I51: 11177.1437
B52: T2Leak | C52: 1 | D52: 11.6110007 | E52: 1.33 | F52: 6.047274429 | G52: 0.3 | H52: 0.008705184211 | I52: 17.54177411
B53: T3Outlet | C53: 1 | D53: 6.119846319 | E53: 4.88 | F53: 8055.621375 | G53: 399.632337 | H53: 11.5962437 | I53: 3071.060611
B54: T3Leak | C54: 1 | D54: 6.119846319 | E54: 4.88 | F54: 14.71503444 | G54: 0.73 | H54: 0.02118261491 | I54: 5.609841943
B55: ColdComp_Outlet | C55: 1 | D55: 4.789091169 | E55: 1.35 | F55: 8019.974142 | G55: 397.8639089 | H55: 11.54492873 | I55: 7002.863957
B56: VLP9-1 | C56: 1 | D56: 3.661071246 | E56: 0.53 | F56: 470.5063168 | G56: 23.34140722 | H56: 0.6773041654 | I56: 357.8176049
B57: HP9 | C57: 0 | D57: 4.15388602 | E57: 4.77 | F57: 470.5063168 | G57: 23.34140722 | H57: 0.6773041654 | I57: -97.91442852
B58: VLP8 | C58: 1 | D58: 4.100618076 | E58: 0.51 | F58: 470.5063168 | G58: 23.34140722 | H58: 0.6773041654 | I58: 429.9658363
B59: HP2-9 | C59: 1 | D59: 79.26204662 | E59: 13.43 | F59: 8856.001385 | G59: 439.3384898 | H59: 12.74840828 | I59: 182278.7713
B60: HP2_TS-2 | C60: 1 | D60: 79.25467548 | E60: 13.44 | F60: 8566.972108 | G60: 425 | H60: 12.3323443 | I60: 176314.5047
B61: HP8-4 | C61: 0 | D61: 4.908573302 | E61: 4.86 | F61: 1855.725688 | G61: 92.06092975 | H61: 2.67135784 | I61: -100.2212197
B62: VLP7 | C62: 1 | D62: 6.009911875 | E62: 0.495 | F62: 470.5063168 | G62: 23.34140722 | H62: 0.6773041654 | I62: 690.9210288
B63: VLP6 | C63: 1 | D63: 11.51780796 | E63: 0.49 | F63: 470.5063168 | G63: 23.34140722 | H63: 0.6773041654 | I63: 1380.173574
B64: VLP5 | C64: 1 | D64: 17.05258587 | E64: 0.475 | F64: 470.5063168 | G64: 23.34140722 | H64: 0.6773041654 | I64: 2058.596019
B65: VLP4 | C65: 1 | D65: 30.89522017 | E65: 0.47 | F65: 470.5063168 | G65: 23.34140722 | H65: 0.6773041654 | I65: 3742.960646
B66: VLP3 | C66: 1 | D66: 37.17595907 | E66: 0.465 | F66: 470.5063168 | G66: 23.34140722 | H66: 0.6773041654 | I66: 4505.49901
B67: LP | C67: 1 | D67: 550.2947817 | E67: 1.18 | F67: 568.6325358 | G67: 28.2093632 | H67: 0.8185590104 | I67: 80616.73226
B68: CryoPumps_Inlet | C68: 0 | D68: 3.7 | E68: 4.7 | F68: 5714.674336 | G68: 283.5 | H68: 8.226399079 | I68: -1619.980832
B69: CryoPumps_Outlet | C69: 0 | D69: 3.87272132 | E69: 4.2 | F69: 5714.674336 | G69: 283.5 | H69: 8.226399079 | I69: -1538.080832
B70: LP9-2 | C70: 0 | D70: 4.100625374 | E70: 4.195 | F70: 5714.674336 | G70: 283.5 | H70: 8.226399079 | I70: -1317.781819
B71: HP9-1 | C71: 0 | D71: 4.15388602 | E71: 4.77 | F71: 5714.674336 | G71: 283.5 | H71: 8.226399079 | I71: -1189.248798
B72: HP1 | C72: 1 | D72: 306.0310716 | E72: 15.5 | F72: 12848.12628 | G72: 637.3843176 | H72: 18.49515966 | I72: 1016046.397
B73: LP-4 | C73: 1 | D73: 298.7804789 | E73: 1.05 | F73: 12337.59278 | G73: 612.0571967 | H73: 17.76023548 | I73: 949776.5889
B74: To Comp VLP | C74: 1 | D74: 299.9361409 | E74: 0.35 | F74: 568.6325358 | G74: 28.2093632 | H74: 0.8185590104 | I74: 43937.55437
B75: to_TS | C75: 1 | D75: 79.32561961 | E75: 15 | F75: 8566.972108 | G75: 425 | H75: 12.3323443 | I75: 176636.1075
B76: to_CL-2 | C76: 1 | D76: 79.25467548 | E76: 13.44 | F76: 132.9180261 | G76: 6.593947125 | H76: 0.1913384147 | I76: 2735.549462
B77: HP2-7 | C77: 1 | D77: 79.32698841 | E77: 14.97 | F77: 4281.154176 | G77: 212.3843176 | H77: 6.16281536 | I77: 88269.91756
B78: HP2-8 | C78: 1 | D78: 79.32698841 | E78: 14.97 | F78: 3859.206874 | G78: 191.4518806 | H78: 5.555412961 | I78: 79570.10155
B79: HP5-1 | C79: 1 | D79: 18.23210104 | E79: 13.19 | F79: 8458.77502 | G79: 419.632437 | H79: 12.17659222 | I79: 36533.19976
B80: Piston | C80: 1 | D80: 4.300587218 | E80: 1.089 | F80: -8.004995858 | G80: -0.3971208493 | H80: -0.01152336716 | I80: -6.131778352
B81: To Buffer | C81: 1 | D81: 306.0310716 | E81: 15.5 | F81: 46.42330959 | G81: 2.303019821 | H81: 0.06682737262 | I81: 3671.215193
B82: VLP8-1 | C82: 1 | D82: 4.192849136 | E82: 0.5 | F82: 470.5063168 | G82: 23.34140722 | H82: 0.6773041654 | I82: 444.9658363
B83: HP2-4 | C83: 1 | D83: 79.25467548 | E83: 15.23 | F83: 12848.12628 | G83: 637.3843176 | H83: 18.49515966 | I83: 264705.9112
B84: CP1_Inlet | C84: 0 | D84: 4.400587218 | E84: 4.44 | F84: 12753.70177 | G84: 632.7 | H84: 18.3592335 | I84: -2162.417154
B85: CP1_Outlet | C85: 0 | D85: 4.592516264 | E85: 5.364 | F85: 12753.70177 | G85: 632.7 | H85: 18.3592335 | I85: -1447.039182
B86: TF_Inlet | C86: 0 | D86: 4.400587218 | E86: 5.327 | F86: 12955.27759 | G86: 642.7 | H86: 18.64940631 | I86: -1957.866111
B87: TF_Outlet | C87: 0 | D87: 5.127239158 | E87: 4.477 | F87: 12955.27759 | G87: 642.7 | H87: 18.64940631 | I87: -30.9861114
B88: HP9-0 | C88: 0 | D88: 4.15388602 | E88: 4.77 | F88: 6185.180653 | G88: 306.8414072 | H88: 8.903703245 | I88: -1287.163227
B89: CP2_Inlet | C89: 0 | D89: 4.400587218 | E89: 4.556 | F89: 19351.27817 | G89: 960 | H89: 27.85658948 | I89: -3235.926049
B90: CP2_outlet | C90: 0 | D90: 4.559866577 | E90: 5.499 | F90: 19351.27817 | G90: 960 | H90: 27.85658948 | I90: -2267.97637
B91: PF_Inlet | C91: 0 | D91: 4.400587218 | E91: 5.429 | F91: 19552.85399 | G91: 970 | H91: 28.14676228 | I91: -2911.974737
B92: PF_Outlet | C92: 0 | D92: 5.130497351 | E92: 4.629 | F92: 19552.85399 | G92: 970 | H92: 28.14676228 | I92: -15.54473668
B93: HP8-6 | C93: 0 | D93: 4.400587218 | E93: 4.79 | F93: 6185.180653 | G93: 306.8414072 | H93: 8.903703245 | I93: -1004.715982
B94: MP6 | C94: 1 | D94: 11.6110007 | E94: 1.33 | F94: 3847.112325 | G94: 190.8518806 | H94: 5.538002592 | I94: 11159.60192
B95: LP9-3 | C95: 0.009686110166 | D95: 4.297089131 | E95: 1.089 | F95: 5714.674336 | G95: 283.5 | H95: 8.226399079 | I95: -1317.781819
B96: HP3-3 | C96: 1 | D96: 40.04703866 | E96: 14.95 | F96: 3859.206874 | G96: 191.4518806 | H96: 5.555412961 | I96: 39894.13856
B97: GHe1-3 | C97: 0.9980790247 | D97: 4.283463732 | E97: 1.069 | F97: 8019.974142 | G97: 397.8639089 | H97: 11.54492873 | I97: 6143.251627
B98: T3Inlet | C98: 1 | D98: 7.291540171 | E98: 13.07 | F98: 8055.621375 | G98: 399.632337 | H98: 11.5962437 | I98: 5144.40041
B99: LP-1 | C99: 1 | D99: 307 | E99: 1.13 | F99: 568.6325358 | G99: 28.2093632 | H99: 0.8185590104 | I99: 44979.35285
B100: VLP1-1 | C100: 1 | D100: 298.4528386 | E100: 0.35 | F100: 470.5063168 | G100: 23.34140722 | H100: 0.6773041654 | I100: 36175.68084
B101: VLPbypass | C101: 1 | D101: 307 | E101: 1.13 | F101: 98.126219 | G101: 4.867955976 | H101: 0.141254845 | I101: 7761.873531
B102: VLP-2 | C102: 1 | D102: 307.0484413 | E102: 0.35 | F102: 98.126219 | G102: 4.867955976 | H102: 0.141254845 | I102: 7761.873531
B103: Conso.liq | C103: 0 | D103: 4.299366515 | E103: 1.089 | F103: 54.42546986 | G103: 2.7 | H103: 0.07834665789 | I103: -13.04564202
B104: HP2-6 | C104: 1 | D104: 79.32509503 | E104: 15.01 | F104: 4281.154176 | G104: 212.3843176 | H104: 6.16281536 | I104: 88269.91756
B105: From_Buffer | C105: 1 | D105: 307 | E105: 1.05 | F105: 0 | G105: 0 | H105: 0 | I105: 0
B106: LPbypass-2 | C106: 1 | D106: 306.0310716 | E106: 15.5 | F106: 406.2845027 | G106: 20.15541915 | H106: 0.5848554551 | I106: 32129.50246
B107: LPbypass-3 | C107: 1 | D107: 306.9287887 | E107: 1.05 | F107: 406.2845027 | G107: 20.15541915 | H107: 0.5848554551 | I107: 32129.50246
B108: GHe | C108: 1 | D108: 4.300587093 | E108: 1.089 | F108: 8019.974142 | G108: 397.8639089 | H108: 11.54492873 | I108: 6143.251627
B109: LP6-2 | C109: 1 | D109: 11.54796709 | E109: 1.33 | F109: 11867.08647 | G109: 588.7157895 | H109: 17.08293132 | I109: 34222.4937
B110: LP4 | C110: 1 | D110: 30.89521016 | E110: 1.29 | F110: 11867.08647 | G110: 588.7157895 | H110: 17.08293132 | I110: 94336.67541
B111: HP3-4 | C111: 1 | D111: 40.04703866 | E111: 13.41 | F111: 397.2263655 | G111: 19.70605287 | H111: 0.5718160678 | I111: 4105.006632
B112: HP2_TS-3 | C112: 1 | D112: 79.25467548 | E112: 13.44 | F112: 8434.054082 | G112: 418.4060529 | H112: 12.14100588 | I112: 173578.9552
B113: HP3-1 | C113: 1 | D113: 40.04703866 | E113: 13.41 | F113: 8856.001385 | G113: 439.3384898 | H113: 12.74840828 | I113: 91519.46491
B114: bypass | C114: 1 | D114: 79.39992678 | E114: 13.43 | F114: 421.9473028 | G114: 20.93243697 | H114: 0.6074023994 | I114: 8699.816006
B115: bypass-2 | C115: 1 | D115: 79.32698841 | E115: 14.97 | F115: 421.9473028 | G115: 20.93243697 | H115: 0.6074023994 | I115: 8699.816006
B116: T2Outlet | C116: 1 | D116: 11.61605233 | E116: 1.35 | F116: 3853.159599 | G116: 191.1518806 | H116: 5.546707777 | I116: 11177.1437
B117: HP8 | C117: 0 | D117: 4.9 | E117: 4.87 | F117: 8040.906341 | G117: 398.902337 | H117: 11.57506109 | I117: -449.2610795
B118: LP-3 | C118: 1 | D118: 298.7755007 | E118: 1.13 | F118: 12337.59278 | G118: 612.0571967 | H118: 17.76023548 | I118: 949776.5889
B119: HP8-1 | C119: 0 | D119: 4.9 | E119: 8.145 | F119: 403.1536444 | G119: 20.0001 | H119: 0.5803485158 | I119: 1.118312153
B120: HP7-2 | C120: 1 | D120: 7.117430732 | E120: 8.15 | F120: 403.1536444 | G120: 20.0001 | H120: 0.5803485158 | I120: 257.457951
B121: HP7-3 | C121: 1 | D121: 7.290196131 | E121: 13.15 | F121: 8055.621375 | G121: 399.632337 | H121: 11.5962437 | I121: 5144.40041
B122: to_damper | C122: 0.246513016 | D122: 4.298320219 | E122: 1.089 | F122: 0.002015758143 | G122: 0.0001 | H122: 2.90172807e-06 | I122: 1.559148281e-05
B123: 22 | C123: <empty> | D123: <empty> | E123: <empty> | F123: <empty> | G123: <empty> | H123: <empty> | I123: <empty>
B124: WaterInlet | C124: <empty> | D124: 303 | E124: <empty> | F124: <empty> | G124: <empty> | H124: <empty> | I124: <empty>
B125: LP-2 | C125: 1 | D125: 307 | E125: 1.13 | F125: 470.5063168 | G125: 23.34140722 | H125: 0.6773041654 | I125: 37217.47932
B126: HP_BP1-b | C126: 1 | D126: 306.0354216 | E126: 15.43 | F126: 910.3531225 | G126: 45.16182289 | H126: 1.310473292 | I126: 71991.89899
B127: HP_BP1-a | C127: 1 | D127: 306.0416358 | E127: 15.33 | F127: 910.3531225 | G127: 45.16182289 | H127: 1.310473292 | I127: 71991.89899
B128: HP_BP1 | C128: 1 | D128: 306.0416358 | E128: 15.33 | F128: 910.3531225 | G128: 45.16182289 | H128: 1.310473292 | I128: 71991.89899
B129: HP2_MEF | C129: 1 | D129: 87.3032627 | E129: 15.345 | F129: 0 | G129: 0 | H129: 0 | I129: 0
B130: HP2_MEF-2 | C130: 1 | D130: 87.30402083 | E130: 15.33 | F130: 0 | G130: 0 | H130: 0 | I130: 0
B131: HP2-1 | C131: 1 | D131: 87.3032627 | E131: 15.345 | F131: 11937.77316 | G131: 592.2224947 | H131: 17.18468637 | I131: 270872.3472
B132: HP2-2 | C132: 1 | D132: 87.306548 | E132: 15.28 | F132: 11937.77316 | G132: 592.2224947 | H132: 17.18468637 | I132: 270872.3472
B133: HP_BP2 | C133: 1 | D133: 78.71355769 | E133: 15.28 | F133: 910.3531225 | G133: 45.16182289 | H133: 1.310473292 | I133: 18628.47819
B134: HP2-3 | C134: 1 | D134: 86.6972296 | E134: 15.28 | F134: 12848.12628 | G134: 637.3843176 | H134: 18.49515966 | I134: 289500.8254
B135: to_TS-3 | C135: 1 | D135: 79.32556837 | E135: 15 | F135: 8566.970093 | G135: 424.9999 | H135: 12.3323414 | I135: 176635.952
B136: HP_CD2-1 | C136: 1 | D136: 79.32509503 | E136: 15.01 | F136: 0.002015758143 | G136: 0.0001 | H136: 2.90172807e-06 | I136: 0.04156141026
B137: HP_CD2 | C137: 1 | D137: 79.32556837 | E137: 15 | F137: 0.002015758143 | G137: 0.0001 | H137: 2.90172807e-06 | I137: 0.04156141026
B138: HP_CD1 | C138: 1 | D138: 298.3642185 | E138: 15 | F138: 0.002015758143 | G138: 0.0001 | H138: 2.90172807e-06 | I138: 0.1554124136
B139: to_TS-2 | C139: 1 | D139: 79.32561961 | E139: 15 | F139: 8566.972108 | G139: 425 | H139: 12.3323443 | I139: 176636.1075
B140: bypass_TS | C140: 1 | D140: 79.32561961 | E140: 15 | F140: 0 | G140: 0 | H140: 0 | I140: 0
B141: bypass_TS-1 | C141: 1 | D141: 79.39666081 | E141: 13.5 | F141: 0 | G141: 0 | H141: 0 | I141: 0
B142: to_TS-4 | C142: 1 | D142: 79.32509503 | E142: 15.01 | F142: 8566.970093 | G142: 424.9999 | H142: 12.3323414 | I142: 176635.952
B143: bypass_HP_BP-2 | C143: 1 | D143: 87.92416746 | E143: 1.265 | F143: 0 | G143: 0 | H143: 0 | I143: 0
B144: HP2_TS | C144: 1 | D144: 87.30326212 | E144: 13.47 | F144: 8566.972108 | G144: 425 | H144: 12.3323443 | I144: 194177.3613
B145: bypass_HP_BP | C145: 1 | D145: 87.30326212 | E145: 13.47 | F145: 0 | G145: 0 | H145: 0 | I145: 0
B146: LIN | C146: 0.05927026033 | D146: 78.45665878 | E146: 1.15 | F146: 663.7523727 | G146: 230.4325612 | H146: 1.02874993 | I146: -24758.6626
B147: GAN-a | C147: 1 | D147: 78.0683292 | E147: 1.1 | F147: 624.4115967 | G147: 216.7747633 | H147: 0.9677756542 | I147: 16858.01876
B148: GAN | C148: 1 | D148: 78.45665878 | E148: 1.15 | F148: 39.34077592 | G148: 13.65779789 | H148: 0.06097427619 | I148: 1066.089446
B149: N2-a | C149: 0.005147853958 | D149: 83.59152185 | E149: 1.99 | F149: 663.7523727 | G149: 230.4325612 | H149: 1.02874993 | I149: -24758.6626
B150: N2 | C150: 0 | D150: 83.64404887 | E150: 2 | F150: 663.7523727 | G150: 230.4325612 | H150: 1.02874993 | I150: -24958.6626
B151: to_TS-1 | C151: 1 | D151: 79.32561961 | E151: 15 | F151: 8566.972108 | G151: 425 | H151: 12.3323443 | I151: 176636.1075
B152: HP_CD2-2 | C152: 1 | D152: 79.32561961 | E152: 15 | F152: 0 | G152: 0 | H152: 0 | I152: 0
B153: HP2_TS-4 | C153: 1 | D153: 79.25514872 | E153: 13.43 | F153: 8434.054082 | G153: 418.4060529 | H153: 12.14100588 | I153: 173578.9552
B154: HP_CD2-3 | C154: 1 | D154: 79.39997805 | E154: 13.43 | F154: 0 | G154: 0 | H154: 0 | I154: 0
B155: HP2-10 | C155: 1 | D155: 79.25514872 | E155: 13.43 | F155: 8434.054082 | G155: 418.4060529 | H155: 12.14100588 | I155: 173578.9552
B156: supply_loop | C156: 0 | D156: 4.926838033 | E156: 8.135 | F156: 403.1516286 | G156: 20 | H156: 0.5803456141 | I156: 3.118296562
B157: supply_loop1-1 | C157: 0 | D157: 5.140678391 | E157: 5.364 | F157: 201.5758143 | G157: 10 | H157: 0.290172807 | I157: 1.559148281
B158: CP1_outlet-2 | C158: 0 | D158: 4.601994415 | E158: 5.364 | F158: 12955.27759 | G158: 642.7 | H158: 18.64940631 | I158: -1445.480034
B159: supply_loop2 | C159: 0 | D159: 4.926838033 | E159: 8.135 | F159: 201.5758143 | G159: 10 | H159: 0.290172807 | I159: 1.559148281
B160: 2 | C160: 0 | D160: 4.566467715 | E160: 5.499 | F160: 19552.85399 | G160: 970 | H160: 28.14676228 | I160: -2266.417222
B161: HP8-2 | C161: 0 | D161: 4.926838033 | E161: 8.135 | F161: 0.002015758143 | G161: 0.0001 | H161: 2.90172807e-06 | I161: 1.559148281e-05
B162: supply_loop1 | C162: 0 | D162: 4.926838033 | E162: 8.135 | F162: 201.5758143 | G162: 10 | H162: 0.290172807 | I162: 1.559148281
B163: supply_loop2-2 | C163: 0 | D163: 5.134759005 | E163: 5.499 | F163: 201.5758143 | G163: 10 | H163: 0.290172807 | I163: 1.559148281
B164: return-1 | C164: 0 | D164: 4.400587218 | E164: 4.44 | F164: 201.5758143 | G164: 10 | H164: 0.290172807 | I164: -34.17760635
B165: return-2 | C165: 0 | D165: 4.400587218 | E165: 4.556 | F165: 201.5758143 | G165: 10 | H165: 0.290172807 | I165: -33.70756301
B166: return-3 | C166: 0 | D166: 4.40654693 | E166: 4.44 | F166: 403.1516286 | G166: 20 | H166: 0.5803456141 | I166: -67.88516936
B167: CD_return | C167: 0 | D167: 4.40654693 | E167: 4.44 | F167: 0 | G167: 0 | H167: 0 | I167: 0
B168: baking_return | C168: 0 | D168: 4.40654693 | E168: 4.44 | F168: 0 | G168: 0 | H168: 0 | I168: 0
B169: LP5-1 | C169: 1 | D169: 17.05257408 | E169: 1.3 | F169: 11867.08647 | G169: 588.7157895 | H169: 17.08293132 | I169: 51566.20769
B170: baking_return-1 | C170: 0.01332277691 | D170: 4.49753048 | E170: 1.3 | F170: 0 | G170: 0 | H170: 0 | I170: 0
B171: LP2-1 | C171: 1 | D171: 78.18467947 | E171: 1.265 | F171: 11867.08647 | G171: 588.7157895 | H171: 17.08293132 | I171: 239188.186
B172: CD_return-2 | C172: 0.02338452391 | D172: 4.466666321 | E172: 1.265 | F172: 0 | G172: 0 | H172: 0 | I172: 0
B173: CL_inlet-2 | C173: 1 | D173: 49.78137475 | E173: 13.41 | F173: 530.1443916 | G173: 26.3 | H173: 0.7631544825 | I173: 6840.556094
B174: return_4 | C174: 0 | D174: 4.40654693 | E174: 4.44 | F174: 0 | G174: 0 | H174: 0 | I174: 0
B175: return_damper | C175: 0 | D175: 4.40654693 | E175: 4.44 | F175: 403.1516286 | G175: 20 | H175: 0.5803456141 | I175: -67.88516936
B176: HP7-5 | C176: 1 | D176: 7.290196131 | E176: 13.15 | F176: 403.1536444 | G176: 20.0001 | H176: 0.5803485158 | I176: 257.457951
B177: return_damper-1 | C177: 0.07099177705 | D177: 4.299217138 | E177: 1.089 | F177: 403.1516286 | G177: 20 | H177: 0.5803456141 | I177: -67.88516936
B178: 1 | C178: 0 | D178: 4.926838033 | E178: 8.135 | F178: 403.1536444 | G178: 20.0001 | H178: 0.5803485158 | I178: 3.118312153
B179: CP1_inlet-1 | C179: 0 | D179: 4.400587218 | E179: 4.44 | F179: 12955.27759 | G179: 642.7 | H179: 18.64940631 | I179: -2196.59476
B180: CP2_Inlet-1 | C180: 0 | D180: 4.400587218 | E180: 4.556 | F180: 19552.85399 | G180: 970 | H180: 28.14676228 | I180: -3269.633612
B181: HP1-3 | C181: 1 | D181: 306.0354216 | E181: 15.43 | F181: 11937.77316 | G181: 592.2224947 | H181: 17.18468637 | I181: 944054.4976
B182: LP2-2 | C182: 1 | D182: 78.18467947 | E182: 1.265 | F182: 11867.08647 | G182: 588.7157895 | H182: 17.08293132 | I182: 239188.186
B183: VLP2 | C183: 1 | D183: 78.18467932 | E183: 0.455 | F183: 470.5063168 | G183: 23.34140722 | H183: 0.6773041654 | I183: 9478.707243
B184: HP1_TS | C184: 1 | D184: 99.28787818 | E184: 13.5 | F184: 8566.972108 | G184: 425 | H184: 12.3323443 | I184: 220736.1076
B185: HP2 | C185: 1 | D185: 87.3032627 | E185: 15.345 | F185: 11937.77316 | G185: 592.2224947 | H185: 17.18468637 | I185: 270872.3472
B186: LP1 | C186: 1 | D186: 298.4494158 | E186: 1.13 | F186: 11867.08647 | G186: 588.7157895 | H186: 17.08293132 | I186: 912559.1096
B187: VLP1 | C187: 1 | D187: 298.4494159 | E187: 0.405 | F187: 470.5063168 | G187: 23.34140722 | H187: 0.6773041654 | I187: 36175.68084
B188: HP2_TS-1 | C188: 1 | D188: 87.30326212 | E188: 13.47 | F188: 8566.972108 | G188: 425 | H188: 12.3323443 | I188: 194177.3613
B189: LP1a | C189: 1 | D189: 98.29 | E189: 1.13 | F189: 11867.08647 | G189: 588.7157895 | H189: 17.08293132 | I189: 300654.7433
B190: VLP1a | C190: 1 | D190: 98.29 | E190: 0.405 | F190: 470.5063168 | G190: 23.34140722 | H190: 0.6773041654 | I190: 11915.58219
B191: HP1a | C191: 1 | D191: 99.29 | E191: 15.43 | F191: 11937.77316 | G191: 592.2224947 | H191: 17.18468637 | I191: 307917.1296

Sheet Dump_Case_B (hidden)
B4: Case: | C4: 1800s\(03)-JT60-CALCULB-1800S-OFFCase_A.HSC
B5: Flowsheet: | C5: Case (Main)
B6: Current Flowsheet Environment: | C6: Case (Main)
B8: Name | C8: Vapour Fraction | D8: Temperature | E8: Pressure | F8: Molar Flow | G8: Mass Flow | H8: Liquid Volume Flow | I8: Heat Flow
C9: <none> | D9: K | E9: bar | F9: Nm3/h(gas) | G9: g/s | H9: m3/h | I9: W*
B11: HP1-2 | C11: 1 | D11: 306.0354216 | E11: 15.43 | F11: 12859.36439 | G11: 637.9418304 | H11: 18.51133717 | I11: 1016935.121
B12: LP2 | C12: 1 | D12: 78.22394232 | E12: 1.265 | F12: 11851.17767 | G12: 587.926568 | H12: 17.06003026 | I12: 238987.4729
B13: HP3-2 | C13: 1 | D13: 40.57485739 | E13: 13.41 | F13: 8495.865066 | G13: 421.4724417 | H13: 12.22998415 | I13: 88988.32788
B14: LP3 | C14: 1 | D14: 37.6932685 | E14: 1.28 | F14: 11851.17767 | G14: 587.926568 | H14: 17.06003026 | I14: 115058.9294
B15: T1Inlet | C15: 1 | D15: 40.57650781 | E15: 14.77 | F15: 3833.354938 | G15: 190.1693887 | H15: 5.518198532 | I15: 40165.74319
B16: MP4 | C16: 1 | D16: 31.5284704 | E16: 6.36442455 | F16: 3827.307663 | G16: 189.8693887 | H16: 5.509493348 | I16: 30940.52521
B17: HP4 | C17: 1 | D17: 31.78000895 | E17: 13.39 | F17: 8495.865066 | G17: 421.4724417 | H17: 12.22998415 | I17: 68984.43674
B18: MP5 | C18: 1 | D18: 18.46884574 | E18: 6.31442455 | F18: 3827.307663 | G18: 189.8693887 | H18: 5.509493348 | I18: 17480.84861
B19: LP5 | C19: 1 | D19: 17.29725874 | E19: 1.3 | F19: 11851.17767 | G19: 587.926568 | H19: 17.06003026 | I19: 52258.55672
B20: HP6 | C20: 1 | D20: 11.80606994 | E20: 13.16 | F20: 8495.865066 | G20: 421.4724417 | H20: 12.22998415 | I20: 19134.34911
B21: LP6 | C21: 1 | D21: 11.67181115 | E21: 1.33 | F21: 8029.917281 | G21: 398.3571793 | H21: 11.55924209 | I21: 23424.27611
B22: HP7 | C22: 1 | D22: 7.219573148 | E22: 13.15 | F22: 8495.865066 | G22: 421.4724417 | H22: 12.22998415 | I22: 5257.039685
B23: LP7 | C23: 1 | D23: 5.884428688 | E23: 1.335 | F23: 8029.917281 | G23: 398.3571793 | H23: 11.55924209 | I23: 10252.92675
B24: HP7-4 | C24: 1 | D24: 6.090604421 | E24: 4.88 | F24: 8077.996387 | G24: 400.7423417 | H24: 11.62845302 | I24: 2940.883928
B25: LP8 | C25: 1 | D25: 4.632190972 | E25: 1.34 | F25: 8029.917281 | G25: 398.3571793 | H25: 11.55924209 | I25: 6452.60775
B26: JT2-3 | C26: 0.08833885245 | D26: 4.510059702 | E26: 1.3135 | F26: 1885.368791 | G26: 93.53149818 | H26: 2.714029737 | I26: -178.5332874
B27: LHe 3,6K | C27: 0 | D27: 3.601771594 | E27: 0.53 | F27: 0 | G27: 0 | H27: 0 | I27: 0
B28: HP5 | C28: 1 | D28: 18.46884574 | E28: 13.37 | F28: 8495.865066 | G28: 421.4724417 | H28: 12.22998415 | I28: 37257.40337
B29: GHe 4,3K | C29: 1 | D29: 4.510440184 | E29: 1.3135 | F29: 8036.106539 | G29: 398.664223 | H29: 11.56815167 | I29: 6051.978906
B30: LHe 4,3K | C30: 0 | D30: 4.510440184 | E30: 1.3135 | F30: 0 | G30: 0 | H30: 0 | I30: 0
B31: GHe 3,6K | C31: 1 | D31: 3.601771594 | E31: 0.53 | F31: 477.9532601 | G31: 23.71084357 | H31: 0.6880242036 | I31: 353.3226914
B32: HP8-3 | C32: 0 | D32: 4.727383222 | E32: 4.86 | F32: 8077.996387 | G32: 400.7423417 | H32: 11.62845302 | I32: -764.9385402
B33: HP8-5 | C33: 0 | D33: 4.727383222 | E33: 4.86 | F33: 6192.627596 | G33: 307.2108436 | H33: 8.914423283 | I33: -586.4052528
B34: VLP0 | C34: 0.1702480931 | D34: 3.601382913 | E34: 0.53 | F34: 477.9532601 | G34: 23.71084357 | H34: 0.6880242036 | I34: -98.91967132
B35: MP | C35: 1 | D35: 1163.868383 | E35: 16 | F35: 13533.99625 | G35: 671.4097274 | H35: 19.48248453 | I35: 4060513.614
B36: MP-1 | C36: 1 | D36: 306 | E36: 16 | F36: 13533.99625 | G36: 671.4097274 | H36: 19.48248453 | I36: 1070285.878
B37: TS_inlet | C37: 1 | D37: 79.32556884 | E37: 15 | F37: 8566.972108 | G37: 425 | H37: 12.3323443 | I37: 176635.9946
B38: TS_outlet | C38: 1 | D38: 99.28782715 | E38: 13.5 | F38: 8566.972108 | G38: 425 | H38: 12.3323443 | I38: 220735.9946
B39: To Comp LP | C39: 1 | D39: 298.1777434 | E39: 1.05 | F39: 13533.99625 | G39: 671.4097274 | H39: 19.48248453 | I39: 1039777.2
B40: LIN-a | C40: 0 | D40: 78.45662764 | E40: 1.15 | F40: 645.9756884 | G40: 224.2610927 | H40: 1.001197844 | I40: -26716.62582
B41: GAN-b | C41: 1 | D41: 78.08351824 | E41: 1.1 | F41: 686.5685786 | G41: 238.3535827 | H41: 1.064112772 | I41: 18540.23124
B42: HP2-5 | C42: 1 | D42: 79.32504259 | E42: 15.01 | F42: 12859.36439 | G42: 637.9418304 | H42: 18.51133717 | I42: 265137.4464
B43: to_CL-1 | C43: 1 | D43: 79.25609521 | E43: 13.41 | F43: 127.402461 | G43: 6.320324757 | H43: 0.1833986376 | I43: 2622.035127
B44: CL_inlet | C44: 1 | D44: 49.99943921 | E44: 4 | F44: 530.1443916 | G44: 26.3 | H44: 0.7631544825 | I44: 6840.479123
B45: CL_outlet | C45: 1 | D45: 300 | E45: 1.05 | F45: 530.1443916 | G45: 26.3 | H45: 0.7631544825 | I45: 40978.28929
B46: GAN-c | C46: 1 | D46: 305.5461027 | E46: 1.05 | F46: 686.5685786 | G46: 238.3535827 | H46: 1.064112772 | I46: 75540.05679
B47: After Comp | C47: 1 | D47: 306.0310716 | E47: 15.5 | F47: 13533.99625 | G47: 671.4097274 | H47: 19.48248453 | I47: 1070285.878
B48: LPbypass | C48: 1 | D48: 306.0310716 | E48: 15.5 | F48: 406.0198876 | G48: 20.14229182 | H48: 0.5844745359 | I48: 32108.57635
B49: Paliers | C49: 1 | D49: 306.0310716 | E49: 15.5 | F49: 241.8909772 | G49: 12 | H49: 0.3482073684 | I49: 19129.05044
B50: Recycle | C50: 1 | D50: 307 | E50: 1.05 | F50: 268.7005605 | G50: 13.33 | H50: 0.3868003518 | I50: 21254.11582
B51: To recycle | C51: 1 | D51: 277.321722 | E51: 1.33 | F51: 268.7005605 | G51: 13.33 | H51: 0.3868003518 | I51: 19201.1163
B52: T1Outlet | C52: 1 | D52: 31.5284704 | E52: 6.36442455 | F52: 3833.354938 | G52: 190.1693887 | H52: 5.518198532 | I52: 30989.41228
B53: T1Leak | C53: 1 | D53: 31.5284704 | E53: 6.36442455 | F53: 6.047274429 | G53: 0.3 | H53: 0.008705184211 | I53: 48.88706721
B54: T2Outlet-1 | C54: 1 | D54: 11.7831731 | E54: 1.33 | F54: 3827.307663 | G54: 189.8693887 | H54: 5.509493348 | I54: 11279.27223
B55: T2Leak | C55: 1 | D55: 11.7831731 | E55: 1.33 | F55: 6.047274429 | G55: 0.3 | H55: 0.008705184211 | I55: 17.82162829
B56: T3Outlet | C56: 1 | D56: 6.090604421 | E56: 4.88 | F56: 8092.711421 | G56: 401.4723417 | H56: 11.64963564 | I56: 2946.241099
B57: T3Leak | C57: 1 | D57: 6.090604421 | E57: 4.88 | F57: 14.71503444 | G57: 0.73 | H57: 0.02118261491 | I57: 5.357171039
B58: ColdComp_Outlet | C58: 1 | D58: 4.638197639 | E58: 1.35 | F58: 8029.917281 | G58: 398.3571793 | H58: 11.55924209 | I58: 6437.60775
B59: VLP9-1 | C59: 1 | D59: 3.660135906 | E59: 0.53 | F59: 477.9532601 | G59: 23.71084357 | H59: 0.6880242036 | I59: 363.3226914
B60: HP9 | C60: 0 | D60: 4.1603689 | E60: 4.77 | F60: 477.9532601 | G60: 23.71084357 | H60: 0.6880242036 | I60: -98.91967132
B61: VLP8 | C61: 1 | D61: 4.309573595 | E61: 0.51 | F61: 477.9532601 | G61: 23.71084357 | H61: 0.6880242036 | I61: 467.763644
B62: HP2-9 | C62: 1 | D62: 79.26261433 | E62: 13.43 | F62: 8898.606996 | G62: 441.452117 | H62: 12.80974 | I62: 183157.0113
B63: HP2_TS-2 | C63: 1 | D63: 79.25467548 | E63: 13.44 | F63: 8566.972108 | G63: 425 | H63: 12.3323443 | I63: 176314.5047
B64: HP8-4 | C64: 0 | D64: 4.727383222 | E64: 4.86 | F64: 1885.368791 | G64: 93.53149818 | H64: 2.714029737 | I64: -178.5332874
B65: VLP7 | C65: 1 | D65: 5.884336119 | E65: 0.495 | F65: 477.9532601 | G65: 23.71084357 | H65: 0.6880242036 | I65: 685.3316586
B66: VLP6 | C66: 1 | D66: 11.67189733 | E66: 0.49 | F66: 477.9532601 | G66: 23.71084357 | H66: 0.6880242036 | I66: 1421.291717
B67: VLP5 | C67: 1 | D67: 17.29726116 | E67: 0.475 | F67: 477.9532601 | G67: 23.71084357 | H67: 0.6880242036 | I67: 2121.516549
B68: VLP4 | C68: 1 | D68: 31.41292834 | E68: 0.47 | F68: 477.9532601 | G68: 23.71084357 | H68: 0.6880242036 | I68: 3866.073225
B69: VLP3 | C69: 1 | D69: 37.69326898 | E69: 0.465 | F69: 477.9532601 | G69: 23.71084357 | H69: 0.6880242036 | I69: 4640.587442
B70: LP | C70: 1 | D70: 548.2717938 | E70: 1.18 | F70: 570.7303141 | G70: 28.31343215 | H70: 0.8215788083 | I70: 80616.72713
B71: CryoPumps_Inlet | C71: 0 | D71: 3.7 | E71: 4.7 | F71: 5714.674336 | G71: 283.5 | H71: 8.226399079 | I71: -1619.980832
B72: CryoPumps_Outlet | C72: 0 | D72: 3.87272132 | E72: 4.2 | F72: 5714.674336 | G72: 283.5 | H72: 8.226399079 | I72: -1538.080832
B73: LP9-2 | C73: 0 | D73: 4.309532582 | E73: 4.195 | F73: 5714.674336 | G73: 283.5 | H73: 8.226399079 | I73: -1097.99765
B74: HP9-1 | C74: 0 | D74: 4.1603689 | E74: 4.77 | F74: 5714.674336 | G74: 283.5 | H74: 8.226399079 | I74: -1182.738469
B75: HP1 | C75: 1 | D75: 306.0310716 | E75: 15.5 | F75: 12859.36439 | G75: 637.9418304 | H75: 18.51133717 | I75: 1016935.121
B76: LP-4 | C76: 1 | D76: 297.6189282 | E76: 1.05 | F76: 12329.13093 | G76: 611.6374116 | H76: 17.74805446 | I76: 945436.1797
B77: To Comp VLP | C77: 1 | D77: 298.8334711 | E77: 0.35 | F77: 570.7303141 | G77: 28.31343215 | H77: 0.8215788083 | I77: 43937.53399
B78: to_TS | C78: 1 | D78: 79.32556884 | E78: 15 | F78: 8566.972108 | G78: 425 | H78: 12.3323443 | I78: 176635.9946
B79: to_CL-2 | C79: 1 | D79: 79.25467548 | E79: 13.44 | F79: 127.402461 | G79: 6.320324757 | H79: 0.1833986376 | I79: 2622.035127
B80: HP2-7 | C80: 1 | D80: 79.32693597 | E80: 14.97 | F80: 4292.392287 | G80: 212.9418304 | H80: 6.178992866 | I80: 88501.56936
B81: HP2-8 | C81: 1 | D81: 79.32693597 | E81: 14.97 | F81: 3833.354938 | G81: 190.1693887 | H81: 5.518198532 | I81: 79037.02766
B82: HP5-1 | C82: 1 | D82: 18.4945619 | E82: 13.19 | F82: 8495.865066 | G82: 421.4724417 | H82: 12.22998415 | I82: 37357.40337
B83: Piston | C83: 1 | D83: 4.510440184 | E83: 1.3135 | F83: -6.189258139 | G83: -0.3070436878 | H83: -0.008909572876 | I83: -4.661120347
B84: To Buffer | C84: 1 | D84: 306.0310716 | E84: 15.5 | F84: 26.72099513 | G84: 1.325605218 | H84: 0.03846545872 | I84: 2113.130757
B85: VLP8-1 | C85: 1 | D85: 4.403777543 | E85: 0.5 | F85: 477.9532601 | G85: 23.71084357 | H85: 0.6880242036 | I85: 482.763644
B86: HP2-4 | C86: 1 | D86: 79.25467548 | E86: 15.23 | F86: 12859.36439 | G86: 637.9418304 | H86: 18.51133717 | I86: 264937.4464
B87: CP1_Inlet | C87: 0 | D87: 4.610440184 | E87: 6.164 | F87: 8949.966156 | G87: 444 | H87: 12.88367263 | I87: -839.7605922
B88: CP1_Outlet | C88: 0 | D88: 4.747888806 | E88: 6.702 | F88: 8949.966156 | G88: 444 | H88: 12.88367263 | I88: -503.319797
B89: TF_Inlet | C89: 0 | D89: 4.610440184 | E89: 6.683 | F89: 9151.54197 | G89: 454 | H89: 13.17384544 | I89: -758.6706279
B90: TF_Outlet | C90: 1 | D90: 5.779485149 | E90: 6.183 | F90: 9151.54197 | G90: 454 | H90: 13.17384544 | I90: 1717.169372
B91: HP9-0 | C91: 0 | D91: 4.1603689 | E91: 4.77 | F91: 6192.627596 | G91: 307.2108436 | H91: 8.914423283 | I91: -1281.65814
B92: CP2_Inlet | C92: 0 | D92: 4.610440184 | E92: 5.508 | F92: 19351.27817 | G92: 960 | H92: 27.85658948 | I92: -2072.133099
B93: CP2_outlet | C93: 0 | D93: 4.768829574 | E93: 6.451 | F93: 19351.27817 | G93: 960 | H93: 27.85658948 | I93: -1105.201598
B94: PF_Inlet | C94: 0 | D94: 4.610440184 | E94: 6.381 | F94: 19552.85399 | G94: 970 | H94: 28.14676228 | I94: -1746.105464
B95: PF_Outlet | C95: 1 | D95: 5.353796335 | E95: 5.581 | F95: 19552.85399 | G95: 970 | H95: 28.14676228 | I95: 1258.894536
B96: HP8-6 | C96: 0 | D96: 4.610440184 | E96: 4.79 | F96: 6192.627596 | G96: 307.2108436 | H96: 8.914423283 | I96: -747.1340064
B97: MP6 | C97: 1 | D97: 11.7831731 | E97: 1.33 | F97: 3821.260389 | G97: 189.5693887 | H97: 5.500788163 | I97: 11261.4506
B98: LP9-3 | C98: 0 | D98: 4.463118787 | E98: 1.3135 | F98: 5714.674336 | G98: 283.5 | H98: 8.226399079 | I98: -1097.99765
B99: HP3-3 | C99: 1 | D99: 40.57485739 | E99: 14.95 | F99: 3833.354938 | G99: 190.1693887 | H99: 5.518198532 | I99: 40165.74319
B100: GHe1-3 | C100: 0.9935079897 | D100: 4.45619618 | E100: 1.25 | F100: 8029.917281 | G100: 398.3571793 | H100: 11.55924209 | I100: 6047.317785
B101: T3Inlet | C101: 1 | D101: 7.22123567 | E101: 13.07 | F101: 8092.711421 | G101: 401.4723417 | H101: 11.64963564 | I101: 5007.577777
B102: LP-1 | C102: 1 | D102: 307 | E102: 1.13 | F102: 570.7303141 | G102: 28.31343215 | H102: 0.8215788083 | I102: 45145.28903
B103: VLP1-1 | C103: 1 | D103: 297.2388369 | E103: 0.35 | F103: 477.9532601 | G103: 23.71084357 | H103: 0.6880242036 | I103: 36598.78429
B104: VLPbypass | C104: 1 | D104: 307 | E104: 1.13 | F104: 92.77705398 | G104: 4.602588574 | H104: 0.1335546046 | I104: 7338.749693
B105: VLP-2 | C105: 1 | D105: 307.0484413 | E105: 0.35 | F105: 92.77705398 | G105: 4.602588574 | H105: 0.1335546046 | I105: 7338.749693
B106: Conso.liq | C106: 0 | D106: 4.509219481 | E106: 1.3135 | F106: 32.90976822 | G106: 1.632624843 | H106: 0.04737433335 | I106: -5.828566076
B107: HP2-6 | C107: 1 | D107: 79.32504259 | E107: 15.01 | F107: 4292.392287 | G107: 212.9418304 | H107: 6.178992866 | I107: 88501.56936
B108: From_Buffer | C108: 1 | D108: 307 | E108: 1.05 | F108: 0 | G108: 0 | H108: 0 | I108: 0
B109: LPbypass-2 | C109: 1 | D109: 306.0310716 | E109: 15.5 | F109: 406.0203727 | G109: 20.14231589 | H109: 0.5844752341 | I109: 32108.61471
B110: LPbypass-3 | C110: 1 | D110: 306.9287887 | E110: 1.05 | F110: 406.0203727 | G110: 20.14231589 | H110: 0.5844752341 | I110: 32108.61471
B111: GHe | C111: 1 | D111: 4.510439752 | E111: 1.3135 | F111: 8029.917281 | G111: 398.3571793 | H111: 11.55924209 | I111: 6047.317785
B112: LP6-2 | C112: 1 | D112: 11.7077084 | E112: 1.33 | F112: 11851.17767 | G112: 587.926568 | H112: 17.06003026 | I112: 34685.72671
B113: LP4 | C113: 1 | D113: 31.41292643 | E113: 1.29 | F113: 11851.17767 | G113: 587.926568 | H113: 17.06003026 | I113: 95799.55246
B114: HP3-4 | C114: 1 | D114: 40.57485739 | E114: 13.41 | F114: 402.7419307 | G114: 19.97967524 | H114: 0.5797558449 | I114: 4218.443996
B115: HP2_TS-3 | C115: 1 | D115: 79.25467548 | E115: 13.44 | F115: 8439.569647 | G115: 418.6796752 | H115: 12.14894566 | I115: 173692.4696
B116: HP3-1 | C116: 1 | D116: 40.57485739 | E116: 13.41 | F116: 8898.606996 | G116: 441.452117 | H116: 12.80974 | I116: 93206.77187
B117: bypass | C117: 1 | D117: 79.3998743 | E117: 13.43 | F117: 459.0373489 | G117: 22.77244175 | H117: 0.6607943345 | I117: 9464.541696
B118: bypass-2 | C118: 1 | D118: 79.32693597 | E118: 14.97 | F118: 459.0373489 | G118: 22.77244175 | H118: 0.6607943345 | I118: 9464.541696
B119: T2Outlet | C119: 1 | D119: 11.7881195 | E119: 1.35 | F119: 3827.307663 | G119: 189.8693887 | H119: 5.509493348 | I119: 11279.27223
B120: HP8 | C120: 0 | D120: 4.718 | E120: 4.87 | F120: 8077.996387 | G120: 400.7423417 | H120: 11.62845302 | I120: -779.9385402
B121: LP-3 | C121: 1 | D121: 297.6139487 | E121: 1.13 | F121: 12329.13093 | G121: 611.6374116 | H121: 17.74805446 | I121: 945436.1797
B122: HP8-1 | C122: 0 | D122: 4.718 | E122: 8.145 | F122: 403.1536444 | G122: 20.0001 | H122: 0.5803485158 | I122: -12.60264031
B123: HP7-2 | C123: 1 | D123: 7.070158574 | E123: 8.15 | F123: 403.1536444 | G123: 20.0001 | H123: 0.5803485158 | I123: 249.4619078
B124: HP7-3 | C124: 1 | D124: 7.219573148 | E124: 13.15 | F124: 8092.711421 | G124: 401.4723417 | H124: 11.64963564 | I124: 5007.577777
B125: to_damper | C125: 0.162571905 | D125: 4.508402114 | E125: 1.3135 | F125: 0.002015758143 | G125: 0.0001 | H125: 2.90172807e-06 | I125: -5.30129365e-05
B126: 22 | C126: <empty> | D126: <empty> | E126: <empty> | F126: <empty> | G126: <empty> | H126: <empty> | I126: <empty>
B127: WaterInlet | C127: <empty> | D127: 303 | E127: <empty> | F127: <empty> | G127: <empty> | H127: <empty> | I127: <empty>
B128: LP-2 | C128: 1 | D128: 307 | E128: 1.13 | F128: 477.9532601 | G128: 23.71084357 | H128: 0.6880242036 | I128: 37806.53934
B129: HP_BP1-b | C129: 1 | D129: 306.0354216 | E129: 15.43 | F129: 1017.353135 | G129: 50.47 | H129: 1.464502157 | I129: 80453.59797
B130: HP_BP1-a | C130: 1 | D130: 306.0416358 | E130: 15.33 | F130: 1017.353135 | G130: 50.47 | H130: 1.464502157 | I130: 80453.59797
B131: HP_BP1 | C131: 1 | D131: 306.0416358 | E131: 15.33 | F131: 1017.353135 | G131: 50.47 | H131: 1.464502157 | I131: 80453.59797
B132: HP2_MEF | C132: 1 | D132: 87.12065831 | E132: 15.345 | F132: 0 | G132: 0 | H132: 0 | I132: 0
B133: HP2_MEF-2 | C133: 1 | D133: 87.12141547 | E133: 15.33 | F133: 0 | G133: 0 | H133: 0 | I133: 0
B134: HP2-1 | C134: 1 | D134: 87.12065831 | E134: 15.345 | F134: 11842.01126 | G134: 587.4718304 | H134: 17.04683501 | I134: 268139.3781
B135: HP2-2 | C135: 1 | D135: 87.12393938 | E135: 15.28 | F135: 11842.01126 | G135: 587.4718304 | H135: 17.04683501 | I135: 268139.3781
B136: HP_BP2 | C136: 1 | D136: 88.78139276 | E136: 15.28 | F136: 1017.353135 | G136: 50.47 | H136: 1.464502157 | I136: 23472.68191
B137: HP2-3 | C137: 1 | D137: 87.25505016 | E137: 15.28 | F137: 12859.36439 | G137: 637.9418304 | H137: 18.51133717 | I137: 291612.06
B138: to_TS-3 | C138: 1 | D138: 79.32551593 | E138: 15 | F138: 8566.970093 | G138: 424.9999 | H138: 12.3323414 | I138: 176635.8355
B139: HP_CD2-1 | C139: 1 | D139: 79.32504259 | E139: 15.01 | F139: 0.002015758143 | G139: 0.0001 | H139: 2.90172807e-06 | I139: 0.04156138284
B140: HP_CD2 | C140: 1 | D140: 79.32551593 | E140: 15 | F140: 0.002015758143 | G140: 0.0001 | H140: 2.90172807e-06 | I140: 0.04156138284
B141: HP_CD1 | C141: 1 | D141: 305.5461548 | E141: 15 | F141: 0.002015758143 | G141: 0.0001 | H141: 2.90172807e-06 | I141: 0.1591408821
B142: to_TS-2 | C142: 1 | D142: 79.32556884 | E142: 15 | F142: 8566.972108 | G142: 425 | H142: 12.3323443 | I142: 176635.9946
B143: bypass_TS | C143: 1 | D143: 79.32556884 | E143: 15 | F143: 0 | G143: 0 | H143: 0 | I143: 0
B144: bypass_TS-1 | C144: 1 | D144: 79.39661 | E144: 13.5 | F144: 0 | G144: 0 | H144: 0 | I144: 0
B145: to_TS-4 | C145: 1 | D145: 79.32504259 | E145: 15.01 | F145: 8566.970093 | G145: 424.9999 | H145: 12.3323414 | I145: 176635.8355
B146: bypass_HP_BP-2 | C146: 1 | D146: 87.74076241 | E146: 1.265 | F146: 0 | G146: 0 | H146: 0 | I146: 0
B147: HP2_TS | C147: 1 | D147: 87.12065831 | E147: 13.47 | F147: 8566.972108 | G147: 425 | H147: 12.3323443 | I147: 193772.4318
B148: bypass_HP_BP | C148: 1 | D148: 87.12065831 | E148: 13.47 | F148: 0 | G148: 0 | H148: 0 | I148: 0
B149: LIN | C149: 0.05912430518 | D149: 78.45662764 | E149: 1.15 | F149: 686.5685786 | G149: 238.3535827 | H149: 1.064112772 | I149: -25616.60603
B150: GAN-a | C150: 1 | D150: 78.0683292 | E150: 1.1 | F150: 645.9756884 | G150: 224.2610927 | H150: 1.001197844 | I150: 17440.21144
B151: GAN | C151: 1 | D151: 78.45662764 | E151: 1.15 | F151: 40.59289017 | G151: 14.09248996 | H151: 0.0629149283 | I151: 1100.019795
B152: N2-a | C152: 0.00500509664 | D152: 83.59069674 | E152: 1.99 | F152: 686.5685786 | G152: 238.3535827 | H152: 1.064112772 | I152: -25616.60603
B153: N2 | C153: 0 | D153: 83.64404887 | E153: 2 | F153: 686.5685786 | G153: 238.3535827 | H153: 1.064112772 | I153: -25816.60603
B154: to_TS-1 | C154: 1 | D154: 79.32556884 | E154: 15 | F154: 8566.972108 | G154: 425 | H154: 12.3323443 | I154: 176635.9946
B155: HP_CD2-2 | C155: 1 | D155: 79.32556884 | E155: 15 | F155: 0 | G155: 0 | H155: 0 | I155: 0
B156: HP2_TS-4 | C156: 1 | D156: 79.25514872 | E156: 13.43 | F156: 8439.569647 | G156: 418.6796752 | H156: 12.14894566 | I156: 173692.4696
B157: HP_CD2-3 | C157: 1 | D157: 79.39992725 | E157: 13.43 | F157: 0 | G157: 0 | H157: 0 | I157: 0
B158: HP2-10 | C158: 1 | D158: 79.25514872 | E158: 13.43 | F158: 8439.569647 | G158: 418.6796752 | H158: 12.14894566 | I158: 173692.4696
B159: supply_loop | C159: 0 | D159: 4.746296983 | E159: 8.135 | F159: 403.1516286 | G159: 20 | H159: 0.5803456141 | I159: -10.6025873
B160: supply_loop1-1 | C160: 0 | D160: 4.897672055 | E160: 6.702 | F160: 201.5758143 | G160: 10 | H160: 0.290172807 | I160: -5.30129365
B161: CP1_outlet-2 | C161: 0 | D161: 4.751266069 | E161: 6.702 | F161: 9151.54197 | G161: 454 | H161: 13.17384544 | I161: -508.6210906
B162: supply_loop2 | C162: 0 | D162: 4.746296983 | E162: 8.135 | F162: 201.5758143 | G162: 10 | H162: 0.290172807 | I162: -5.30129365
B163: CP2_outlet-2 | C163: 0 | D163: 4.770426284 | E163: 6.451 | F163: 19552.85399 | G163: 970 | H163: 28.14676228 | I163: -1110.502892
B164: HP8-2 | C164: 0 | D164: 4.746296983 | E164: 8.135 | F164: 0.002015758143 | G164: 0.0001 | H164: 2.90172807e-06 | I164: -5.30129365e-05
B165: supply_loop1 | C165: 0 | D165: 4.746296983 | E165: 8.135 | F165: 201.5758143 | G165: 10 | H165: 0.290172807 | I165: -5.30129365
B166: supply_loop2-2 | C166: 0 | D166: 4.919922212 | E166: 6.451 | F166: 201.5758143 | G166: 10 | H166: 0.290172807 | I166: -5.30129365
B167: return-1 | C167: 0 | D167: 4.610440184 | E167: 6.164 | F167: 201.5758143 | G167: 10 | H167: 0.290172807 | I167: -18.91352685
B168: return-2 | C168: 0 | D168: 4.610440184 | E168: 5.508 | F168: 201.5758143 | G168: 10 | H168: 0.290172807 | I168: -21.58471978
B169: return-3 | C169: 0 | D169: 4.643664623 | E169: 5.508 | F169: 403.1516286 | G169: 20 | H169: 0.5803456141 | I169: -40.49824663
B170: CD_return | C170: 0 | D170: 4.643664623 | E170: 5.508 | F170: 0 | G170: 0 | H170: 0 | I170: 0
B171: baking_return | C171: 0 | D171: 4.643664623 | E171: 5.508 | F171: 0 | G171: 0 | H171: 0 | I171: 0
B172: LP5-1 | C172: 1 | D172: 17.29725874 | E172: 1.3 | F172: 11851.17767 | G172: 587.926568 | H172: 17.06003026 | I172: 52258.55672
B173: baking_return-1 | C173: 0.08566007428 | D173: 4.498475613 | E173: 1.3 | F173: 0 | G173: 0 | H173: 0 | I173: 0
B174: LP2-1 | C174: 1 | D174: 78.22394232 | E174: 1.265 | F174: 11851.17767 | G174: 587.926568 | H174: 17.06003026 | I174: 238987.4729
B175: CD_return-2 | C175: 0.09633922598 | D175: 4.46327507 | E175: 1.265 | F175: 0 | G175: 0 | H175: 0 | I175: 0
B176: CL_inlet-2 | C176: 1 | D176: 49.78082175 | E176: 13.41 | F176: 530.1443916 | G176: 26.3 | H176: 0.7631544825 | I176: 6840.479123
B177: return_4 | C177: 0 | D177: 4.643664623 | E177: 5.508 | F177: 0 | G177: 0 | H177: 0 | I177: 0
B178: return_damper | C178: 0 | D178: 4.643664623 | E178: 5.508 | F178: 403.1516286 | G178: 20 | H178: 0.5803456141 | I178: -40.49824663
B179: HP7-5 | C179: 1 | D179: 7.219573148 | E179: 13.15 | F179: 403.1536444 | G179: 20.0001 | H179: 0.5803485158 | I179: 249.4619078
B180: return_damper-1 | C180: 0.08235292663 | D180: 4.509513031 | E180: 1.3135 | F180: 403.1516286 | G180: 20 | H180: 0.5803456141 | I180: -40.49824663
B181: 1 | C181: 0 | D181: 4.746296983 | E181: 8.135 | F181: 403.1536444 | G181: 20.0001 | H181: 0.5803485158 | I181: -10.60264031
B182: CP1_inlet-1 | C182: 0 | D182: 4.610440184 | E182: 6.164 | F182: 9151.54197 | G182: 454 | H182: 13.17384544 | I182: -858.6741191
B183: CP2_Inlet-1 | C183: 0 | D183: 4.610440184 | E183: 5.508 | F183: 19552.85399 | G183: 970 | H183: 28.14676228 | I183: -2093.717819
B184: HP1-3 | C184: 1 | D184: 306.0354216 | E184: 15.43 | F184: 11842.01126 | G184: 587.4718304 | H184: 17.04683501 | I184: 936481.5229
B185: LP2-2 | C185: 1 | D185: 78.22394232 | E185: 1.265 | F185: 11851.17767 | G185: 587.926568 | H185: 17.06003026 | I185: 238987.4729
B186: VLP2 | C186: 1 | D186: 78.22395082 | E186: 0.455 | F186: 477.9532601 | G186: 23.71084357 | H186: 0.6880242036 | I186: 9633.567775
B187: HP1_TS | C187: 1 | D187: 99.28782715 | E187: 13.5 | F187: 8566.972108 | G187: 425 | H187: 12.3323443 | I187: 220735.9946
B188: HP2 | C188: 1 | D188: 87.12065831 | E188: 15.345 | F188: 11842.01126 | G188: 587.4718304 | H188: 17.04683501 | I188: 268139.3781
B189: LP1 | C189: 1 | D189: 297.2354131 | E189: 1.13 | F189: 11851.17767 | G189: 587.926568 | H189: 17.06003026 | I189: 907629.6404
B190: VLP1 | C190: 1 | D190: 297.2354132 | E190: 0.405 | F190: 477.9532601 | G190: 23.71084357 | H190: 0.6880242036 | I190: 36598.78429
B191: HP2_TS-1 | C191: 1 | D191: 87.12065831 | E191: 13.47 | F191: 8566.972108 | G191: 425 | H191: 12.3323443 | I191: 193772.4318
B192: LP1a | C192: 1 | D192: 97.97925863 | E192: 1.13 | F192: 11851.17767 | G192: 587.926568 | H192: 17.06003026 | I192: 299302.7646
B193: VLP1a | C193: 1 | D193: 97.9792431 | E193: 0.405 | F193: 477.9532601 | G193: 23.71084357 | H193: 0.6880242036 | I193: 12065.91166
B194: HP1a | C194: 1 | D194: 98.69622175 | E194: 15.43 | F194: 11842.01126 | G194: 587.4718304 | H194: 17.04683501 | I194: 303628.7499
B195: 3 | C195: <empty> | D195: <empty> | E195: <empty> | F195: 403.1516286 | G195: 20 | H195: 0.5803456141 | I195: <empty>
B196: 4 | C196: <empty> | D196: <empty> | E196: <empty> | F196: 403.1516286 | G196: 20 | H196: 0.5803456141 | I196: <empty>

Sheet Dump_Case_C (hidden)
B4: Case: | C4: 03-1800s\(03)-JT60-CALCULC-OFFCase_A.HSC
B5: Flowsheet: | C5: Case (Main)
B6: Current Flowsheet Environment: | C6: Case (Main)
B8: Name | C8: Vapour Fraction | D8: Temperature | E8: Pressure | F8: Molar Flow | G8: Mass Flow | H8: Liquid Volume Flow | I8: Heat Flow
C9: <none> | D9: K | E9: bar | F9: Nm3/h(gas) | G9: g/s | H9: m3/h | I9: W*
B11: HP1-2 | C11: 1 | D11: 306.0354216 | E11: 15.43 | F11: 12206.79484 | G11: 605.5684249 | H11: 17.57194897 | I11: 965329.0786
B12: LP2 | C12: 1 | D12: 78.59573863 | E12: 1.265 | F12: 10860.01369 | G12: 538.7557889 | H12: 15.63322796 | I12: 220040.6952
B13: HP3-2 | C13: 1 | D13: 45.04347565 | E13: 13.41 | F13: 7896.43486 | G13: 391.7352331 | H13: 11.36709122 | I13: 92044.59566
B14: LP3 | C14: 1 | D14: 41.90362579 | E14: 1.28 | F14: 10860.01369 | G14: 538.7557889 | H14: 15.63322796 | I14: 117252.9043
B15: T1Inlet | C15: 1 | D15: 45.04655617 | E15: 14.77 | F15: 3639.822729 | G15: 180.5684249 | H15: 5.239604672 | I15: 42452.58815
B16: MP4 | C16: 1 | D16: 35.02753636 | E16: 6.366932494 | F16: 3633.775454 | G16: 180.2684249 | H16: 5.230899487 | I16: 32727.22465
B17: HP4 | C17: 1 | D17: 36.07093766 | E17: 13.39 | F17: 7896.43486 | G17: 391.7352331 | H17: 11.36709122 | I17: 73233.69697
B18: MP5 | C18: 1 | D18: 20.34305922 | E18: 6.316932494 | F18: 3633.775454 | G18: 180.2684249 | H18: 5.230899487 | I18: 18477.1554
B19: LP5 | C19: 1 | D19: 18.95119587 | E19: 1.3 | F19: 10860.01369 | G19: 538.7557889 | H19: 15.63322796 | I19: 52595.54667
B20: HP6 | C20: 1 | D20: 13.06446348 | E20: 13.16 | F20: 7896.43486 | G20: 391.7352331 | H20: 11.36709122 | I20: 21239.24155
B21: LP6 | C21: 1 | D21: 12.9318574 | E21: 1.33 | F21: 7232.285506 | G21: 358.787364 | H21: 10.41103365 | I21: 23537.08608
B22: HP7 | C22: 1 | D22: 8.33104455 | E22: 13.15 | F22: 7896.43486 | G22: 391.7352331 | H22: 11.36709122 | I22: 7638.508529
B23: LP7 | C23: 1 | D23: 6.533938278 | E23: 1.335 | F23: 7232.285506 | G23: 358.787364 | H23: 10.41103365 | I23: 10702.11705
B24: HP7-4 | C24: 1 | D24: 6.539297092 | E24: 4.88 | F24: 7478.566182 | G24: 371.0051331 | H24: 10.76556009 | I24: 4935.826643
B25: LP8 | C25: 1 | D25: 4.784733558 | E25: 1.34 | F25: 7232.285506 | G25: 358.787364 | H25: 10.41103365 | I25: 6330.07167
B26: JT2-3 | C26: 0.3223637253 | D26: 4.299555746 | E26: 1.089 | F26: 1293.385529 | G26: 64.16372586 | H26: 1.861856844 | I26: 109.1340775
B27: LHe 3,6K | C27: 0 | D27: 3.601771594 | E27: 0.53 | F27: 0 | G27: 0 | H27: 0 | I27: 0
B28: HP5 | C28: 1 | D28: 20.34305922 | E28: 13.37 | F28: 7896.43486 | G28: 391.7352331 | H28: 11.36709122 | I28: 38978.31634
B29: GHe 4,3K | C29: 1 | D29: 4.300587218 | E29: 1.089 | F29: 7201.4302 | G29: 357.2566592 | H29: 10.36661676 | I29: 5516.251924
B30: LHe 4,3K | C30: 0 | D30: 4.300587218 | E30: 1.089 | F30: 0 | G30: 0 | H30: 0 | I30: 0
B31: GHe 3,6K | C31: 1 | D31: 3.601771594 | E31: 0.53 | F31: 470.5063168 | G31: 23.34140722 | H31: 0.6773041654 | I31: 347.8176049
B32: HP8-3 | C32: 1 | D32: 5.425292746 | E32: 4.86 | F32: 7478.566182 | G32: 371.0051331 | H32: 10.76556009 | I32: 631.0310444
B33: HP8-5 | C33: 1 | D33: 5.425292746 | E33: 4.86 | F33: 6185.180653 | G33: 306.8414072 | H33: 8.903703245 | I33: 521.8969669
B34: VLP0 | C34: 0.1692622314 | D34: 3.601310611 | E34: 0.53 | F34: 470.5063168 | G34: 23.34140722 | H34: 0.6773041654 | I34: -97.91442852
B35: MP | C35: 1 | D35: 1169.68661 | E35: 16 | F35: 12833.69719 | G35: 636.6685029 | H35: 18.47438866 | I35: 3869639.994
B36: MP-1 | C36: 1 | D36: 306 | E36: 16 | F36: 12833.69719 | G36: 636.6685029 | H36: 18.47438866 | I36: 1014905.325
B37: TS_inlet | C37: 1 | D37: 79.32877434 | E37: 15 | F37: 8566.972108 | G37: 425 | H37: 12.3323443 | I37: 176643.1176
B38: TS_outlet | C38: 1 | D38: 99.29104403 | E38: 13.5 | F38: 8566.972108 | G38: 425 | H38: 12.3323443 | I38: 220743.1177
B39: To Comp LP | C39: 1 | D39: 299.6684866 | E39: 1.05 | F39: 12833.69719 | G39: 636.6685029 | H39: 18.47438866 | I39: 990903.5219
B40: LIN-a | C40: 0 | D40: 78.45657037 | E40: 1.15 | F40: 689.7900716 | G40: 239.471977 | H40: 1.069105765 | I40: -28528.75406
B41: GAN-b | C41: 1 | D41: 78.08344586 | E41: 1.1 | F41: 732.9270343 | G41: 254.4476836 | H41: 1.135963752 | I41: 19792.08321
B42: HP2-5 | C42: 1 | D42: 79.32824807 | E42: 15.01 | F42: 12206.79484 | G42: 605.5684249 | H42: 17.57194897 | I42: 251692.7607
B43: to_CL-1 | C43: 1 | D43: 79.25609521 | E43: 13.41 | F43: 74.06118698 | G43: 3.674110767 | H43: 0.1066127035 | I43: 1524.232989
B44: CL_inlet | C44: 1 | D44: 49.99999496 | E44: 4 | F44: 530.1443916 | G44: 26.3 | H44: 0.7631544825 | I44: 6840.555469
B45: CL_outlet | C45: 1 | D45: 300 | E45: 1.05 | F45: 530.1443916 | G45: 26.3 | H45: 0.7631544825 | I45: 40978.28929
B46: GAN-c | C46: 1 | D46: 305.5414373 | E46: 1.05 | F46: 732.9270343 | G46: 254.4476836 | H46: 1.135963752 | I46: 80639.43402
B47: After Comp | C47: 1 | D47: 306.0310716 | E47: 15.5 | F47: 12833.69719 | G47: 636.6685029 | H47: 18.47438866 | I47: 1014905.325
B48: LPbypass | C48: 1 | D48: 306.0310716 | E48: 15.5 | F48: 385.0109157 | G48: 19.10005509 | H48: 0.5542316599 | I48: 30447.15976
B49: Paliers | C49: 1 | D49: 306.0310716 | E49: 15.5 | F49: 241.8909772 | G49: 12 | H49: 0.3482073684 | I49: 19129.05044
B50: Recycle | C50: 1 | D50: 307 | E50: 1.05 | F50: 268.7005605 | G50: 13.33 | H50: 0.3868003518 | I50: 21254.11582
B51: To recycle | C51: 1 | D51: 277.4944603 | E51: 1.33 | F51: 268.7005605 | G51: 13.33 | H51: 0.3868003518 | I51: 19213.07253
B52: T1Outlet | C52: 1 | D52: 35.02753636 | E52: 6.366932494 | F52: 3639.822729 | G52: 180.5684249 | H52: 5.239604672 | I52: 32781.68881
B53: T1Leak | C53: 1 | D53: 35.02753636 | E53: 6.366932494 | F53: 6.047274429 | G53: 0.3 | H53: 0.008705184211 | I53: 54.46415478
B54: T2Outlet-1 | C54: 1 | D54: 13.03453023 | E54: 1.33 | F54: 3633.775454 | G54: 180.2684249 | H54: 5.230899487 | I54: 11925.40054
B55: T2Leak | C55: 1 | D55: 13.03453023 | E55: 1.33 | F55: 6.047274429 | G55: 0.3 | H55: 0.008705184211 | I55: 19.84607211
B56: T3Outlet | C56: 1 | D56: 6.539297092 | E56: 4.88 | F56: 7493.281216 | G56: 371.7351331 | H56: 10.7867427 | I56: 4945.538512
B57: T3Leak | C57: 1 | D57: 6.539297092 | E57: 4.88 | F57: 14.71503444 | G57: 0.73 | H57: 0.02118261491 | I57: 9.711869535
B58: ColdComp_Outlet | C58: 1 | D58: 4.789091169 | E58: 1.35 | F58: 7232.285506 | G58: 358.787364 | H58: 10.41103365 | I58: 6315.07167
B59: VLP9-1 | C59: 1 | D59: 3.661071246 | E59: 0.53 | F59: 470.5063168 | G59: 23.34140722 | H59: 0.6773041654 | I59: 357.8176049
B60: HP9 | C60: 0 | D60: 4.15388602 | E60: 4.77 | F60: 470.5063168 | G60: 23.34140722 | H60: 0.6773041654 | I60: -97.91442852
B61: VLP8 | C61: 1 | D61: 4.100618078 | E61: 0.51 | F61: 470.5063168 | G61: 23.34140722 | H61: 0.6773041654 | I61: 429.9658363
B62: HP2-9 | C62: 1 | D62: 79.25514872 | E62: 13.43 | F62: 8352.518065 | G62: 414.3611223 | H62: 12.023633 | I62: 171900.8848
B63: HP2_TS-2 | C63: 1 | D63: 79.25467548 | E63: 13.44 | F63: 8426.579252 | G63: 418.0352331 | H63: 12.1302457 | I63: 173425.1178
B64: HP8-4 | C64: 1 | D64: 5.425292746 | E64: 4.86 | F64: 1293.385529 | G64: 64.16372586 | H64: 1.861856844 | I64: 109.1340775
B65: VLP7 | C65: 1 | D65: 6.533956538 | E65: 0.495 | F65: 470.5063168 | G65: 23.34140722 | H65: 0.6773041654 | I65: 758.2678258
B66: VLP6 | C66: 1 | D66: 12.93192359 | E66: 0.49 | F66: 470.5063168 | G66: 23.34140722 | H66: 0.6773041654 | I66: 1554.031821
B67: VLP5 | C67: 1 | D67: 18.95119406 | E67: 0.475 | F67: 470.5063168 | G67: 23.34140722 | H67: 0.6773041654 | I67: 2290.20005
B68: VLP4 | C68: 1 | D68: 35.47032345 | E68: 0.47 | F68: 470.5063168 | G68: 23.34140722 | H68: 0.6773041654 | I68: 4298.467051
B69: VLP3 | C69: 1 | D69: 41.90362611 | E69: 0.465 | F69: 470.5063168 | G69: 23.34140722 | H69: 0.6773041654 | I69: 5079.190992
B70: LP | C70: 1 | D70: 550.7873585 | E70: 1.18 | F70: 568.1240807 | G70: 28.18413919 | H70: 0.8178270781 | I70: 80616.7335
B71: CryoPumps_Inlet | C71: 0 | D71: 3.7 | E71: 4.7 | F71: 5714.674336 | G71: 283.5 | H71: 8.226399079 | I71: -1619.980832
B72: CryoPumps_Outlet | C72: 0 | D72: 3.87272132 | E72: 4.2 | F72: 5714.674336 | G72: 283.5 | H72: 8.226399079 | I72: -1538.080832
B73: LP9-2 | C73: 0 | D73: 4.100625374 | E73: 4.195 | F73: 5714.674336 | G73: 283.5 | H73: 8.226399079 | I73: -1317.781819
B74: HP9-1 | C74: 0 | D74: 4.15388602 | E74: 4.77 | F74: 5714.674336 | G74: 283.5 | H74: 8.226399079 | I74: -1189.248798
B75: HP1 | C75: 1 | D75: 306.0310716 | E75: 15.5 | F75: 12206.79484 | G75: 605.5684249 | H75: 17.57194897 | I75: 965329.0786
B76: LP-4 | C76: 1 | D76: 299.1233824 | E76: 1.05 | F76: 11470.91286 | G76: 569.061963 | H76: 16.51263072 | I76: 884070.7811
B77: To Comp VLP | C77: 1 | D77: 300.2046297 | E77: 0.35 | F77: 568.1240807 | G77: 28.18413919 | H77: 0.8178270781 | I77: 43937.55931
B78: to_TS | C78: 1 | D78: 79.32877434 | E78: 15 | F78: 8566.972108 | G78: 425 | H78: 12.3323443 | I78: 176643.1176
B79: to_CL-2 | C79: 1 | D79: 79.25467548 | E79: 13.44 | F79: 74.06118698 | G79: 3.674110767 | H79: 0.1066127035 | I79: 1524.232989
B80: HP2-7 | C80: 1 | D80: 79.33014151 | E80: 14.97 | F80: 3639.822729 | G80: 180.5684249 | H80: 5.239604672 | I80: 75049.76068
B81: HP2-8 | C81: 1 | D81: 79.33014151 | E81: 14.97 | F81: 3639.822729 | G81: 180.5684249 | H81: 5.239604672 | I81: 75049.76068
B82: HP5-1 | C82: 1 | D82: 20.37501888 | E82: 13.19 | F82: 7896.43486 | G82: 391.7352331 | H82: 11.36709122 | I82: 39078.31634
B83: Piston | C83: 1 | D83: 4.300587218 | E83: 1.089 | F83: 30.85530593 | G83: 1.530704764 | H83: 0.04441688981 | I83: 23.63497749
B84: To Buffer | C84: 1 | D84: 306.0310716 | E84: 15.5 | F84: 0.0004611912232 | G84: 2.287929357e-05 | H84: 6.638948838e-07 | I84: 0.03647159673
B85: VLP8-1 | C85: 1 | D85: 4.192849128 | E85: 0.5 | F85: 470.5063168 | G85: 23.34140722 | H85: 0.6773041654 | I85: 444.9658363
B86: HP2-4 | C86: 1 | D86: 79.25467548 | E86: 15.23 | F86: 12206.79484 | G86: 605.5684249 | H86: 17.57194897 | I86: 251492.7607
B87: CP1_Inlet | C87: 0 | D87: 4.400587218 | E87: 3.93 | F87: 17658.04133 | G87: 876 | H87: 25.4191379 | I87: -3168.890943
B88: CP1_Outlet | C88: 0 | D88: 4.647354096 | E88: 5.37 | F88: 17658.04133 | G88: 876 | H88: 25.4191379 | I88: -1807.251965
B89: TF_Inlet | C89: 0 | D89: 4.400587218 | E89: 5.3 | F89: 17859.61715 | G89: 886 | H89: 25.7093107 | I89: -2709.376727
B90: TF_Outlet | C90: 0 | D90: 4.895887985 | E90: 4 | F90: 17859.61715 | G90: 886 | H90: 25.7093107 | I90: -1186.876727
B91: HP9-0 | C91: 0 | D91: 4.15388602 | E91: 4.77 | F91: 6185.180653 | G91: 306.8414072 | H91: 8.903703245 | I91: -1287.163227
B92: CP2_Inlet | C92: 0 | D92: 4.400587218 | E92: 3.93 | F92: 19351.27817 | G92: 960 | H92: 27.85658948 | I92: -3472.757198
B93: CP2_outlet | C93: 0 | D93: 4.562683275 | E93: 4.87 | F93: 19351.27817 | G93: 960 | H93: 27.85658948 | I93: -2495.327374
B94: PF_Inlet | C94: 0 | D94: 4.400587218 | E94: 4.8 | F94: 19552.85399 | G94: 970 | H94: 28.14676228 | I94: -3172.11301
B95: PF_Outlet | C95: 0 | D95: 4.676226289 | E95: 4 | F95: 19552.85399 | G95: 970 | H95: 28.14676228 | I95: -2332.11301
B96: HP8-6 | C96: 0 | D96: 4.400587218 | E96: 4.79 | F96: 6185.180653 | G96: 306.8414072 | H96: 8.903703245 | I96: -1004.715982
B97: MP6 | C97: 1 | D97: 13.03453023 | E97: 1.33 | F97: 3627.72818 | G97: 179.9684249 | H97: 5.222194303 | I97: 11905.55446
B98: LP9-3 | C98: 0.009670703024 | D98: 4.297144765 | E98: 1.089 | F98: 5714.674336 | G98: 283.5 | H98: 8.226399079 | I98: -1317.781819
B99: HP3-3 | C99: 1 | D99: 45.04347565 | E99: 14.95 | F99: 3639.822729 | G99: 180.5684249 | H99: 5.239604672 | I99: 42452.58815
B100: GHe1-3 | C100: 0.9980790247 | D100: 4.283463732 | E100: 1.069 | F100: 7232.285506 | G100: 358.787364 | H100: 10.41103365 | I100: 5539.886902
B101: T3Inlet | C101: 1 | D101: 8.327775747 | E101: 13.07 | F101: 7493.281216 | G101: 371.7351331 | H101: 10.7867427 | I101: 7248.523351
B102: LP-1 | C102: 1 | D102: 307 | E102: 1.13 | F102: 568.1240807 | G102: 28.18413919 | H102: 0.8178270781 | I102: 44939.13359
B103: VLP1-1 | C103: 1 | D103: 298.7847178 | E103: 0.35 | F103: 470.5063168 | G103: 23.34140722 | H103: 0.6773041654 | I103: 36215.90504
B104: VLPbypass | C104: 1 | D104: 307 | E104: 1.13 | F104: 97.61776391 | G104: 4.842731964 | H104: 0.1405229128 | I104: 7721.65427
B105: VLP-2 | C105: 1 | D105: 307.0484413 | E105: 0.35 | F105: 97.61776391 | G105: 4.842731964 | H105: 0.1405229128 | I105: 7721.65427
B106: Conso.liq | C106: 0 | D106: 4.299366515 | E106: 1.089 | F106: -209.7833094 | G106: -10.40716666 | H106: -0.3019876763 | I106: 50.28450767
B107: HP2-6 | C107: 1 | D107: 79.32824807 | E107: 15.01 | F107: 3639.822729 | G107: 180.5684249 | H107: 5.239604672 | I107: 75049.76068
B108: From_Buffer | C108: 1 | D108: 307 | E108: 1.05 | F108: 178.9284647 | G108: 8.876484774 | H108: 0.2575714504 | I108: 14153.17595
B109: LPbypass-2 | C109: 1 | D109: 306.0310716 | E109: 15.5 | F109: 385.0109157 | G109: 19.10005509 | H109: 0.5542316599 | I109: 30447.15976
B110: LPbypass-3 | C110: 1 | D110: 306.9287887 | E110: 1.05 | F110: 385.0109157 | G110: 19.10005509 | H110: 0.5542316599 | I110: 30447.15976
B111: GHe | C111: 1 | D111: 4.300587093 | E111: 1.089 | F111: 7232.285506 | G111: 358.787364 | H111: 10.41103365 | I111: 5539.886902
B112: LP6-2 | C112: 1 | D112: 12.96614844 | E112: 1.33 | F112: 10860.01369 | G112: 538.7557889 | H112: 15.63322796 | I112: 35442.64054
B113: LP4 | C113: 1 | D113: 35.47032197 | E113: 1.29 | F113: 10860.01369 | G113: 538.7557889 | H113: 15.63322796 | I113: 99192.72955
B114: HP3-4 | C114: 1 | D114: 45.04347565 | E114: 13.41 | F114: 456.0832047 | G114: 22.62588923 | H114: 0.656541779 | I114: 5316.32248
B115: HP2_TS-3 | C115: 1 | D115: 79.25467548 | E115: 13.44 | F115: 8352.518065 | G115: 414.3611223 | H115: 12.023633 | I115: 171900.8848
B116: HP3-1 | C116: 1 | D116: 45.04347565 | E116: 13.41 | F116: 8352.518065 | G116: 414.3611223 | H116: 12.023633 | I116: 97360.91814
B117: bypass | C117: 1 | D117: 79.40308209 | E117: 13.43 | F117: 0 | G117: 0 | H117: 0 | I117: 0
B118: bypass-2 | C118: 1 | D118: 79.33014151 | E118: 14.97 | F118: 0 | G118: 0 | H118: 0 | I118: 0
B119: T2Outlet | C119: 1 | D119: 13.03879544 | E119: 1.35 | F119: 3633.775454 | G119: 180.2684249 | H119: 5.230899487 | I119: 11925.40054
B120: HP8 | C120: 1 | D120: 5.419 | E120: 4.87 | F120: 7478.566182 | G120: 371.0051331 | H120: 10.76556009 | I120: 616.0310444
B121: LP-3 | C121: 1 | D121: 299.1184047 | E121: 1.13 | F121: 11470.91286 | G121: 569.061963 | H121: 16.51263072 | I121: 884070.7811
B122: HP8-1 | C122: 1 | D122: 5.419 | E122: 8.145 | F122: 403.1536444 | G122: 20.0001 | H122: 0.5803485158 | I122: 44.4334064
B123: HP7-2 | C123: 1 | D123: 7.846309274 | E123: 8.15 | F123: 403.1536444 | G123: 20.0001 | H123: 0.5803485158 | I123: 389.9851775
B124: HP7-3 | C124: 1 | D124: 8.33104455 | E124: 13.15 | F124: 7493.281216 | G124: 371.7351331 | H124: 10.7867427 | I124: 7248.523351
B125: to_damper | C125: 0.3531008884 | D125: 4.299271654 | E125: 1.089 | F125: 0.002015758143 | G125: 0.0001 | H125: 2.90172807e-06 | I125: 0.0002321658712
B126: 22 | C126: <empty> | D126: <empty> | E126: <empty> | F126: <empty> | G126: <empty> | H126: <empty> | I126: <empty>
B127: WaterInlet | C127: <empty> | D127: 303 | E127: <empty> | F127: <empty> | G127: <empty> | H127: <empty> | I127: <empty>
B128: LP-2 | C128: 1 | D128: 307 | E128: 1.13 | F128: 470.5063168 | G128: 23.34140722 | H128: 0.6773041654 | I128: 37217.47932
B129: HP_BP1-b | C129: 1 | D129: 306.0354216 | E129: 15.43 | F129: 1088.509397 | G129: 54 | H129: 1.566933158 | I129: 86080.72697
B130: HP_BP1-a | C130: 1 | D130: 306.0416358 | E130: 15.33 | F130: 1088.509397 | G130: 54 | H130: 1.566933158 | I130: 86080.72697
B131: HP_BP1 | C131: 1 | D131: 306.0416358 | E131: 15.33 | F131: 1088.509397 | G131: 54 | H131: 1.566933158 | I131: 86080.72697
B132: HP2_MEF | C132: 1 | D132: 87.9989225 | E132: 15.345 | F132: 0 | G132: 0 | H132: 0 | I132: 0
B133: HP2_MEF-2 | C133: 1 | D133: 87.99968431 | E133: 15.33 | F133: 0 | G133: 0 | H133: 0 | I133: 0
B134: HP2-1 | C134: 1 | D134: 87.9989225 | E134: 15.345 | F134: 11118.28544 | G134: 551.5684249 | H134: 16.00501581 | I134: 254281.1006
B135: HP2-2 | C135: 1 | D135: 88.00222372 | E135: 15.28 | F135: 11118.28544 | G135: 551.5684249 | H135: 16.00501581 | I135: 254281.1006
B136: HP_BP2 | C136: 1 | D136: 89.2697138 | E136: 15.28 | F136: 1088.509397 | G136: 54 | H136: 1.566933158 | I136: 25252.05483
B137: HP2-3 | C137: 1 | D137: 88.11523832 | E137: 15.28 | F137: 12206.79484 | G137: 605.5684249 | H137: 17.57194897 | I137: 279533.1554
B138: to_TS-3 | C138: 1 | D138: 79.32872143 | E138: 15 | F138: 8566.970093 | G138: 424.9999 | H138: 12.3323414 | I138: 176642.9585
B139: HP_CD2-1 | C139: 1 | D139: 79.32824807 | E139: 15.01 | F139: 0.002015758143 | G139: 0.0001 | H139: 2.90172807e-06 | I139: 0.04156305884
B140: HP_CD2 | C140: 1 | D140: 79.32872143 | E140: 15 | F140: 0.002015758143 | G140: 0.0001 | H140: 2.90172807e-06 | I140: 0.04156305884
B141: HP_CD1 | C141: 1 | D141: 305.5414459 | E141: 15 | F141: 0.002015758143 | G141: 0.0001 | H141: 2.90172807e-06 | I141: 0.1591384375
B142: to_TS-2 | C142: 1 | D142: 79.32877434 | E142: 15 | F142: 8566.972108 | G142: 425 | H142: 12.3323443 | I142: 176643.1176
B143: bypass_TS | C143: 1 | D143: 79.32877434 | E143: 15 | F143: 0 | G143: 0 | H143: 0 | I143: 0
B144: bypass_TS-1 | C144: 1 | D144: 79.39981769 | E144: 13.5 | F144: 0 | G144: 0 | H144: 0 | I144: 0
B145: to_TS-4 | C145: 1 | D145: 79.32824807 | E145: 15.01 | F145: 8566.970093 | G145: 424.9999 | H145: 12.3323414 | I145: 176642.9585
B146: bypass_HP_BP-2 | C146: 1 | D146: 88.62283898 | E146: 1.265 | F146: 140.3928562 | G146: 6.964766915 | H146: 0.2020985966 | I146: 3207.396573
B147: HP2_TS | C147: 1 | D147: 87.9989225 | E147: 13.47 | F147: 8426.579252 | G147: 418.0352331 | H147: 12.1302457 | I147: 192512.512
B148: bypass_HP_BP | C148: 1 | D148: 87.9989225 | E148: 13.47 | F148: 140.3928562 | G148: 6.964766915 | H148: 0.2020985966 | I148: 3207.396573
B149: LIN | C149: 0.05885573962 | D149: 78.45657037 | E149: 1.15 | F149: 732.9270343 | G149: 254.4476836 | H149: 1.135963752 | I149: -27359.79385
B150: GAN-a | C150: 1 | D150: 78.0683292 | E150: 1.1 | F150: 689.7900716 | G150: 239.471977 | H150: 1.069105765 | I150: 18623.123
B151: GAN | C151: 1 | D151: 78.45657037 | E151: 1.15 | F151: 43.13696269 | G151: 14.97570661 | H151: 0.06685798679 | I151: 1168.960212
B152: N2-a | C152: 0.004685227632 | D152: 83.59439681 | E152: 1.99 | F152: 732.9270343 | G152: 254.4476836 | H152: 1.135963752 | I152: -27359.79385
B153: N2 | C153: 0 | D153: 83.64404887 | E153: 2 | F153: 732.9270343 | G153: 254.4476836 | H153: 1.135963752 | I153: -27559.79385
B154: to_TS-1 | C154: 1 | D154: 79.32877434 | E154: 15 | F154: 8566.972108 | G154: 425 | H154: 12.3323443 | I154: 176643.1176
B155: HP_CD2-2 | C155: 1 | D155: 79.32877434 | E155: 15 | F155: 0 | G155: 0 | H155: 0 | I155: 0
B156: HP2_TS-4 | C156: 1 | D156: 79.25514872 | E156: 13.43 | F156: 8352.518065 | G156: 414.3611223 | H156: 12.023633 | I156: 171900.8848
B157: HP_CD2-3 | C157: 1 | D157: 79.40313504 | E157: 13.43 | F157: 0 | G157: 0 | H157: 0 | I157: 0
B158: HP2-10 | C158: 1 | D158: 79.25514872 | E158: 13.43 | F158: 8352.518065 | G158: 414.3611223 | H158: 12.023633 | I158: 171900.8848
B159: supply_loop | C159: 1 | D159: 5.44178154 | E159: 8.135 | F159: 403.1516286 | G159: 20 | H159: 0.5803456141 | I159: 46.43317423
B160: supply_loop1-1 | C160: 1 | D160: 5.532854901 | E160: 5.37 | F160: 201.5758143 | G160: 10 | H160: 0.290172807 | I160: 23.21658712
B161: CP1_outlet-2 | C161: 0 | D161: 4.659451675 | E161: 5.37 | F161: 17859.61715 | G161: 886 | H161: 25.7093107 | I161: -1784.035378
B162: supply_loop2 | C162: 1 | D162: 5.44178154 | E162: 8.135 | F162: 201.5758143 | G162: 10 | H162: 0.290172807 | I162: 23.21658712
B163: 2 | C163: 0 | D163: 4.575090018 | E163: 4.87 | F163: 19552.85399 | G163: 970 | H163: 28.14676228 | I163: -2472.110787
B164: HP8-2 | C164: 1 | D164: 5.44178154 | E164: 8.135 | F164: 0.002015758143 | G164: 0.0001 | H164: 2.90172807e-06 | I164: 0.0002321658712
B165: supply_loop1 | C165: 1 | D165: 5.44178154 | E165: 8.135 | F165: 201.5758143 | G165: 10 | H165: 0.290172807 | I165: 23.21658712
B166: supply_loop2-2 | C166: 1 | D166: 5.521240265 | E166: 4.87 | F166: 201.5758143 | G166: 10 | H166: 0.290172807 | I166: 23.21658712
B167: return-1 | C167: 0 | D167: 4.400587218 | E167: 3.93 | F167: 201.5758143 | G167: 10 | H167: 0.290172807 | I167: -36.17455414
B168: return-2 | C168: 0 | D168: 4.400587218 | E168: 3.93 | F168: 201.5758143 | G168: 10 | H168: 0.290172807 | I168: -36.17455414
B169: return-3 | C169: 0 | D169: 4.400587224 | E169: 3.93 | F169: 403.1516286 | G169: 20 | H169: 0.5803456141 | I169: -72.34910829
B170: CD_return | C170: 0 | D170: 4.400587224 | E170: 3.93 | F170: 0 | G170: 0 | H170: 0 | I170: 0
B171: baking_return | C171: 0 | D171: 4.400587224 | E171: 3.93 | F171: 0 | G171: 0 | H171: 0 | I171: 0
B172: LP5-1 | C172: 1 | D172: 18.95119587 | E172: 1.3 | F172: 10860.01369 | G172: 538.7557889 | H172: 15.63322796 | I172: 52595.54667
B173: baking_return-1 | C173: 0.001489437576 | D173: 4.497487252 | E173: 1.3 | F173: 0 | G173: 0 | H173: 0 | I173: 0
B174: LP2-1 | C174: 1 | D174: 78.59573863 | E174: 1.265 | F174: 10860.01369 | G174: 538.7557889 | H174: 15.63322796 | I174: 220040.6952
B175: CD_return-2 | C175: 0.01164010023 | D175: 4.466821758 | E175: 1.265 | F175: 0 | G175: 0 | H175: 0 | I175: 0
B176: CL_inlet-2 | C176: 1 | D176: 49.78137025 | E176: 13.41 | F176: 530.1443916 | G176: 26.3 | H176: 0.7631544825 | I176: 6840.555469
B177: return_4 | C177: 0 | D177: 4.400587224 | E177: 3.93 | F177: 0 | G177: 0 | H177: 0 | I177: 0
B178: return_damper | C178: 0 | D178: 4.400587224 | E178: 3.93 | F178: 403.1516286 | G178: 20 | H178: 0.5803456141 | I178: -72.34910829
B179: HP7-5 | C179: 1 | D179: 8.33104455 | E179: 13.15 | F179: 403.1536444 | G179: 20.0001 | H179: 0.5803485158 | I179: 389.9851775
B180: return_damper-1 | C180: 0.0601481707 | D180: 4.298614987 | E180: 1.089 | F180: 403.1516286 | G180: 20 | H180: 0.5803456141 | I180: -72.34910829
B181: 1 | C181: 1 | D181: 5.44178154 | E181: 8.135 | F181: 403.1536444 | G181: 20.0001 | H181: 0.5803485158 | I181: 46.4334064
B182: CP1_inlet-1 | C182: 0 | D182: 4.400587218 | E182: 3.93 | F182: 17859.61715 | G182: 886 | H182: 25.7093107 | I182: -3205.065497
B183: CP2_Inlet-1 | C183: 0 | D183: 4.400587218 | E183: 3.93 | F183: 19552.85399 | G183: 970 | H183: 28.14676228 | I183: -3508.931752
B184: HP1-3 | C184: 1 | D184: 306.0354216 | E184: 15.43 | F184: 11118.28544 | G184: 551.5684249 | H184: 16.00501581 | I184: 879248.3517
B185: LP2-2 | C185: 1 | D185: 78.72369812 | E185: 1.265 | F185: 11000.40654 | G185: 545.7205558 | H185: 15.83532655 | I185: 223248.0918
B186: VLP2 | C186: 1 | D186: 78.59573711 | E186: 0.455 | F186: 470.5063168 | G186: 23.34140722 | H186: 0.6773041654 | I186: 9528.539334
B187: TS_outlet-2 | C187: 1 | D187: 99.29104403 | E187: 13.5 | F187: 8566.972108 | G187: 425 | H187: 12.3323443 | I187: 220743.1177
B188: HP2 | C188: 1 | D188: 87.9989225 | E188: 15.345 | F188: 11118.28544 | G188: 551.5684249 | H188: 16.00501581 | I188: 254281.1006
B189: LP1 | C189: 1 | D189: 298.7812954 | E189: 1.13 | F189: 11000.40654 | G189: 545.7205558 | H189: 15.83532655 | I189: 846853.3018
B190: VLP1 | C190: 1 | D190: 298.7812953 | E190: 0.405 | F190: 470.5063168 | G190: 23.34140722 | H190: 0.6773041654 | I190: 36215.90504
B191: HP2_TS-1 | C191: 1 | D191: 87.9989225 | E191: 13.47 | F191: 8566.972108 | G191: 425 | H191: 12.3323443 | I191: 195719.9085
B192: LP1a | C192: 1 | D192: 98.62520915 | E192: 1.13 | F192: 11000.40654 | G192: 545.7205558 | H192: 15.83532655 | I192: 279647.4106
B193: VLP1a | C193: 1 | D193: 98.62520843 | E193: 0.405 | F193: 470.5063168 | G193: 23.34140722 | H193: 0.6773041654 | I193: 11956.21435
B194: HP1a | C194: 1 | D194: 99.64028387 | E194: 15.43 | F194: 11118.28544 | G194: 551.5684249 | H194: 16.00501581 | I194: 287786.7344

Sheet Dump_Case_D (hidden)
B4: Case: | C4: 03-1800s\(03)-JT60-CALCULD-OFFCase_A.hsc
B5: Flowsheet: | C5: Case (Main)
B6: Current Flowsheet Environment: | C6: Case (Main)
B8: Name | C8: Vapour Fraction | D8: Temperature | E8: Pressure | F8: Molar Flow | G8: Mass Flow | H8: Liquid Volume Flow | I8: Heat Flow
C9: <none> | D9: K | E9: bar | F9: Nm3/h(gas) | G9: g/s | H9: m3/h | I9: W*
B11: HP1-2 | C11: 1 | D11: 306.0354216 | E11: 15.43 | F11: 12096.96516 | G11: 600.1198705 | H11: 17.41384674 | I11: 956643.6059
B12: LP2 | C12: 1 | D12: 78.76547091 | E12: 1.265 | F12: 10343.73145 | G12: 513.1434783 | H12: 14.89002835 | I12: 210032.5517
B13: HP3-2 | C13: 1 | D13: 47.95265866 | E13: 13.41 | F13: 7599.22969 | G13: 376.9911443 | H13: 10.93925786 | I13: 94402.79584
B14: LP3 | C14: 1 | D14: 44.68039677 | E14: 1.28 | F14: 10343.73145 | G14: 513.1434783 | H14: 14.89002835 | I14: 119097.3526
B15: T1Inlet | C15: 1 | D15: 47.95652903 | E15: 14.77 | F15: 3529.993049 | G15: 175.1198705 | H15: 5.081502438 | I15: 43882.55805
B16: MP4 | C16: 1 | D16: 37.34377525 | E16: 6.392509308 | F16: 3523.945775 | G16: 174.8198705 | H16: 5.072797254 | I16: 33881.20766
B17: HP4 | C17: 1 | D17: 38.8963722 | E17: 13.39 | F17: 7599.22969 | G17: 376.9911443 | H17: 10.93925786 | I17: 76206.74647
B18: MP5 | C18: 1 | D18: 21.73297256 | E18: 6.342509308 | F18: 3523.945775 | G18: 174.8198705 | H18: 5.072797254 | I18: 19255.01317
B19: LP5 | C19: 1 | D19: 20.19918246 | E19: 1.3 | F19: 10343.73145 | G19: 513.1434783 | H19: 14.89002835 | I19: 53469.9816
B20: HP6 | C20: 1 | D20: 14.04145787 | E20: 13.16 | F20: 7599.22969 | G20: 376.9911443 | H20: 10.93925786 | I20: 22916.0114
B21: LP6 | C21: 1 | D21: 13.89497879 | E21: 1.33 | F21: 6825.832949 | G21: 338.6236078 | H21: 9.825936281 | I21: 23963.34194
B22: HP7 | C22: 1 | D22: 8.832961959 | E22: 13.15 | F22: 7599.22969 | G22: 376.9911443 | H22: 10.93925786 | I22: 8715.277764
B23: LP7 | C23: 1 | D23: 6.783955283 | E23: 1.335 | F23: 6825.832949 | G23: 338.6236078 | H23: 9.825936281 | I23: 10614.63191
B24: HP7-4 | C24: 1 | D24: 6.763902333 | E24: 4.88 | F24: 7181.361011 | G24: 356.2610443 | H24: 10.33772673 | I24: 5797.884859
B25: LP8 | C25: 1 | D25: 4.785012599 | E25: 1.34 | F25: 6825.832949 | G25: 338.6236078 | H25: 9.825936281 | I25: 5975.166292
B26: JT2-3 | C26: 0.410657163 | D26: 4.298983238 | E26: 1.089 | F26: 996.1803584 | G26: 49.41963706 | H26: 1.434023481 | I26: 172.2609756
B27: LHe 3,6K | C27: 0 | D27: 3.601771594 | E27: 0.53 | F27: 0 | G27: 0 | H27: 0 | I27: 0
B28: HP5 | C28: 1 | D28: 21.73297256 | E28: 13.37 | F28: 7599.22969 | G28: 376.9911443 | H28: 10.93925786 | I28: 40556.1509
B29: GHe 4,3K | C29: 1 | D29: 4.300587218 | E29: 1.089 | F29: 6776.138438 | G29: 336.1583065 | H29: 9.754399941 | I29: 5190.48101
B30: LHe 4,3K | C30: 0 | D30: 4.300587218 | E30: 1.089 | F30: 0 | G30: 0 | H30: 0 | I30: 0
B31: GHe 3,6K | C31: 1 | D31: 3.601771594 | E31: 0.53 | F31: 470.5063168 | G31: 23.34140722 | H31: 0.6773041653 | I31: 347.8176049
B32: HP8-3 | C32: 1 | D32: 5.682793436 | E32: 4.86 | F32: 7181.361011 | G32: 356.2610443 | H32: 10.33772673 | I32: 1241.811529
B33: HP8-5 | C33: 1 | D33: 5.682793436 | E33: 4.86 | F33: 6185.180653 | G33: 306.8414072 | H33: 8.903703245 | I33: 1069.550554
B34: VLP0 | C34: 0.1692622314 | D34: 3.601310611 | E34: 0.53 | F34: 470.5063168 | G34: 23.34140722 | H34: 0.6773041653 | I34: -97.91442851
B35: MP | C35: 1 | D35: 1172.865193 | E35: 16 | F35: 12720.46351 | G35: 631.0510786 | H35: 18.31138629 | I35: 3845911.8
B36: MP-1 | C36: 1 | D36: 306 | E36: 16 | F36: 12720.46351 | G36: 631.0510786 | H36: 18.31138629 | I36: 1005950.659
B37: TS_inlet | C37: 1 | D37: 79.32934783 | E37: 15 | F37: 8566.972108 | G37: 425 | H37: 12.3323443 | I37: 176644.392
B38: TS_outlet | C38: 1 | D38: 99.29161955 | E38: 13.5 | F38: 8566.972108 | G38: 425 | H38: 12.3323443 | I38: 220744.3921
B39: To Comp LP | C39: 1 | D39: 300.4829015 | E39: 1.05 | F39: 12720.46351 | G39: 631.0510786 | H39: 18.31138629 | I39: 984829.244
B40: LIN-a | C40: 0 | D40: 78.45653978 | E40: 1.15 | F40: 715.7104634 | G40: 248.4706676 | H40: 1.109279785 | I40: -29600.80098
B41: GAN-b | C41: 1 | D41: 78.08340721 | E41: 1.1 | F41: 760.3524879 | G41: 263.9688813 | H41: 1.178470468 | I41: 20532.67321
B42: HP2-5 | C42: 1 | D42: 79.32882157 | E42: 15.01 | F42: 12096.96516 | G42: 600.1198705 | H42: 17.41384674 | I42: 249429.9743
B43: to_CL-1 | C43: 1 | D43: 79.25609521 | E43: 13.41 | F43: 31.22148883 | G43: 1.548870778 | H43: 0.04494401814 | I43: 642.5609037
B44: CL_inlet | C44: 1 | D44: 49.99973883 | E44: 4 | F44: 530.1443916 | G44: 26.3 | H44: 0.7631544825 | I44: 6840.520283
B45: CL_outlet | C45: 1 | D45: 300 | E45: 1.05 | F45: 530.1443916 | G45: 26.3 | H45: 0.7631544825 | I45: 40978.28929
B46: GAN-c | C46: 1 | D46: 305.5412698 | E46: 1.05 | F46: 760.3524879 | G46: 263.9688813 | H46: 1.178470468 | I46: 83656.84124
B47: After Comp | C47: 1 | D47: 306.0310716 | E47: 15.5 | F47: 12720.46351 | G47: 631.0510786 | H47: 18.31138629 | I47: 1005950.659
B48: LPbypass | C48: 1 | D48: 306.0310716 | E48: 15.5 | F48: 381.6139052 | G48: 18.93153236 | H48: 0.5493415886 | I48: 30178.51978
B49: Paliers | C49: 1 | D49: 306.0310716 | E49: 15.5 | F49: 241.8909772 | G49: 12 | H49: 0.3482073684 | I49: 19129.05044
B50: Recycle | C50: 1 | D50: 307 | E50: 1.05 | F50: 268.7005605 | G50: 13.33 | H50: 0.3868003518 | I50: 21254.11582
B51: To recycle | C51: 1 | D51: 277.602305 | E51: 1.33 | F51: 268.7005605 | G51: 13.33 | H51: 0.3868003518 | I51: 19220.53709
B52: T1Outlet | C52: 1 | D52: 37.34377525 | E52: 6.392509308 | F52: 3529.993049 | G52: 175.1198705 | H52: 5.081502438 | I52: 33939.34957
B53: T1Leak | C53: 1 | D53: 37.34377525 | E53: 6.392509308 | F53: 6.047274429 | G53: 0.3 | H53: 0.008705184211 | I53: 58.14191642
B54: T2Outlet-1 | C54: 1 | D54: 14.04108215 | E54: 1.33 | F54: 3523.945775 | G54: 174.8198705 | H54: 5.072797254 | I54: 12508.0879
B55: T2Leak | C55: 1 | D55: 14.04108215 | E55: 1.33 | F55: 6.047274429 | G55: 0.3 | H55: 0.008705184211 | I55: 21.46453008
B56: T3Outlet | C56: 1 | D56: 6.763902333 | E56: 4.88 | F56: 7196.076045 | G56: 356.9910443 | H56: 10.35890934 | I56: 5809.765069
B57: T3Leak | C57: 1 | D57: 6.763902333 | E57: 4.88 | F57: 14.71503444 | G57: 0.73 | H57: 0.02118261491 | I57: 11.88020979
B58: ColdComp_Outlet | C58: 1 | D58: 4.789091169 | E58: 1.35 | F58: 6825.832949 | G58: 338.6236078 | H58: 9.825936281 | I58: 5960.166292
B59: VLP9-1 | C59: 1 | D59: 3.661071246 | E59: 0.53 | F59: 470.5063168 | G59: 23.34140722 | H59: 0.6773041653 | I59: 357.8176049
B60: HP9 | C60: 0 | D60: 4.15388602 | E60: 4.77 | F60: 470.5063168 | G60: 23.34140722 | H60: 0.6773041653 | I60: -97.91442851
B61: VLP8 | C61: 1 | D61: 4.100618068 | E61: 0.51 | F61: 470.5063168 | G61: 23.34140722 | H61: 0.6773041653 | I61: 429.9658363
B62: HP2-9 | C62: 1 | D62: 79.25514872 | E62: 13.43 | F62: 8098.152593 | G62: 401.7422735 | H62: 11.65746832 | I62: 166665.8588
B63: HP2_TS-2 | C63: 1 | D63: 79.25467548 | E63: 13.44 | F63: 8129.374081 | G63: 403.2911443 | H63: 11.70241234 | I63: 167308.4197
B64: HP8-4 | C64: 1 | D64: 5.682793436 | E64: 4.86 | F64: 996.1803584 | G64: 49.41963706 | H64: 1.434023481 | I64: 172.2609756
B65: VLP7 | C65: 1 | D65: 6.783897943 | E65: 0.495 | F65: 470.5063168 | G65: 23.34140722 | H65: 0.6773041653 | I65: 790.137327
B66: VLP6 | C66: 1 | D66: 13.89506063 | E66: 0.49 | F66: 470.5063168 | G66: 23.34140722 | H66: 0.6773041653 | I66: 1672.16093
B67: VLP5 | C67: 1 | D67: 20.19918325 | E67: 0.475 | F67: 470.5063168 | G67: 23.34140722 | H67: 0.6773041653 | I67: 2442.284139
B68: VLP4 | C68: 1 | D68: 38.15662904 | E68: 0.47 | F68: 470.5063168 | G68: 23.34140722 | H68: 0.6773041653 | I68: 4624.515778
B69: VLP3 | C69: 1 | D69: 44.68039672 | E69: 0.465 | F69: 470.5063168 | G69: 23.34140722 | H69: 0.6773041653 | I69: 5416.069827
B70: LP | C70: 1 | D70: 552.0842624 | E70: 1.18 | F70: 566.7897096 | G70: 28.1179422 | H70: 0.8159062217 | I70: 80616.73676
B71: CryoPumps_Inlet | C71: 0 | D71: 3.7 | E71: 4.7 | F71: 5714.674336 | G71: 283.5 | H71: 8.226399079 | I71: -1619.980832
B72: CryoPumps_Outlet | C72: 0 | D72: 3.87272132 | E72: 4.2 | F72: 5714.674336 | G72: 283.5 | H72: 8.226399079 | I72: -1538.080832
B73: LP9-2 | C73: 0 | D73: 4.100625374 | E73: 4.195 | F73: 5714.674336 | G73: 283.5 | H73: 8.226399079 | I73: -1317.781819
B74: HP9-1 | C74: 0 | D74: 4.15388602 | E74: 4.77 | F74: 5714.674336 | G74: 283.5 | H74: 8.226399079 | I74: -1189.248798
B75: HP1 | C75: 1 | D75: 306.0310716 | E75: 15.5 | F75: 12096.96516 | G75: 600.1198705 | H75: 17.41384674 | I75: 956643.6059
B76: LP-4 | C76: 1 | D76: 299.9644969 | E76: 1.05 | F76: 11251.83579 | G76: 558.1937412 | H76: 16.19726448 | I76: 869624.2684
B77: To Comp VLP | C77: 1 | D77: 300.9115329 | E77: 0.35 | F77: 566.7897096 | G77: 28.1179422 | H77: 0.8159062217 | I77: 43937.57226
B78: to_TS | C78: 1 | D78: 79.32934783 | E78: 15 | F78: 8566.972108 | G78: 425 | H78: 12.3323443 | I78: 176644.392
B79: to_CL-2 | C79: 1 | D79: 79.25467548 | E79: 13.44 | F79: 31.22148883 | G79: 1.548870778 | H79: 0.04494401814 | I79: 642.5609037
B80: HP2-7 | C80: 1 | D80: 79.33071501 | E80: 14.97 | F80: 3529.993049 | G80: 175.1198705 | H80: 5.081502438 | I80: 72785.6999
B81: HP2-8 | C81: 1 | D81: 79.33071501 | E81: 14.97 | F81: 3529.993049 | G81: 175.1198705 | H81: 5.081502438 | I81: 72785.6999
B82: HP5-1 | C82: 1 | D82: 21.76877802 | E82: 13.19 | F82: 7599.22969 | G82: 376.9911443 | H82: 10.93925786 | I82: 40656.1509
B83: Piston | C83: 1 | D83: 4.300587218 | E83: 1.089 | F83: 49.69451187 | G83: 2.465301308 | H83: 0.07153634008 | I83: 38.06569517
B84: To Buffer | C84: 1 | D84: 306.0310716 | E84: 15.5 | F84: -0.006534712129 | G84: -0.0003241813583 | H84: -9.406861473e-06 | I84: -0.5167734629
B85: VLP8-1 | C85: 1 | D85: 4.192849128 | E85: 0.5 | F85: 470.5063168 | G85: 23.34140722 | H85: 0.6773041653 | I85: 444.9658363
B86: HP2-4 | C86: 1 | D86: 79.25467548 | E86: 15.23 | F86: 12096.96516 | G86: 600.1198705 | H86: 17.41384674 | I86: 249229.9743
B87: CP1_Inlet | C87: 0 | D87: 4.400587218 | E87: 4.642 | F87: 8949.966156 | G87: 444 | H87: 12.88367263 | I87: -1480.99349
B88: CP1_Outlet | C88: 0 | D88: 4.539641613 | E88: 5.178 | F88: 8949.966156 | G88: 444 | H88: 12.88367263 | I88: -1141.855225
B89: TF_Inlet | C89: 0 | D89: 4.400587218 | E89: 5.16 | F89: 9151.54197 | G89: 454 | H89: 13.17384544 | I89: -1415.655018
B90: TF_Outlet | C90: 0 | D90: 5.188196386 | E90: 4.66 | F90: 9151.54197 | G90: 454 | H90: 13.17384544 | I90: 137.7273348
B91: HP9-0 | C91: 0 | D91: 4.15388602 | E91: 4.77 | F91: 6185.180653 | G91: 306.8414072 | H91: 8.903703245 | I91: -1287.163227
B92: CP2_Inlet | C92: 0 | D92: 4.400587218 | E92: 3.93 | F92: 19351.27817 | G92: 960 | H92: 27.85658948 | I92: -3472.757198
B93: CP2_outlet | C93: 0 | D93: 4.562683275 | E93: 4.87 | F93: 19351.27817 | G93: 960 | H93: 27.85658948 | I93: -2495.327374
B94: PF_Inlet | C94: 0 | D94: 4.400587218 | E94: 4.8 | F94: 19552.85399 | G94: 970 | H94: 28.14676228 | I94: -3172.11301
B95: PF_Outlet | C95: 0 | D95: 4.676226289 | E95: 4 | F95: 19552.85399 | G95: 970 | H95: 28.14676228 | I95: -2332.11301
B96: HP8-6 | C96: 0 | D96: 4.400587218 | E96: 4.79 | F96: 6185.180653 | G96: 306.8414072 | H96: 8.903703245 | I96: -1004.715982
B97: MP6 | C97: 1 | D97: 14.04108215 | E97: 1.33 | F97: 3517.8985 | G97: 174.5198705 | H97: 5.06409207 | I97: 12486.62336
B98: LP9-3 | C98: 0.009225846752 | D98: 4.298750221 | E98: 1.089 | F98: 5714.674336 | G98: 283.5 | H98: 8.226399079 | I98: -1317.781819
B99: HP3-3 | C99: 1 | D99: 47.95265866 | E99: 14.95 | F99: 3529.993049 | G99: 175.1198705 | H99: 5.081502438 | I99: 43882.55805
B100: GHe1-3 | C100: 0.9980790247 | D100: 4.283463732 | E100: 1.069 | F100: 6825.832949 | G100: 338.6236078 | H100: 9.825936281 | I100: 5228.546705
B101: T3Inlet | C101: 1 | D101: 8.827826352 | E101: 13.07 | F101: 7196.076045 | G101: 356.9910443 | H101: 10.35890934 | I101: 8252.915639
B102: LP-1 | C102: 1 | D102: 307 | E102: 1.13 | F102: 566.7897096 | G102: 28.1179422 | H102: 0.8159062217 | I102: 44833.58362
B103: VLP1-1 | C103: 1 | D103: 299.6556894 | E103: 0.35 | F103: 470.5063168 | G103: 23.34140722 | H103: 0.6773041653 | I103: 36321.46796
B104: VLPbypass | C104: 1 | D104: 307 | E104: 1.13 | F104: 96.28339285 | G104: 4.776534982 | H104: 0.1386020564 | I104: 7616.1043
B105: VLP-2 | C105: 1 | D105: 307.0484413 | E105: 0.35 | F105: 96.28339285 | G105: 4.776534982 | H105: 0.1386020564 | I105: 7616.1043
B106: Conso.liq | C106: 0 | D106: 4.299366515 | E106: 1.089 | F106: -337.869901 | G106: -16.76143054 | H106: -0.486371135 | I106: 80.9865269
B107: HP2-6 | C107: 1 | D107: 79.32882157 | E107: 15.01 | F107: 3529.993049 | G107: 175.1198705 | H107: 5.081502438 | I107: 72785.6999
B108: From_Buffer | C108: 1 | D108: 307 | E108: 1.05 | F108: 288.1686523 | G108: 14.29579502 | H108: 0.4148250971 | I108: 22794.03474
B109: LPbypass-2 | C109: 1 | D109: 306.0310716 | E109: 15.5 | F109: 381.6141073 | G109: 18.93154239 | H109: 0.5493418796 | I109: 30178.53576
B110: LPbypass-3 | C110: 1 | D110: 306.9287887 | E110: 1.05 | F110: 381.6141073 | G110: 18.93154239 | H110: 0.5493418796 | I110: 30178.53576
B111: GHe | C111: 1 | D111: 4.300587093 | E111: 1.089 | F111: 6825.832949 | G111: 338.6236078 | H111: 9.825936281 | I111: 5228.546705
B112: LP6-2 | C112: 1 | D112: 13.94465826 | E112: 1.33 | F112: 10343.73145 | G112: 513.1434783 | H112: 14.89002835 | I112: 36449.96531
B113: LP4 | C113: 1 | D113: 38.15668374 | E113: 1.29 | F113: 10343.73145 | G113: 513.1434783 | H113: 14.89002835 | I113: 101662.8573
B114: HP3-4 | C114: 1 | D114: 47.95265866 | E114: 13.41 | F114: 498.9229028 | G114: 24.75112922 | H114: 0.7182104644 | I114: 6197.95938
B115: HP2_TS-3 | C115: 1 | D115: 79.25467548 | E115: 13.44 | F115: 8098.152593 | G115: 401.7422735 | H115: 11.65746832 | I115: 166665.8588
B116: HP3-1 | C116: 1 | D116: 47.95265866 | E116: 13.41 | F116: 8098.152593 | G116: 401.7422735 | H116: 11.65746832 | I116: 100600.7552
B117: bypass | C117: 1 | D117: 79.403656 | E117: 13.43 | F117: 0 | G117: 0 | H117: 0 | I117: 0
B118: bypass-2 | C118: 1 | D118: 79.33071501 | E118: 14.97 | F118: 0 | G118: 0 | H118: 0 | I118: 0
B119: T2Outlet | C119: 1 | D119: 14.04488692 | E119: 1.35 | F119: 3523.945775 | G119: 174.8198705 | H119: 5.072797254 | I119: 12508.0879
B120: HP8 | C120: 1 | D120: 5.678 | E120: 4.87 | F120: 7181.361011 | G120: 356.2610443 | H120: 10.33772673 | I120: 1226.811529
B121: LP-3 | C121: 1 | D121: 299.95952 | E121: 1.13 | F121: 11251.83579 | G121: 558.1937412 | H121: 16.19726448 | I121: 869624.2684
B122: HP8-1 | C122: 1 | D122: 5.678 | E122: 8.145 | F122: 403.1536444 | G122: 20.0001 | H122: 0.5803485158 | I122: 68.7983487
B123: HP7-2 | C123: 1 | D123: 8.238173009 | E123: 8.15 | F123: 403.1536444 | G123: 20.0001 | H123: 0.5803485158 | I123: 462.3621256
B124: HP7-3 | C124: 1 | D124: 8.832961959 | E124: 13.15 | F124: 7196.076045 | G124: 356.9910443 | H124: 10.35890934 | I124: 8252.915639
B125: to_damper | C125: 0.4131859697 | D125: 4.299396472 | E125: 1.089 | F125: 0.002015758143 | G125: 0.0001 | H125: 2.90172807e-06 | I125: 0.0003539899735
B126: 22 | C126: <empty> | D126: <empty> | E126: <empty> | F126: <empty> | G126: <empty> | H126: <empty> | I126: <empty>
B127: WaterInlet | C127: <empty> | D127: 303 | E127: <empty> | F127: <empty> | G127: <empty> | H127: <empty> | I127: <empty>
B128: LP-2 | C128: 1 | D128: 307 | E128: 1.13 | F128: 470.5063168 | G128: 23.34140722 | H128: 0.6773041653 | I128: 37217.47932
B129: HP_BP1-b | C129: 1 | D129: 306.0354216 | E129: 15.43 | F129: 1131.041894 | G129: 56.11 | H129: 1.62815962 | I129: 89444.25167
B130: HP_BP1-a | C130: 1 | D130: 306.0416358 | E130: 15.33 | F130: 1131.041894 | G130: 56.11 | H130: 1.62815962 | I130: 89444.25167
B131: HP_BP1 | C131: 1 | D131: 306.0416358 | E131: 15.33 | F131: 1131.041894 | G131: 56.11 | H131: 1.62815962 | I131: 89444.25167
B132: HP2_MEF | C132: 1 | D132: 88.5200028 | E132: 15.345 | F132: 0 | G132: 0 | H132: 0 | I132: 0
B133: HP2_MEF-2 | C133: 1 | D133: 88.5207673 | E133: 15.33 | F133: 0 | G133: 0 | H133: 0 | I133: 0
B134: HP2-1 | C134: 1 | D134: 88.5200028 | E134: 15.345 | F134: 10965.92326 | G134: 544.0098705 | H134: 15.78568712 | I134: 252276.2887
B135: HP2-2 | C135: 1 | D135: 88.52331572 | E135: 15.28 | F135: 10965.92326 | G135: 544.0098705 | H135: 15.78568712 | I135: 252276.2887
B136: HP_BP2 | C136: 1 | D136: 89.61914492 | E136: 15.28 | F136: 1131.041894 | G136: 56.11 | H136: 1.62815962 | I136: 26341.08467
B137: HP2-3 | C137: 1 | D137: 88.62576545 | E137: 15.28 | F137: 12096.96516 | G137: 600.1198705 | H137: 17.41384674 | I137: 278617.3734
B138: to_TS-3 | C138: 1 | D138: 79.32929492 | E138: 15 | F138: 8566.970093 | G138: 424.9999 | H138: 12.3323414 | I138: 176644.2329
B139: HP_CD2-1 | C139: 1 | D139: 79.32882157 | E139: 15.01 | F139: 0.002015758143 | G139: 0.0001 | H139: 2.90172807e-06 | I139: 0.04156335869
B140: HP_CD2 | C140: 1 | D140: 79.32929492 | E140: 15 | F140: 0.002015758143 | G140: 0.0001 | H140: 2.90172807e-06 | I140: 0.04156335869
B141: HP_CD1 | C141: 1 | D141: 305.5412525 | E141: 15 | F141: 0.002015758143 | G141: 0.0001 | H141: 2.90172807e-06 | I141: 0.1591383371
B142: to_TS-2 | C142: 1 | D142: 79.32934783 | E142: 15 | F142: 8566.972108 | G142: 425 | H142: 12.3323443 | I142: 176644.392
B143: bypass_TS | C143: 1 | D143: 79.32934783 | E143: 15 | F143: 0 | G143: 0 | H143: 0 | I143: 0
B144: bypass_TS-1 | C144: 1 | D144: 79.40039158 | E144: 13.5 | F144: 0 | G144: 0 | H144: 0 | I144: 0
B145: to_TS-4 | C145: 1 | D145: 79.32882157 | E145: 15.01 | F145: 8566.970093 | G145: 424.9999 | H145: 12.3323414 | I145: 176644.2329
B146: bypass_HP_BP-2 | C146: 1 | D146: 89.14613262 | E146: 1.265 | F146: 437.5980269 | G146: 21.70885572 | H146: 0.6299319601 | I146: 10056.3205
B147: HP2_TS | C147: 1 | D147: 88.5200028 | E147: 13.47 | F147: 8129.374081 | G147: 403.2911443 | H147: 11.70241234 | I147: 186818.921
B148: bypass_HP_BP | C148: 1 | D148: 88.5200028 | E148: 13.47 | F148: 437.5980269 | G148: 21.70885572 | H148: 0.6299319601 | I148: 10056.3205
B149: LIN | C149: 0.05871227521 | D149: 78.45653978 | E149: 1.15 | F149: 760.3524879 | G149: 263.9688813 | H149: 1.178470468 | I149: -28391.05592
B150: GAN-a | C150: 1 | D150: 78.0683292 | E150: 1.1 | F150: 715.7104634 | G150: 248.4706676 | H150: 1.109279785 | I150: 19322.92815
B151: GAN | C151: 1 | D151: 78.45653978 | E151: 1.15 | F151: 44.64202453 | G151: 15.4982136 | H151: 0.06919068242 | I151: 1209.745055
B152: N2-a | C152: 0.004546356332 | D152: 83.59345351 | E152: 1.99 | F152: 760.3524879 | G152: 263.9688813 | H152: 1.178470468 | I152: -28391.05592
B153: N2 | C153: 0 | D153: 83.64404887 | E153: 2 | F153: 760.3524879 | G153: 263.9688813 | H153: 1.178470468 | I153: -28591.05592
B154: to_TS-1 | C154: 1 | D154: 79.32934783 | E154: 15 | F154: 8566.972108 | G154: 425 | H154: 12.3323443 | I154: 176644.392
B155: HP_CD2-2 | C155: 1 | D155: 79.32934783 | E155: 15 | F155: 0 | G155: 0 | H155: 0 | I155: 0
B156: HP2_TS-4 | C156: 1 | D156: 79.25514872 | E156: 13.43 | F156: 8098.152593 | G156: 401.7422735 | H156: 11.65746832 | I156: 166665.8588
B157: HP_CD2-3 | C157: 1 | D157: 79.40370895 | E157: 13.43 | F157: 0 | G157: 0 | H157: 0 | I157: 0
B158: HP2-10 | C158: 1 | D158: 79.25514872 | E158: 13.43 | F158: 8098.152593 | G158: 401.7422735 | H158: 11.65746832 | I158: 166665.8588
B159: supply_loop | C159: 1 | D159: 5.698771705 | E159: 8.135 | F159: 403.1516286 | G159: 20 | H159: 0.5803456141 | I159: 70.79799471
B160: supply_loop1-1 | C160: 1 | D160: 5.709771779 | E160: 5.178 | F160: 201.5758143 | G160: 10 | H160: 0.290172807 | I160: 35.39899735
B161: CP1_outlet-2 | C161: 0 | D161: 4.573339595 | E161: 5.178 | F161: 9151.54197 | G161: 454 | H161: 13.17384544 | I161: -1106.456228
B162: supply_loop2 | C162: 1 | D162: 5.698771705 | E162: 8.135 | F162: 201.5758143 | G162: 10 | H162: 0.290172807 | I162: 35.39899735
B163: 2 | C163: 0 | D163: 4.578152421 | E163: 4.87 | F163: 19552.85399 | G163: 970 | H163: 28.14676228 | I163: -2459.928377
B164: HP8-2 | C164: 1 | D164: 5.698771705 | E164: 8.135 | F164: 0.002015758143 | G164: 0.0001 | H164: 2.90172807e-06 | I164: 0.0003539899735
B165: supply_loop1 | C165: 1 | D165: 5.698771705 | E165: 8.135 | F165: 201.5758143 | G165: 10 | H165: 0.290172807 | I165: 35.39899735
B166: supply_loop2-2 | C166: 1 | D166: 5.690527726 | E166: 4.87 | F166: 201.5758143 | G166: 10 | H166: 0.290172807 | I166: 35.39899735
B167: return-1 | C167: 0 | D167: 4.400587218 | E167: 4.642 | F167: 201.5758143 | G167: 10 | H167: 0.290172807 | I167: -33.35570923
B168: return-2 | C168: 0 | D168: 4.400587218 | E168: 3.93 | F168: 201.5758143 | G168: 10 | H168: 0.290172807 | I168: -36.17455414
B169: return-3 | C169: 0 | D169: 4.434937222 | E169: 3.93 | F169: 403.1516286 | G169: 20 | H169: 0.5803456141 | I169: -69.53026337
B170: CD_return | C170: 0 | D170: 4.434937222 | E170: 3.93 | F170: 0 | G170: 0 | H170: 0 | I170: 0
B171: baking_return | C171: 0 | D171: 4.434937222 | E171: 3.93 | F171: 0 | G171: 0 | H171: 0 | I171: 0
B172: LP5-1 | C172: 1 | D172: 20.19918246 | E172: 1.3 | F172: 10343.73145 | G172: 513.1434783 | H172: 14.89002835 | I172: 53469.9816
B173: baking_return-1 | C173: 0.009422982313 | D173: 4.496229356 | E173: 1.3 | F173: 0 | G173: 0 | H173: 0 | I173: 0
B174: LP2-1 | C174: 1 | D174: 78.76547091 | E174: 1.265 | F174: 10343.73145 | G174: 513.1434783 | H174: 14.89002835 | I174: 210032.5517
B175: CD_return-2 | C175: 0.01950275338 | D175: 4.465429877 | E175: 1.265 | F175: 0 | G175: 0 | H175: 0 | I175: 0
B176: CL_inlet-2 | C176: 1 | D176: 49.78111746 | E176: 13.41 | F176: 530.1443916 | G176: 26.3 | H176: 0.7631544825 | I176: 6840.520283
B177: return_4 | C177: 0 | D177: 4.434937222 | E177: 3.93 | F177: 0 | G177: 0 | H177: 0 | I177: 0
B178: return_damper | C178: 0 | D178: 4.434937222 | E178: 3.93 | F178: 403.1516286 | G178: 20 | H178: 0.5803456141 | I178: -69.53026337
B179: HP7-5 | C179: 1 | D179: 8.832961959 | E179: 13.15 | F179: 403.1536444 | G179: 20.0001 | H179: 0.5803485158 | I179: 462.3621256
B180: return_damper-1 | C180: 0.06729631295 | D180: 4.297954438 | E180: 1.089 | F180: 403.1516286 | G180: 20 | H180: 0.5803456141 | I180: -69.53026337
B181: 1 | C181: 1 | D181: 5.698771705 | E181: 8.135 | F181: 403.1536444 | G181: 20.0001 | H181: 0.5803485158 | I181: 70.7983487
B182: CP1_inlet-1 | C182: 0 | D182: 4.400587218 | E182: 4.642 | F182: 9151.54197 | G182: 454 | H182: 13.17384544 | I182: -1514.349199
B183: CP2_Inlet-1 | C183: 0 | D183: 4.400587218 | E183: 3.93 | F183: 19552.85399 | G183: 970 | H183: 28.14676228 | I183: -3508.931752
B184: HP1-3 | C184: 1 | D184: 306.0354216 | E184: 15.43 | F184: 10965.92326 | G184: 544.0098705 | H184: 15.78568712 | I184: 867199.3543
B185: LP2-2 | C185: 1 | D185: 79.1867688 | E185: 1.265 | F185: 10781.32948 | G185: 534.852334 | H185: 15.51996031 | I185: 220088.8722
B186: VLP2 | C186: 1 | D186: 78.7654725 | E186: 0.455 | F186: 470.5063168 | G186: 23.34140722 | H186: 0.6773041653 | I186: 9549.116127
B187: TS_outlet-2 | C187: 1 | D187: 99.29161955 | E187: 13.5 | F187: 8566.972108 | G187: 425 | H187: 12.3323443 | I187: 220744.3921
B188: HP2 | C188: 1 | D188: 88.5200028 | E188: 15.345 | F188: 10965.92326 | G188: 544.0098705 | H188: 15.78568712 | I188: 252276.2887
B189: LP1 | C189: 1 | D189: 299.6522676 | E189: 1.13 | F189: 10781.32948 | G189: 534.852334 | H189: 15.51996031 | I189: 832406.7891
B190: VLP1 | C190: 1 | D190: 299.6522677 | E190: 0.405 | F190: 470.5063168 | G190: 23.34140722 | H190: 0.6773041653 | I190: 36321.46796
B191: HP2_TS-1 | C191: 1 | D191: 88.5200028 | E191: 13.47 | F191: 8566.972108 | G191: 425 | H191: 12.3323443 | I191: 196875.2415
B192: LP1a | C192: 1 | D192: 99.20083113 | E192: 1.13 | F192: 10781.32948 | G192: 534.852334 | H192: 15.51996031 | I192: 275677.2431
B193: VLP1a | C193: 1 | D193: 99.20079654 | E193: 0.405 | F193: 470.5063168 | G193: 23.34140722 | H193: 0.6773041653 | I193: 12025.98395
B194: HP1a | C194: 1 | D194: 100.4623751 | E194: 15.43 | F194: 10965.92326 | G194: 544.0098705 | H194: 15.78568712 | I194: 286173.968

Sheet Dump_Case_E (hidden)
B1: Case: | C1: 1800\(03)-JT60-CALCULE-OFFCase_A.HSC
B2: Flowsheet: | C2: Case (Main)
B3: Current Flowsheet Environment: | C3: Case (Main)
B5: Name | C5: Vapour Fraction | D5: Temperature | E5: Pressure | F5: Molar Flow | G5: Mass Flow | H5: Liquid Volume Flow | I5: Heat Flow
C6: <none> | D6: K | E6: bar | F6: Nm3/h(gas) | G6: g/s | H6: m3/h | I6: W*
B8: HP1-2 | C8: 1 | D8: 306.0354216 | E8: 15.43 | F8: 12460.54442 | G8: 618.1567201 | H8: 17.93722707 | I8: 985395.9232
B9: LP2 | C9: 1 | D9: 78.38174416 | E9: 1.265 | F9: 11276.92034 | G9: 559.4381637 | H9: 16.23337423 | I9: 227865.8494
B10: HP3-2 | C10: 1 | D10: 42.17799016 | E10: 13.41 | F10: 8169.875449 | G10: 405.3003817 | H10: 11.76071495 | I10: 89045.49094
B11: LP3 | C11: 1 | D11: 39.17480153 | E11: 1.28 | F11: 11276.92034 | G11: 559.4381637 | H11: 16.23337423 | I11: 113802.4726
B12: T1Inlet | C12: 1 | D12: 42.18018732 | E12: 14.77 | F12: 3760.524583 | G12: 186.5563384 | H12: 5.413357639 | I12: 41005.29412
B13: MP4 | C13: 1 | D13: 32.77245813 | E13: 6.357372937 | F13: 3754.477309 | G13: 186.2563384 | H13: 5.404652454 | I13: 31584.94717
B14: HP4 | C14: 1 | D14: 33.31571309 | E14: 13.39 | F14: 8169.875449 | G14: 405.3003817 | H14: 11.76071495 | I14: 69725.75899
B15: MP5 | C15: 1 | D15: 19.09012472 | E15: 6.307372937 | F15: 3754.477309 | G15: 186.2563384 | H15: 5.404652454 | I15: 17795.96481
B16: LP5 | C16: 1 | D16: 17.83004344 | E16: 1.3 | F16: 11276.92034 | G16: 559.4381637 | H16: 16.23337423 | I16: 51302.73005
B17: HP6 | C17: 1 | D17: 12.24555098 | E17: 13.16 | F17: 8169.875449 | G17: 405.3003817 | H17: 11.76071495 | I17: 19668.89002
B18: LP6 | C18: 1 | D18: 12.11888994 | E18: 1.33 | F18: 7528.490307 | G18: 373.4818253 | H18: 10.83742696 | I18: 22864.95997
B19: HP7 | C19: 1 | D19: 7.852595377 | E19: 13.15 | F19: 8169.875449 | G19: 405.3003817 | H19: 11.76071495 | I19: 6600.661539
B20: LP7 | C20: 1 | D20: 6.317080468 | E20: 1.335 | F20: 7528.490307 | G20: 373.4818253 | H20: 10.83742696 | I20: 10640.44057
B21: HP7-4 | C21: 1 | D21: 6.343824075 | E21: 4.88 | F21: 7752.00677 | G21: 384.5702817 | H21: 11.15918382 | I21: 4078.120919
B22: LP8 | C22: 1 | D22: 4.784549213 | E22: 1.34 | F22: 7528.490307 | G22: 373.4818253 | H22: 10.83742696 | I22: 6588.711148
B23: JT2-3 | C23: 0.2415639657 | D23: 4.297673159 | E23: 1.089 | F23: 1469.268804 | G23: 72.88914145 | H23: 2.115044678 | I23: 3.748645649
B24: LHe 3,6K | C24: 0 | D24: 3.601771594 | E24: 0.53 | F24: 0 | G24: 0 | H24: 0 | I24: 0
B25: HP5 | C25: 1 | D25: 19.09012472 | E25: 13.37 | F25: 8169.875449 | G25: 405.3003817 | H25: 11.76071495 | I25: 37332.14202
B26: GHe 4,3K | C26: 1 | D26: 4.300587218 | E26: 1.089 | F26: 7518.383891 | G26: 372.9804549 | H26: 10.82287856 | I26: 5759.036533
B27: LHe 4,3K | C27: 0 | D27: 4.300587218 | E27: 1.089 | F27: 0 | G27: 0 | H27: 0 | I27: 0
B28: GHe 3,6K | C28: 1 | D28: 3.601771594 | E28: 0.53 | F28: 568.0636302 | G28: 28.18114029 | H28: 0.8177400583 | I28: 419.9359801
B29: HP8-3 | C29: 0 | D29: 5.137701192 | E29: 4.86 | F29: 7752.00677 | G29: 384.5702817 | H29: 11.15918382 | I29: 19.77822327
B30: HP8-5 | C30: 0 | D30: 5.137701192 | E30: 4.86 | F30: 6282.737966 | G30: 311.6811403 | H30: 9.044139138 | I30: 16.02957762
B31: VLP0 | C31: 0.181990601 | D31: 3.602242636 | E31: 0.53 | F31: 568.0636302 | G31: 28.18114029 | H31: 0.8177400583 | I31: -109.8601904
B32: MP | C32: 1 | D32: 1171.256903 | E32: 16 | F32: 13095.39388 | G32: 649.6510471 | H32: 18.85110679 | I32: 3953843.776
B33: MP-1 | C33: 1 | D33: 306 | E33: 16 | F33: 13095.39388 | G33: 649.6510471 | H33: 18.85110679 | I33: 1035600.637
B34: TS_inlet | C34: 1 | D34: 79.32748617 | E34: 15 | F34: 8566.972108 | G34: 425 | H34: 12.3323443 | I34: 176640.2552
B35: TS_outlet | C35: 1 | D35: 99.28975096 | E35: 13.5 | F35: 8566.972108 | G35: 425 | H35: 12.3323443 | I35: 220740.2545
B36: To Comp LP | C36: 1 | D36: 300.0708262 | E36: 1.05 | F36: 13095.39388 | G36: 649.6510471 | H36: 18.85110679 | I36: 1012466.62
B37: LIN-a | C37: 0 | D37: 78.45662602 | E37: 1.15 | F37: 647.1413602 | G37: 224.6657749 | H37: 1.003004519 | I37: -26764.83709
B38: GAN-b | C38: 1 | D38: 78.08351618 | E38: 1.1 | F38: 687.8019349 | G38: 238.7817626 | H38: 1.066024351 | I38: 18573.53648
B39: HP2-5 | C39: 1 | D39: 79.32696173 | E39: 15.01 | F39: 12460.54442 | G39: 618.1567201 | H39: 17.93722707 | I39: 256920.6838
B40: to_CL-1 | C40: 1 | D40: 79.25609521 | E40: 13.41 | F40: 109.7312804 | G40: 5.443672931 | H40: 0.1579605855 | I40: 2258.349404
B41: CL_inlet | C41: 1 | D41: 49.99985156 | E41: 4 | F41: 530.1443916 | G41: 26.3 | H41: 0.7631544825 | I41: 6840.535769
B42: CL_outlet | C42: 1 | D42: 300 | E42: 1.05 | F42: 530.1443916 | G42: 26.3 | H42: 0.7631544825 | I42: 40978.28929
B43: GAN-c | C43: 1 | D43: 297.7368024 | E43: 1.05 | F43: 687.8019349 | G43: 238.7817626 | H43: 1.066024351 | I43: 73735.16325
B44: After Comp | C44: 1 | D44: 306.0310716 | E44: 15.5 | F44: 13095.39388 | G44: 649.6510471 | H44: 18.85110679 | I44: 1035600.637
B45: LPbypass | C45: 1 | D45: 306.0310716 | E45: 15.5 | F45: 392.8618165 | G45: 19.48953141 | H45: 0.5655332038 | I45: 31068.01912
B46: Paliers | C46: 1 | D46: 306.0310716 | E46: 15.5 | F46: 241.8909772 | G46: 12 | H46: 0.3482073684 | I46: 19129.05044
B47: Recycle | C47: 1 | D47: 307 | E47: 1.05 | F47: 268.7005605 | G47: 13.33 | H47: 0.3868003518 | I47: 21254.11582
B48: To recycle | C48: 1 | D48: 277.3946985 | E48: 1.33 | F48: 268.7005605 | G48: 13.33 | H48: 0.3868003518 | I48: 19206.16744
B49: T1Outlet | C49: 1 | D49: 32.77245813 | E49: 6.357372937 | F49: 3760.524583 | G49: 186.5563384 | H49: 5.413357639 | I49: 31635.82052
B50: T1Leak | C50: 1 | D50: 32.77245813 | E50: 6.357372937 | F50: 6.047274429 | G50: 0.3 | H50: 0.008705184211 | I50: 50.87335138
B51: T2Outlet-1 | C51: 1 | D51: 12.20292078 | E51: 1.33 | F51: 3754.477309 | G51: 186.2563384 | H51: 5.404652454 | I51: 11487.33999
B52: T2Leak | C52: 1 | D52: 12.20292078 | E52: 1.33 | F52: 6.047274429 | G52: 0.3 | H52: 0.008705184211 | I52: 18.50246829
B53: T3Outlet | C53: 1 | D53: 6.343824075 | E53: 4.88 | F53: 7766.721805 | G53: 385.3002817 | H53: 11.18036643 | I53: 4085.862101
B54: T3Leak | C54: 1 | D54: 6.343824075 | E54: 4.88 | F54: 14.71503444 | G54: 0.73 | H54: 0.02118261491 | I54: 7.741181293
B55: ColdComp_Outlet | C55: 1 | D55: 4.789091169 | E55: 1.35 | F55: 7528.490307 | G55: 373.4818253 | H55: 10.83742696 | I55: 6573.711148
B56: VLP9-1 | C56: 1 | D56: 3.650797319 | E56: 0.53 | F56: 568.0636302 | G56: 28.18114029 | H56: 0.8177400583 | I56: 429.9359801
B57: HP9 | C57: 0 | D57: 4.236478542 | E57: 4.77 | F57: 568.0636302 | G57: 28.18114029 | H57: 0.8177400583 | I57: -109.8601904
B58: VLP8 | C58: 1 | D58: 4.100619625 | E58: 0.51 | F58: 568.0636302 | G58: 28.18114029 | H58: 0.8177400583 | I58: 519.1175454
B59: HP2-9 | C59: 1 | D59: 79.25741996 | E59: 13.43 | F59: 8590.28856 | G59: 426.1567088 | H59: 12.36590884 | I59: 176799.4315
B60: HP2_TS-2 | C60: 1 | D60: 79.25467548 | E60: 13.44 | F60: 8566.972108 | G60: 425 | H60: 12.3323443 | I60: 176314.5047
B61: HP8-4 | C61: 0 | D61: 5.137701192 | E61: 4.86 | F61: 1469.268804 | G61: 72.88914145 | H61: 2.115044678 | I61: 3.748645649
B62: VLP7 | C62: 1 | D62: 6.31706066 | E62: 0.495 | F62: 568.0636302 | G62: 28.18114029 | H62: 0.8177400583 | I62: 881.9527678
B63: VLP6 | C63: 1 | D63: 12.1189512 | E63: 0.49 | F63: 568.0636302 | G63: 28.18114029 | H63: 0.8177400583 | I63: 1755.66184
B64: VLP5 | C64: 1 | D64: 17.83008111 | E64: 0.475 | F64: 568.0636302 | G64: 28.18114029 | H64: 0.8177400583 | I64: 2599.991909
B65: VLP4 | C65: 1 | D65: 32.85838758 | E65: 0.47 | F65: 568.0636302 | G65: 28.18114029 | H65: 0.8177400583 | I65: 4806.881768
B66: VLP3 | C66: 1 | D66: 39.17480127 | E66: 0.465 | F66: 568.0636302 | G66: 28.18114029 | H66: 0.8177400583 | I66: 5732.56875
B67: LP | C67: 1 | D67: 549.1409841 | E67: 1.18 | F67: 569.8270961 | G67: 28.26862429 | H67: 0.8202786062 | I67: 80616.72934
B68: CryoPumps_Inlet | C68: 0 | D68: 3.7 | E68: 4.7 | F68: 5714.674336 | G68: 283.5 | H68: 8.226399079 | I68: -1619.980832
B69: CryoPumps_Outlet | C69: 0 | D69: 3.983440061 | E69: 4.2 | F69: 5714.674336 | G69: 283.5 | H69: 8.226399079 | I69: -1433.080832
B70: LP9-2 | C70: 0 | D70: 4.100626517 | E70: 4.195 | F70: 5714.674336 | G70: 283.5 | H70: 8.226399079 | I70: -1317.780663
B71: HP9-1 | C71: 0 | D71: 4.236478542 | E71: 4.77 | F71: 5714.674336 | G71: 283.5 | H71: 8.226399079 | I71: -1105.184661
B72: HP1 | C72: 1 | D72: 306.0310716 | E72: 15.5 | F72: 12460.54442 | G72: 618.1567201 | H72: 17.93722707 | I72: 985395.9232
B73: LP-4 | C73: 1 | D73: 299.6550115 | E73: 1.05 | F73: 11844.98397 | G73: 587.619304 | H73: 17.05111429 | I73: 914522.7986
B74: To Comp VLP | C74: 1 | D74: 299.3072406 | E74: 0.35 | F74: 569.8270961 | G74: 28.26862429 | H74: 0.8202786062 | I74: 43937.54276
B75: to_TS | C75: 1 | D75: 79.32748617 | E75: 15 | F75: 8566.972108 | G75: 425 | H75: 12.3323443 | I75: 176640.2552
B76: to_CL-2 | C76: 1 | D76: 79.25467548 | E76: 13.44 | F76: 109.7312804 | G76: 5.443672931 | H76: 0.1579605855 | I76: 2258.349404
B77: HP2-7 | C77: 1 | D77: 79.32885515 | E77: 14.97 | F77: 3893.572315 | G77: 193.1567201 | H77: 5.604882768 | I77: 80280.54214
B78: HP2-8 | C78: 1 | D78: 79.32885515 | E78: 14.97 | F78: 3760.524583 | G78: 186.5563384 | H78: 5.413357639 | I78: 77537.26598
B79: HP5-1 | C79: 1 | D79: 19.11853388 | E79: 13.19 | F79: 8169.875449 | G79: 405.3003817 | H79: 11.76071495 | I79: 37432.14202
B80: Piston | C80: 1 | D80: 4.300587218 | E80: 1.089 | F80: 10.10641575 | G80: 0.5013704539 | H80: 0.0145484072 | I80: 7.741453266
B81: To Buffer | C81: 1 | D81: 306.0310716 | E81: 15.5 | F81: 0.09666563489 | G81: 0.004795497675 | H81: 0.0001391523021 | I81: 7.644443075
B82: VLP8-1 | C82: 1 | D82: 4.175173925 | E82: 0.5 | F82: 568.0636302 | G82: 28.18114029 | H82: 0.8177400583 | I82: 534.1175454
B83: HP2-4 | C83: 1 | D83: 79.25467548 | E83: 15.23 | F83: 12460.54442 | G83: 618.1567201 | H83: 17.93722707 | I83: 256720.6838
B84: CP1_Inlet | C84: 0 | D84: 4.400587218 | E84: 4.12 | F84: 15819.66991 | G84: 784.8 | H84: 22.7727619 | I84: -2781.70977
B85: CP1_Outlet | C85: 0 | D85: 4.633415688 | E85: 5.364 | F85: 15819.66991 | G85: 784.8 | H85: 22.7727619 | I85: -1665.451411
B86: TF_Inlet | C86: 0 | D86: 4.400587218 | E86: 5.308 | F86: 16021.24572 | G86: 794.8 | H86: 23.0629347 | I86: -2427.740991
B87: TF_Outlet | C87: 0 | D87: 4.980198769 | E87: 4.177 | F87: 16021.24572 | G87: 794.8 | H87: 23.0629347 | I87: -694.5847413
B88: HP9-0 | C88: 0 | D88: 4.236478542 | E88: 4.77 | F88: 6282.737966 | G88: 311.6811403 | H88: 9.044139138 | I88: -1215.044851
B89: CP2_Inlet | C89: 0 | D89: 4.400587218 | E89: 4.216 | F89: 19351.27817 | G89: 960 | H89: 27.85658948 | I89: -3366.66747
B90: CP2_outlet | C90: 0 | D90: 4.56110297 | E90: 5.157 | F90: 19351.27817 | G90: 960 | H90: 27.85658948 | I90: -2394.698222
B91: PF_Inlet | C91: 0 | D91: 4.400587218 | E91: 5.087 | F91: 19552.85399 | G91: 970 | H91: 28.14676228 | I91: -3054.862218
B92: PF_Outlet | C92: 0 | D92: 4.889564277 | E92: 4.287 | F92: 19552.85399 | G92: 970 | H92: 28.14676228 | I92: -1277.737218
B93: HP8-6 | C93: 0 | D93: 4.400587218 | E93: 4.79 | F93: 6282.737966 | G93: 311.6811403 | H93: 9.044139138 | I93: -1020.563117
B94: MP6 | C94: 1 | D94: 12.20292078 | E94: 1.33 | F94: 3748.430034 | G94: 185.9563384 | H94: 5.39594727 | I94: 11468.83752
B95: LP9-3 | C95: 0.00967517813 | D95: 4.297129333 | E95: 1.089 | F95: 5714.674336 | G95: 283.5 | H95: 8.226399079 | I95: -1317.780663
B96: HP3-3 | C96: 1 | D96: 42.17799016 | E96: 14.95 | F96: 3760.524583 | G96: 186.5563384 | H96: 5.413357639 | I96: 41005.29412
B97: GHe1-3 | C97: 0.9980790247 | D97: 4.283463732 | E97: 1.069 | F97: 7528.490307 | G97: 373.4818253 | H97: 10.83742696 | I97: 5766.777986
B98: T3Inlet | C98: 1 | D98: 7.851388853 | E98: 13.07 | F98: 7766.721805 | G98: 385.3002817 | H98: 11.18036643 | I98: 6274.942894
B99: LP-1 | C99: 1 | D99: 307 | E99: 1.13 | F99: 569.8270961 | G99: 28.26862429 | H99: 0.8202786062 | I99: 45073.84367
B100: VLP1-1 | C100: 1 | D100: 299.2832092 | E100: 0.35 | F100: 568.0636302 | G100: 28.18114029 | H100: 0.8177400583 | I100: 43798.051
B101: VLPbypass | C101: 1 | D101: 307 | E101: 1.13 | F101: 1.76346592 | G101: 0.08748400328 | H101: 0.00253854788 | I101: 139.4917647
B102: VLP-2 | C102: 1 | D102: 307.0484413 | E102: 0.35 | F102: 1.76346592 | G102: 0.08748400328 | H102: 0.00253854788 | I102: 139.4917647
B103: Conso.liq | C103: 0 | D103: 4.299366515 | E103: 1.089 | F103: -68.71289326 | G103: -3.40878659 | H103: -0.09891371733 | I103: 16.47029984
B104: HP2-6 | C104: 1 | D104: 79.32696173 | E104: 15.01 | F104: 3893.572315 | G104: 193.1567201 | H104: 5.604882768 | I104: 80280.54214
B105: From_Buffer | C105: 1 | D105: 307 | E105: 1.05 | F105: 58.7061328 | G105: 2.912359948 | H105: 0.08450876611 | I105: 4643.63358
B106: LPbypass-2 | C106: 1 | D106: 306.0310716 | E106: 15.5 | F106: 392.8588268 | G106: 19.4893831 | H106: 0.5655289001 | I106: 31067.78269
B107: LPbypass-3 | C107: 1 | D107: 306.9287887 | E107: 1.05 | F107: 392.8588268 | G107: 19.4893831 | H107: 0.5655289001 | I107: 31067.78269
B108: GHe | C108: 1 | D108: 4.300587093 | E108: 1.089 | F108: 7528.490307 | G108: 373.4818253 | H108: 10.83742696 | I108: 5766.777986
B109: LP6-2 | C109: 1 | D109: 12.14681651 | E109: 1.33 | F109: 11276.92034 | G109: 559.4381637 | H109: 16.23337423 | I109: 34333.79749
B110: LP4 | C110: 1 | D110: 32.85838873 | E110: 1.29 | F110: 11276.92034 | G110: 559.4381637 | H110: 16.23337423 | I110: 95378.42763
B111: HP3-4 | C111: 1 | D111: 42.17799016 | E111: 13.41 | F111: 420.4131112 | G111: 20.85632707 | H111: 0.605193897 | I111: 4582.186365
B112: HP2_TS-3 | C112: 1 | D112: 79.25467548 | E112: 13.44 | F112: 8457.240828 | G112: 419.5563271 | H112: 12.17438371 | I112: 174056.1553
B113: HP3-1 | C113: 1 | D113: 42.17799016 | E113: 13.41 | F113: 8590.28856 | G113: 426.1567088 | H113: 12.36590884 | I113: 93627.67731
B114: bypass | C114: 1 | D114: 79.40179483 | E114: 13.43 | F114: 133.0477324 | G114: 6.600381741 | H114: 0.1915251297 | I114: 2743.276154
B115: bypass-2 | C115: 1 | D115: 79.32885515 | E115: 14.97 | F115: 133.0477324 | G115: 6.600381741 | H115: 0.1915251297 | I115: 2743.276154
B116: T2Outlet | C116: 1 | D116: 12.20762314 | E116: 1.35 | F116: 3754.477309 | G116: 186.2563384 | H116: 5.404652454 | I116: 11487.33999
B117: HP8 | C117: 0 | D117: 5.13 | E117: 4.87 | F117: 7752.00677 | G117: 384.5702817 | H117: 11.15918382 | I117: 4.778223267
B118: LP-3 | C118: 1 | D118: 299.6500343 | E118: 1.13 | F118: 11844.98397 | G118: 587.619304 | H118: 17.05111429 | I118: 914522.7986
B119: HP8-1 | C119: 0 | D119: 5.13 | E119: 8.145 | F119: 403.1536444 | G119: 20.0001 | H119: 0.5803485158 | I119: 19.49669841
B120: HP7-2 | C120: 1 | D120: 7.500543457 | E120: 8.15 | F120: 403.1536444 | G120: 20.0001 | H120: 0.5803485158 | I120: 325.7186442
B121: HP7-3 | C121: 1 | D121: 7.852595377 | E121: 13.15 | F121: 7766.721805 | G121: 385.3002817 | H121: 11.18036643 | I121: 6274.942894
B122: to_damper | C122: 0.2920767932 | D122: 4.297720905 | E122: 1.089 | F122: 0.002015758143 | G122: 0.0001 | H122: 2.90172807e-06 | I122: 0.0001074829547
B123: 22 | C123: <empty> | D123: <empty> | E123: <empty> | F123: <empty> | G123: <empty> | H123: <empty> | I123: <empty>
B124: WaterInlet | C124: <empty> | D124: 303 | E124: <empty> | F124: <empty> | G124: <empty> | H124: <empty> | I124: <empty>
B125: LP-2 | C125: 1 | D125: 307 | E125: 1.13 | F125: 568.0636302 | G125: 28.18114029 | H125: 0.8177400583 | I125: 44934.3519
B126: HP_BP1-b | C126: 1 | D126: 306.0354216 | E126: 15.43 | F126: 940.149598 | G126: 46.64 | H126: 1.353365972 | I126: 74348.2427
B127: HP_BP1-a | C127: 1 | D127: 306.0416358 | E127: 15.33 | F127: 940.149598 | G127: 46.64 | H127: 1.353365972 | I127: 74348.2427
B128: HP_BP1 | C128: 1 | D128: 306.0416358 | E128: 15.33 | F128: 940.149598 | G128: 46.64 | H128: 1.353365972 | I128: 74348.2427
B129: HP2_MEF | C129: 1 | D129: 87.77643899 | E129: 15.345 | F129: 0 | G129: 0 | H129: 0 | I129: 0
B130: HP2_MEF-2 | C130: 1 | D130: 87.77719962 | E130: 15.33 | F130: 0 | G130: 0 | H130: 0 | I130: 0
B131: HP2-1 | C131: 1 | D131: 87.77643899 | E131: 15.345 | F131: 11520.39483 | G131: 571.5167201 | H131: 16.5838611 | I131: 262813.7478
B132: HP2-2 | C132: 1 | D132: 87.77973515 | E132: 15.28 | F132: 11520.39483 | G132: 571.5167201 | H132: 16.5838611 | I132: 262813.7478
B133: HP_BP2 | C133: 1 | D133: 78.58328653 | E133: 15.28 | F133: 940.149598 | G133: 46.64 | H133: 1.353365972 | I133: 19206.42429
B134: HP2-3 | C134: 1 | D134: 87.08530541 | E134: 15.28 | F134: 12460.54442 | G134: 618.1567201 | H134: 17.93722707 | I134: 282020.1721
B135: to_TS-3 | C135: 1 | D135: 79.32743508 | E135: 15 | F135: 8566.970093 | G135: 424.9999 | H135: 12.3323414 | I135: 176640.1001
B136: HP_CD2-1 | C136: 1 | D136: 79.32696173 | E136: 15.01 | F136: 0.002015758143 | G136: 0.0001 | H136: 2.90172807e-06 | I136: 0.04156238627
B137: HP_CD2 | C137: 1 | D137: 79.32743508 | E137: 15 | F137: 0.002015758143 | G137: 0.0001 | H137: 2.90172807e-06 | I137: 0.04156238627
B138: HP_CD1 | C138: 1 | D138: 297.7368024 | E138: 15 | F138: 0.002015758143 | G138: 0.0001 | H138: 2.90172807e-06 | I138: 0.155086692
B139: to_TS-2 | C139: 1 | D139: 79.32748617 | E139: 15 | F139: 8566.972108 | G139: 425 | H139: 12.3323443 | I139: 176640.2552
B140: bypass_TS | C140: 1 | D140: 79.32748617 | E140: 15 | F140: 0 | G140: 0 | H140: 0 | I140: 0
B141: bypass_TS-1 | C141: 1 | D141: 79.39852864 | E141: 13.5 | F141: 0 | G141: 0 | H141: 0 | I141: 0
B142: to_TS-4 | C142: 1 | D142: 79.32696173 | E142: 15.01 | F142: 8566.970093 | G142: 424.9999 | H142: 12.3323414 | I142: 176640.1001
B143: bypass_HP_BP-2 | C143: 1 | D143: 88.39939951 | E143: 1.265 | F143: 0 | G143: 0 | H143: 0 | I143: 0
B144: HP2_TS | C144: 1 | D144: 87.77643899 | E144: 13.47 | F144: 8566.972108 | G144: 425 | H144: 12.3323443 | I144: 195226.5941
B145: bypass_HP_BP | C145: 1 | D145: 87.77643899 | E145: 13.47 | F145: 0 | G145: 0 | H145: 0 | I145: 0
B146: LIN | C146: 0.05911669128 | D146: 78.45662602 | E146: 1.15 | F146: 687.8019349 | G146: 238.7817626 | H146: 1.066024351 | I146: -25662.98315
B147: GAN-a | C147: 1 | D147: 78.0683292 | E147: 1.1 | F147: 647.1413602 | G147: 224.6657749 | H147: 1.003004519 | I147: 17471.68254
B148: GAN | C148: 1 | D148: 78.45662602 | E148: 1.15 | F148: 40.66057465 | G148: 14.11598774 | H148: 0.06301983248 | I148: 1101.853939
B149: N2-a | C149: 0.004997647781 | D149: 83.59065387 | E149: 1.99 | F149: 687.8019349 | G149: 238.7817626 | H149: 1.066024351 | I149: -25662.98315
B150: N2 | C150: 0 | D150: 83.64404887 | E150: 2 | F150: 687.8019349 | G150: 238.7817626 | H150: 1.066024351 | I150: -25862.98315
B151: to_TS-1 | C151: 1 | D151: 79.32748617 | E151: 15 | F151: 8566.972108 | G151: 425 | H151: 12.3323443 | I151: 176640.2552
B152: HP_CD2-2 | C152: 1 | D152: 79.32748617 | E152: 15 | F152: 0 | G152: 0 | H152: 0 | I152: 0
B153: HP2_TS-4 | C153: 1 | D153: 79.25514872 | E153: 13.43 | F153: 8457.240828 | G153: 419.5563271 | H153: 12.17438371 | I153: 174056.1553
B154: HP_CD2-3 | C154: 1 | D154: 79.40184595 | E154: 13.43 | F154: 0 | G154: 0 | H154: 0 | I154: 0
B155: HP2-10 | C155: 1 | D155: 79.25514872 | E155: 13.43 | F155: 8457.240828 | G155: 419.5563271 | H155: 12.17438371 | I155: 174056.1553
B156: supply_loop | C156: 0 | D156: 5.155029392 | E156: 8.135 | F156: 403.1516286 | G156: 20 | H156: 0.5803456141 | I156: 21.49659093
B157: supply_loop1-1 | C157: 1 | D157: 5.317112717 | E157: 5.364 | F157: 201.5758143 | G157: 10 | H157: 0.290172807 | I157: 10.74829547
B158: CP1_outlet-2 | C158: 0 | D158: 4.643298501 | E158: 5.364 | F158: 16021.24572 | G158: 794.8 | H158: 23.0629347 | I158: -1654.703116
B159: supply_loop2 | C159: 0 | D159: 5.155029392 | E159: 8.135 | F159: 201.5758143 | G159: 10 | H159: 0.290172807 | I159: 10.74829547
B160: 2 | C160: 0 | D160: 4.570272311 | E160: 5.157 | F160: 19552.85399 | G160: 970 | H160: 28.14676228 | I160: -2383.949926
B161: HP8-2 | C161: 0 | D161: 5.155029392 | E161: 8.135 | F161: 0.002015758143 | G161: 0.0001 | H161: 2.90172807e-06 | I161: 0.0001074829547
B162: supply_loop1 | C162: 0 | D162: 5.155029392 | E162: 8.135 | F162: 201.5758143 | G162: 10 | H162: 0.290172807 | I162: 10.74829547
B163: supply_loop2-2 | C163: 1 | D163: 5.320329727 | E163: 5.157 | F163: 201.5758143 | G163: 10 | H163: 0.290172807 | I163: 10.74829547
B164: return-1 | C164: 0 | D164: 4.400587218 | E164: 4.12 | F164: 201.5758143 | G164: 10 | H164: 0.290172807 | I164: -35.44482377
B165: return-2 | C165: 0 | D165: 4.400587218 | E165: 4.216 | F165: 201.5758143 | G165: 10 | H165: 0.290172807 | I165: -35.06945281
B166: return-3 | C166: 0 | D166: 4.405250998 | E166: 4.12 | F166: 403.1516286 | G166: 20 | H166: 0.5803456141 | I166: -70.51427658
B167: CD_return | C167: 0 | D167: 4.405250998 | E167: 4.12 | F167: 0 | G167: 0 | H167: 0 | I167: 0
B168: baking_return | C168: 0 | D168: 4.405250998 | E168: 4.12 | F168: 0 | G168: 0 | H168: 0 | I168: 0
B169: LP5-1 | C169: 1 | D169: 17.83004344 | E169: 1.3 | F169: 11276.92034 | G169: 559.4381637 | H169: 16.23337423 | I169: 51302.73005
B170: baking_return-1 | C170: 0.006578138256 | D170: 4.496877699 | E170: 1.3 | F170: 0 | G170: 0 | H170: 0 | I170: 0
B171: LP2-1 | C171: 1 | D171: 78.38174416 | E171: 1.265 | F171: 11276.92034 | G171: 559.4381637 | H171: 16.23337423 | I171: 227865.8494
B172: CD_return-2 | C172: 0.01655826017 | D172: 4.466494173 | E172: 1.265 | F172: 0 | G172: 0 | H172: 0 | I172: 0
B173: CL_inlet-2 | C173: 1 | D173: 49.78122872 | E173: 13.41 | F173: 530.1443916 | G173: 26.3 | H173: 0.7631544825 | I173: 6840.535769
B174: return_4 | C174: 0 | D174: 4.405250998 | E174: 4.12 | F174: 0 | G174: 0 | H174: 0 | I174: 0
B175: return_damper | C175: 0 | D175: 4.405250998 | E175: 4.12 | F175: 403.1516286 | G175: 20 | H175: 0.5803456141 | I175: -70.51427658
B176: HP7-5 | C176: 1 | D176: 7.852595377 | E176: 13.15 | F176: 403.1536444 | G176: 20.0001 | H176: 0.5803485158 | I176: 325.7186442
B177: return_damper-1 | C177: 0.06417988238 | D177: 4.300338998 | E177: 1.089 | F177: 403.1516286 | G177: 20 | H177: 0.5803456141 | I177: -70.51427658
B178: 1 | C178: 0 | D178: 5.155029392 | E178: 8.135 | F178: 403.1536444 | G178: 20.0001 | H178: 0.5803485158 | I178: 21.49669841
B179: CP1_inlet-1 | C179: 0 | D179: 4.400587218 | E179: 4.12 | F179: 16021.24572 | G179: 794.8 | H179: 23.0629347 | I179: -2817.154594
B180: CP2_Inlet-1 | C180: 0 | D180: 4.400587218 | E180: 4.216 | F180: 19552.85399 | G180: 970 | H180: 28.14676228 | I180: -3401.736923
B181: HP1-3 | C181: 1 | D181: 306.0354216 | E181: 15.43 | F181: 11520.39483 | G181: 571.5167201 | H181: 16.5838611 | I181: 911047.6805
B182: LP2-2 | C182: 1 | D182: 78.38174416 | E182: 1.265 | F182: 11276.92034 | G182: 559.4381637 | H182: 16.23337423 | I182: 227865.8494
B183: VLP2 | C183: 1 | D183: 78.38175114 | E183: 0.455 | F183: 568.0636302 | G183: 28.18114029 | H183: 0.8177400583 | I183: 11472.91792
B184: HP1_TS | C184: 1 | D184: 99.28975096 | E184: 13.5 | F184: 8566.972108 | G184: 425 | H184: 12.3323443 | I184: 220740.2545
B185: HP2 | C185: 1 | D185: 87.77643899 | E185: 15.345 | F185: 11520.39483 | G185: 571.5167201 | H185: 16.5838611 | I185: 262813.7478
B186: LP1 | C186: 1 | D186: 299.2797872 | E186: 1.13 | F186: 11276.92034 | G186: 559.4381637 | H186: 16.23337423 | I186: 869588.4467
B187: VLP1 | C187: 1 | D187: 299.2797872 | E187: 0.405 | F187: 568.0636302 | G187: 28.18114029 | H187: 0.8177400583 | I187: 43798.051
B188: HP2_TS-1 | C188: 1 | D188: 87.77643899 | E188: 13.47 | F188: 8566.972108 | G188: 425 | H188: 12.3323443 | I188: 195226.5941
B189: LP1a | C189: 1 | D189: 98.7589381 | E189: 1.13 | F189: 11276.92034 | G189: 559.4381637 | H189: 16.23337423 | I189: 287065.4054
B190: VLP1a | C190: 1 | D190: 98.75893741 | E190: 0.405 | F190: 568.0636302 | G190: 28.18114029 | H190: 0.8177400583 | I190: 14454.85117
B191: HP1a | C191: 1 | D191: 99.97221324 | E191: 15.43 | F191: 11520.39483 | G191: 571.5167201 | H191: 16.5838611 | I191: 299183.7517

Sheet Dump_Case_D2 (hidden)
B4: Case: | C4: 3000s\(02)-JT60-CALCULD2-3000S-OFFCase_A.HSC
B5: Flowsheet: | C5: Case (Main)
B6: Current Flowsheet Environment: | C6: Case (Main)
B8: Name | C8: Vapour Fraction | D8: Temperature | E8: Pressure | F8: Molar Flow | G8: Mass Flow | H8: Liquid Volume Flow | I8: Heat Flow
C9: <none> | D9: K | E9: bar | F9: Nm3/h(gas) | G9: g/s | H9: m3/h | I9: W*
B11: HP1-2 | C11: 1 | D11: 306.0354216 | E11: 15.43 | F11: 12068.88064 | G11: 598.7266221 | H11: 17.37341846 | I11: 954422.6461
B12: LP2 | C12: 1 | D12: 78.81679131 | E12: 1.265 | F12: 10218.43349 | G12: 506.9275561 | H12: 14.70965919 | I12: 207623.5101
B13: HP3-2 | C13: 1 | D13: 48.7343819 | E13: 13.41 | F13: 7523.397259 | G13: 373.2291637 | H13: 10.83009541 | I13: 95006.84262
B14: LP3 | C14: 1 | D14: 45.46142307 | E14: 1.28 | F14: 10218.43349 | G14: 506.9275561 | H14: 14.70965919 | I14: 119715.5552
B15: T1Inlet | C15: 1 | D15: 48.73844828 | E15: 14.77 | F15: 3501.908532 | G15: 173.7266221 | H15: 5.04107416 | I15: 44254.62033
B16: MP4 | C16: 1 | D16: 38.10908185 | E16: 6.400811904 | F16: 3495.861258 | G16: 173.4266221 | H16: 5.032368975 | I16: 34312.55063
B17: HP4 | C17: 1 | D17: 39.66044179 | E17: 13.39 | F17: 7523.397259 | G17: 373.2291637 | H17: 10.83009541 | I17: 76975.04406
B18: MP5 | C18: 1 | D18: 22.10434027 | E18: 6.350811904 | F18: 3495.861258 | G18: 173.4266221 | H18: 5.032368975 | I18: 19454.06302
B19: LP5 | C19: 1 | D19: 20.52759271 | E19: 1.3 | F19: 10218.43349 | G19: 506.9275561 | H19: 14.70965919 | I19: 53698.60041
B20: HP6 | C20: 1 | D20: 14.27936043 | E20: 13.16 | F20: 7523.397259 | G20: 373.2291637 | H20: 10.83009541 | I20: 23272.35842
B21: LP6 | C21: 1 | D21: 14.1292803 | E21: 1.33 | F21: 6728.619509 | G21: 333.800934 | H21: 9.685995401 | I21: 24040.3402
B22: HP7 | C22: 1 | D22: 8.957428974 | E22: 13.15 | F22: 7523.397259 | G22: 373.2291637 | H22: 10.83009541 | I22: 8973.894142
B23: LP7 | C23: 1 | D23: 6.858566603 | E23: 1.335 | F23: 6728.619509 | G23: 333.800934 | H23: 9.685995401 | I23: 10613.12549
B24: HP7-4 | C24: 1 | D24: 6.832599755 | E24: 4.88 | F24: 7105.528581 | G24: 352.4990637 | H24: 10.22856428 | I24: 6040.327675
B25: LP8 | C25: 1 | D25: 4.785084343 | E25: 1.34 | F25: 6728.619509 | G25: 333.800934 | H25: 9.685995401 | I25: 5890.281666
B26: JT2-3 | C26: 0.4349012219 | D26: 4.299690904 | E26: 1.089 | F26: 920.3479274 | G26: 45.65765643 | H26: 1.324861033 | I26: 181.8098133
B27: LHe 3,6K | C27: 0 | D27: 3.601771594 | E27: 0.53 | F27: 0 | G27: 0 | H27: 0 | I27: 0
B28: HP5 | C28: 1 | D28: 22.10434027 | E28: 13.37 | F28: 7523.397259 | G28: 373.2291637 | H28: 10.83009541 | I28: 40949.855
B29: GHe 4,3K | C29: 1 | D29: 4.300587218 | E29: 1.089 | F29: 6675.237941 | G29: 331.152721 | H29: 9.609151462 | I29: 5113.19184
B30: LHe 4,3K | C30: 0 | D30: 4.300587218 | E30: 1.089 | F30: 0 | G30: 0 | H30: 0 | I30: 0
B31: GHe 3,6K | C31: 1 | D31: 3.601771594 | E31: 0.53 | F31: 470.5063174 | G31: 23.34140725 | H31: 0.6773041662 | I31: 347.8176053
B32: HP8-3 | C32: 1 | D32: 5.745386506 | E32: 4.86 | F32: 7105.528581 | G32: 352.4990637 | H32: 10.22856428 | I32: 1403.659188
B33: HP8-5 | C33: 1 | D33: 5.745386506 | E33: 4.86 | F33: 6185.180653 | G33: 306.8414073 | H33: 8.903703246 | I33: 1221.849375
B34: VLP0 | C34: 0.1692622315 | D34: 3.601310611 | E34: 0.53 | F34: 470.5063174 | G34: 23.34140725 | H34: 0.6773041662 | I34: -97.9144286
B35: MP | C35: 1 | D35: 1173.493324 | E35: 16 | F35: 12691.50471 | G35: 629.6144583 | H35: 18.26969947 | I35: 3839209.692
B36: MP-1 | C36: 1 | D36: 306 | E36: 16 | F36: 12691.50471 | G36: 629.6144583 | H36: 18.26969947 | I36: 1003660.561
B37: TS_inlet | C37: 1 | D37: 79.32949616 | E37: 15 | F37: 8566.972108 | G37: 425 | H37: 12.3323443 | I37: 176644.7216
B38: TS_outlet | C38: 1 | D38: 99.29176839 | E38: 13.5 | F38: 8566.972108 | G38: 425 | H38: 12.3323443 | I38: 220744.7216
B39: To Comp LP | C39: 1 | D39: 300.6438409 | E39: 1.05 | F39: 12691.50471 | G39: 629.6144583 | H39: 18.26969947 | I39: 983113.3835
B40: LIN-a | C40: 0 | D40: 78.45653376 | E40: 1.15 | F40: 721.0379131 | G40: 250.3201795 | H40: 1.117536801 | I40: -29821.14009
B41: GAN-b | C41: 1 | D41: 78.08339961 | E41: 1.1 | F41: 765.9892749 | G41: 265.9257846 | H41: 1.187206925 | I41: 20684.88757
B42: HP2-5 | C42: 1 | D42: 79.32896989 | E42: 15.01 | F42: 12068.88064 | G42: 598.7266221 | H42: 17.37341846 | I42: 248851.3579
B43: to_CL-1 | C43: 1 | D43: 79.25609521 | E43: 13.41 | F43: 18.33210072 | G43: 0.9094394969 | H43: 0.02638946116 | I43: 377.2879399
B44: CL_inlet | C44: 1 | D44: 49.99993745 | E44: 4 | F44: 530.1443916 | G44: 26.3 | H44: 0.7631544825 | I44: 6840.547568
B45: CL_outlet | C45: 1 | D45: 300 | E45: 1.05 | F45: 530.1443916 | G45: 26.3 | H45: 0.7631544825 | I45: 40978.28929
B46: GAN-c | C46: 1 | D46: 305.543332 | E46: 1.05 | F46: 765.9892749 | G46: 265.9257846 | H46: 1.187206925 | I46: 84277.59248
B47: After Comp | C47: 1 | D47: 306.0310716 | E47: 15.5 | F47: 12691.50471 | G47: 629.6144583 | H47: 18.26969947 | I47: 1003660.561
B48: LPbypass | C48: 1 | D48: 306.0310716 | E48: 15.5 | F48: 380.7451414 | G48: 18.88843375 | H48: 0.5480909842 | I48: 30109.81683
B49: Paliers | C49: 1 | D49: 306.0310716 | E49: 15.5 | F49: 241.8909772 | G49: 12 | H49: 0.3482073684 | I49: 19129.05044
B50: Recycle | C50: 1 | D50: 307 | E50: 1.05 | F50: 268.7005605 | G50: 13.33 | H50: 0.3868003518 | I50: 21254.11582
B51: To recycle | C51: 1 | D51: 277.6345582 | E51: 1.33 | F51: 268.7005605 | G51: 13.33 | H51: 0.3868003518 | I51: 19222.76953
B52: T1Outlet | C52: 1 | D52: 38.10908185 | E52: 6.400811904 | F52: 3501.908532 | G52: 173.7266221 | H52: 5.04107416 | I52: 34371.90579
B53: T1Leak | C53: 1 | D53: 38.10908185 | E53: 6.400811904 | F53: 6.047274429 | G53: 0.3 | H53: 0.008705184211 | I53: 59.35516164
B54: T2Outlet-1 | C54: 1 | D54: 14.28450552 | E54: 1.33 | F54: 3495.861258 | G54: 173.4266221 | H54: 5.032368975 | I54: 12634.04255
B55: T2Leak | C55: 1 | D55: 14.28450552 | E55: 1.33 | F55: 6.047274429 | G55: 0.3 | H55: 0.008705184211 | I55: 21.85484972
B56: T3Outlet | C56: 1 | D56: 6.832599755 | E56: 4.88 | F56: 7120.243615 | G56: 353.2290637 | H56: 10.24974689 | I56: 6052.836755
B57: T3Leak | C57: 1 | D57: 6.832599755 | E57: 4.88 | F57: 14.71503444 | G57: 0.73 | H57: 0.02118261491 | I57: 12.50908061
B58: ColdComp_Outlet | C58: 1 | D58: 4.789091169 | E58: 1.35 | F58: 6728.619509 | G58: 333.800934 | H58: 9.685995401 | I58: 5875.281666
B59: VLP9-1 | C59: 1 | D59: 3.661071246 | E59: 0.53 | F59: 470.5063174 | G59: 23.34140725 | H59: 0.6773041662 | I59: 357.8176053
B60: HP9 | C60: 0 | D60: 4.153886021 | E60: 4.77 | F60: 470.5063174 | G60: 23.34140725 | H60: 0.6773041662 | I60: -97.9144286
B61: VLP8 | C61: 1 | D61: 4.100618077 | E61: 0.51 | F61: 470.5063174 | G61: 23.34140725 | H61: 0.6773041662 | I61: 429.9658367
B62: HP2-9 | C62: 1 | D62: 79.25514872 | E62: 13.43 | F62: 8035.20955 | G62: 398.6197242 | H62: 11.56686043 | I62: 165370.4453
B63: HP2_TS-2 | C63: 1 | D63: 79.25467548 | E63: 13.44 | F63: 8053.541651 | G63: 399.5291637 | H63: 11.59324989 | I63: 165747.7332
B64: HP8-4 | C64: 1 | D64: 5.745386506 | E64: 4.86 | F64: 920.3479274 | G64: 45.65765643 | H64: 1.324861033 | I64: 181.8098133
B65: VLP7 | C65: 1 | D65: 6.858477393 | E65: 0.495 | F65: 470.5063174 | G65: 23.34140725 | H65: 0.6773041662 | I65: 799.6205563
B66: VLP6 | C66: 1 | D66: 14.12936545 | E66: 0.49 | F66: 470.5063174 | G66: 23.34140725 | H66: 0.6773041662 | I66: 1700.870126
B67: VLP5 | C67: 1 | D67: 20.52754712 | E67: 0.475 | F67: 470.5063174 | G67: 23.34140725 | H67: 0.6773041662 | I67: 2482.282759
B68: VLP4 | C68: 1 | D68: 38.91991234 | E68: 0.47 | F68: 470.5063174 | G68: 23.34140725 | H68: 0.6773041662 | I68: 4717.145911
B69: VLP3 | C69: 1 | D69: 45.46142322 | E69: 0.465 | F69: 470.5063174 | G69: 23.34140725 | H69: 0.6773041662 | I69: 5510.815999
B70: LP | C70: 1 | D70: 552.3441792 | E70: 1.18 | F70: 566.5230374 | G70: 28.10471283 | H70: 0.8155223412 | I70: 80616.73742
B71: CryoPumps_Inlet | C71: 0 | D71: 3.7 | E71: 4.7 | F71: 5714.674336 | G71: 283.5 | H71: 8.226399079 | I71: -1619.980832
B72: CryoPumps_Outlet | C72: 0 | D72: 3.87272132 | E72: 4.2 | F72: 5714.674336 | G72: 283.5 | H72: 8.226399079 | I72: -1538.080832
B73: LP9-2 | C73: 0 | D73: 4.100625373 | E73: 4.195 | F73: 5714.674336 | G73: 283.5 | H73: 8.226399079 | I73: -1317.781819
B74: HP9-1 | C74: 0 | D74: 4.153886021 | E74: 4.77 | F74: 5714.674336 | G74: 283.5 | H74: 8.226399079 | I74: -1189.248798
B75: HP1 | C75: 1 | D75: 306.0310716 | E75: 15.5 | F75: 12068.88064 | G75: 598.7266221 | H75: 17.37341846 | I75: 954422.6461
B76: LP-4 | C76: 1 | D76: 300.1326053 | E76: 1.05 | F76: 11202.37027 | G76: 555.7397997 | H76: 16.12605777 | I76: 866286.3166
B77: To Comp VLP | C77: 1 | D77: 301.0532058 | E77: 0.35 | F77: 566.5230374 | G77: 28.10471283 | H77: 0.8155223412 | I77: 43937.57485
B78: to_TS | C78: 1 | D78: 79.32949616 | E78: 15 | F78: 8566.972108 | G78: 425 | H78: 12.3323443 | I78: 176644.7216
B79: to_CL-2 | C79: 1 | D79: 79.25467548 | E79: 13.44 | F79: 18.33210072 | G79: 0.9094394969 | H79: 0.02638946116 | I79: 377.2879399
B80: HP2-7 | C80: 1 | D80: 79.33086334 | E80: 14.97 | F80: 3501.908532 | G80: 173.7266221 | H80: 5.04107416 | I80: 72206.75382
B81: HP2-8 | C81: 1 | D81: 79.33086334 | E81: 14.97 | F81: 3501.908532 | G81: 173.7266221 | H81: 5.04107416 | I81: 72206.75382
B82: HP5-1 | C82: 1 | D82: 22.14114433 | E82: 13.19 | F82: 7523.397259 | G82: 373.2291637 | H82: 10.83009541 | I82: 41049.855
B83: Piston | C83: 1 | D83: 4.300587218 | E83: 1.089 | F83: 53.38156802 | G83: 2.648212942 | H83: 0.07684393829 | I83: 40.88995785
B84: To Buffer | C84: 1 | D84: 306.0310716 | E84: 15.5 | F84: -0.012044715 | G84: -0.0005975277856 | H84: -1.733863148e-05 | I84: -0.9525115957
B85: VLP8-1 | C85: 1 | D85: 4.192849127 | E85: 0.5 | F85: 470.5063174 | G85: 23.34140725 | H85: 0.6773041662 | I85: 444.9658367
B86: HP2-4 | C86: 1 | D86: 79.25467548 | E86: 15.23 | F86: 12068.88064 | G86: 598.7266221 | H86: 17.37341846 | I86: 248651.3579
B87: CP1_Inlet | C87: 0 | D87: 4.400587218 | E87: 4.609 | F87: 8949.966156 | G87: 444 | H87: 12.88367263 | I87: -1487.002784
B88: CP1_Outlet | C88: 0 | D88: 4.539683882 | E88: 5.145 | F88: 8949.966156 | G88: 444 | H88: 12.88367263 | I88: -1147.624041
B89: TF_Inlet | C89: 0 | D89: 4.400587218 | E89: 5.127 | F89: 9151.54197 | G89: 454 | H89: 13.17384544 | I89: -1422.059003
B90: TF_Outlet | C90: 0 | D90: 5.15551014 | E90: 4.627 | F90: 9151.54197 | G90: 454 | H90: 13.17384544 | I90: 54.50099715
B91: HP9-0 | C91: 0 | D91: 4.153886021 | E91: 4.77 | F91: 6185.180653 | G91: 306.8414073 | H91: 8.903703246 | I91: -1287.163226
B92: CP2_Inlet | C92: 0 | D92: 4.400587218 | E92: 3.941 | F92: 19351.27817 | G92: 960 | H92: 27.85658948 | I92: -3468.749526
B93: CP2_outlet | C93: 0 | D93: 4.562613066 | E93: 4.881 | F93: 19351.27817 | G93: 960 | H93: 27.85658948 | I93: -2491.575913
B94: PF_Inlet | C94: 0 | D94: 4.400587218 | E94: 4.811 | F94: 19552.85399 | G94: 970 | H94: 28.14676228 | I94: -3167.667847
B95: PF_Outlet | C95: 0 | D95: 4.636843332 | E95: 4.011 | F95: 19552.85399 | G95: 970 | H95: 28.14676228 | I95: -2502.227847
B96: HP8-6 | C96: 0 | D96: 4.400587218 | E96: 4.79 | F96: 6185.180653 | G96: 306.8414073 | H96: 8.903703246 | I96: -1004.715982
B97: MP6 | C97: 1 | D97: 14.28450552 | E97: 1.33 | F97: 3489.813983 | G97: 173.1266221 | H97: 5.023663791 | I97: 12612.1877
B98: LP9-3 | C98: 0.009670702957 | D98: 4.297144765 | E98: 1.089 | F98: 5714.674336 | G98: 283.5 | H98: 8.226399079 | I98: -1317.781819
B99: HP3-3 | C99: 1 | D99: 48.7343819 | E99: 14.95 | F99: 3501.908532 | G99: 173.7266221 | H99: 5.04107416 | I99: 44254.62033
B100: GHe1-3 | C100: 0.9980790247 | D100: 4.283463732 | E100: 1.069 | F100: 6728.619509 | G100: 333.800934 | H100: 9.685995401 | I100: 5154.081798
B101: T3Inlet | C101: 1 | D101: 8.951891883 | E101: 13.07 | F101: 7120.243615 | G101: 353.2290637 | H101: 10.24974689 | I101: 8493.013231
B102: LP-1 | C102: 1 | D102: 307 | E102: 1.13 | F102: 566.5230374 | G102: 28.10471283 | H102: 0.8155223412 | I102: 44812.48961
B103: VLP1-1 | C103: 1 | D103: 299.8297519 | E103: 0.35 | F103: 470.5063174 | G103: 23.34140725 | H103: 0.6773041662 | I103: 36342.56462
B104: VLPbypass | C104: 1 | D104: 307 | E104: 1.13 | F104: 96.01672006 | G104: 4.763305577 | H104: 0.138218175 | I104: 7595.010239
B105: VLP-2 | C105: 1 | D105: 307.0484413 | E105: 0.35 | F105: 96.01672006 | G105: 4.763305577 | H105: 0.138218175 | I105: 7595.010239
B106: Conso.liq | C106: 0 | D106: 4.299366515 | E106: 1.089 | F106: -362.9379669 | G106: -18.00503538 | H106: -0.5224571657 | I106: 86.99527637
B107: HP2-6 | C107: 1 | D107: 79.32896989 | E107: 15.01 | F107: 3501.908532 | G107: 173.7266221 | H107: 5.04107416 | I107: 72206.75382
B108: From_Buffer | C108: 1 | D108: 307 | E108: 1.05 | F108: 309.5451178 | G108: 15.3562628 | H108: 0.4455969882 | I108: 24484.90533
B109: LPbypass-2 | C109: 1 | D109: 306.0310716 | E109: 15.5 | F109: 380.7443777 | G109: 18.88839586 | H109: 0.5480898848 | I109: 30109.75643
B110: LPbypass-3 | C110: 1 | D110: 306.9287887 | E110: 1.05 | F110: 380.7443777 | G110: 18.88839586 | H110: 0.5480898848 | I110: 30109.75643
B111: GHe | C111: 1 | D111: 4.300587093 | E111: 1.089 | F111: 6728.619509 | G111: 333.800934 | H111: 9.685995401 | I111: 5154.081798
B112: LP6-2 | C112: 1 | D112: 14.18228206 | E112: 1.33 | F112: 10218.43349 | G112: 506.9275561 | H112: 14.70965919 | I112: 36652.52789
B113: LP4 | C113: 1 | D113: 38.91991113 | E113: 1.29 | F113: 10218.43349 | G113: 506.9275561 | H113: 14.70965919 | I113: 102447.4267
B114: HP3-4 | C114: 1 | D114: 48.7343819 | E114: 13.41 | F114: 511.8122909 | G114: 25.3905605 | H114: 0.7367650213 | I114: 6463.259629
B115: HP2_TS-3 | C115: 1 | D115: 79.25467548 | E115: 13.44 | F115: 8035.20955 | G115: 398.6197242 | H115: 11.56686043 | I115: 165370.4453
B116: HP3-1 | C116: 1 | D116: 48.7343819 | E116: 13.41 | F116: 8035.20955 | G116: 398.6197242 | H116: 11.56686043 | I116: 101470.1023
B117: bypass | C117: 1 | D117: 79.40380443 | E117: 13.43 | F117: 0 | G117: 0 | H117: 0 | I117: 0
B118: bypass-2 | C118: 1 | D118: 79.33086334 | E118: 14.97 | F118: 0 | G118: 0 | H118: 0 | I118: 0
B119: T2Outlet | C119: 1 | D119: 14.28820855 | E119: 1.35 | F119: 3495.861258 | G119: 173.4266221 | H119: 5.032368975 | I119: 12634.04255
B120: HP8 | C120: 1 | D120: 5.741 | E120: 4.87 | F120: 7105.528581 | G120: 352.4990637 | H120: 10.22856428 | I120: 1388.659188
B121: LP-3 | C121: 1 | D121: 300.1276287 | E121: 1.13 | F121: 11202.37027 | G121: 555.7397997 | H121: 16.12605777 | I121: 866286.3166
B122: HP8-1 | C122: 1 | D122: 5.741 | E122: 8.145 | F122: 403.1536444 | G122: 20.0001 | H122: 0.5803485158 | I122: 75.05085669
B123: HP7-2 | C123: 1 | D123: 8.340251543 | E123: 8.15 | F123: 403.1536444 | G123: 20.0001 | H123: 0.5803485158 | I123: 480.880911
B124: HP7-3 | C124: 1 | D124: 8.957428974 | E124: 13.15 | F124: 7120.243615 | G124: 353.2290637 | H124: 10.24974689 | I124: 8493.013231
B125: to_damper | C125: 0.4288681973 | D125: 4.29869631 | E125: 1.089 | F125: 0.002015758143 | G125: 0.0001 | H125: 2.90172807e-06 | I125: 0.0003852523572
B126: 22 | C126: <empty> | D126: <empty> | E126: <empty> | F126: <empty> | G126: <empty> | H126: <empty> | I126: <empty>
B127: WaterInlet | C127: <empty> | D127: 303 | E127: <empty> | F127: <empty> | G127: <empty> | H127: <empty> | I127: <empty>
B128: LP-2 | C128: 1 | D128: 307 | E128: 1.13 | F128: 470.5063174 | G128: 23.34140725 | H128: 0.6773041662 | I128: 37217.47937
B129: HP_BP1-b | C129: 1 | D129: 306.0354216 | E129: 15.43 | F129: 1138.903351 | G129: 56.5 | H129: 1.63947636 | I129: 90065.94581
B130: HP_BP1-a | C130: 1 | D130: 306.0416358 | E130: 15.33 | F130: 1138.903351 | G130: 56.5 | H130: 1.63947636 | I130: 90065.94581
B131: HP_BP1 | C131: 1 | D131: 306.0416358 | E131: 15.33 | F131: 1138.903351 | G131: 56.5 | H131: 1.63947636 | I131: 90065.94581
B132: HP2_MEF | C132: 1 | D132: 88.65082219 | E132: 15.345 | F132: 0 | G132: 0 | H132: 0 | I132: 0
B133: HP2_MEF-2 | C133: 1 | D133: 88.65158737 | E133: 15.33 | F133: 0 | G133: 0 | H133: 0 | I133: 0
B134: HP2-1 | C134: 1 | D134: 88.65082219 | E134: 15.345 | F134: 10929.97729 | G134: 542.2266221 | H134: 15.7339421 | I134: 251819.605
B135: HP2-2 | C135: 1 | D135: 88.65413803 | E135: 15.28 | F135: 10929.97729 | G135: 542.2266221 | H135: 15.7339421 | I135: 251819.605
B136: HP_BP2 | C136: 1 | D136: 89.5145752 | E136: 15.28 | F136: 1138.903351 | G136: 56.5 | H136: 1.63947636 | I136: 26493.33689
B137: HP2-3 | C137: 1 | D137: 88.73532983 | E137: 15.28 | F137: 12068.88064 | G137: 598.7266221 | H137: 17.37341846 | I137: 278312.9419
B138: to_TS-3 | C138: 1 | D138: 79.32944325 | E138: 15 | F138: 8566.970093 | G138: 424.9999 | H138: 12.3323414 | I138: 176644.5625
B139: HP_CD2-1 | C139: 1 | D139: 79.32896989 | E139: 15.01 | F139: 0.002015758143 | G139: 0.0001 | H139: 2.90172807e-06 | I139: 0.04156343624
B140: HP_CD2 | C140: 1 | D140: 79.32944325 | E140: 15 | F140: 0.002015758143 | G140: 0.0001 | H140: 2.90172807e-06 | I140: 0.04156343624
B141: HP_CD1 | C141: 1 | D141: 305.5432848 | E141: 15 | F141: 0.002015758143 | G141: 0.0001 | H141: 2.90172807e-06 | I141: 0.1591393921
B142: to_TS-2 | C142: 1 | D142: 79.32949616 | E142: 15 | F142: 8566.972108 | G142: 425 | H142: 12.3323443 | I142: 176644.7216
B143: bypass_TS | C143: 1 | D143: 79.32949616 | E143: 15 | F143: 0 | G143: 0 | H143: 0 | I143: 0
B144: bypass_TS-1 | C144: 1 | D144: 79.40054001 | E144: 13.5 | F144: 0 | G144: 0 | H144: 0 | I144: 0
B145: to_TS-4 | C145: 1 | D145: 79.32896989 | E145: 15.01 | F145: 8566.970093 | G145: 424.9999 | H145: 12.3323414 | I145: 176644.5625
B146: bypass_HP_BP-2 | C146: 1 | D146: 89.27750211 | E146: 1.265 | F146: 513.4304573 | G146: 25.47083632 | H146: 0.7390944073 | I146: 11816.38718
B147: HP2_TS | C147: 1 | D147: 88.65082219 | E147: 13.47 | F147: 8053.541651 | G147: 399.5291637 | H147: 11.59324989 | I147: 185348.8919
B148: bypass_HP_BP | C148: 1 | D148: 88.65082219 | E148: 13.47 | F148: 513.4304573 | G148: 25.47083632 | H148: 0.7390944073 | I148: 11816.38718
B149: LIN | C149: 0.05868406151 | D149: 78.45653376 | E149: 1.15 | F149: 765.9892749 | G149: 265.9257846 | H149: 1.187206925 | I149: -28603.01247
B150: GAN-a | C150: 1 | D150: 78.0683292 | E150: 1.1 | F150: 721.0379131 | G150: 250.3201795 | H150: 1.117536801 | I150: 19466.75996
B151: GAN | C151: 1 | D151: 78.45653376 | E151: 1.15 | F151: 44.95136172 | G151: 15.6056051 | H151: 0.0696701242 | I151: 1218.127614
B152: N2-a | C152: 0.004519036241 | D152: 83.59326889 | E152: 1.99 | F152: 765.9892749 | G152: 265.9257846 | H152: 1.187206925 | I152: -28603.01247
B153: N2 | C153: 0 | D153: 83.64404887 | E153: 2 | F153: 765.9892749 | G153: 265.9257846 | H153: 1.187206925 | I153: -28803.01247
B154: to_TS-1 | C154: 1 | D154: 79.32949616 | E154: 15 | F154: 8566.972108 | G154: 425 | H154: 12.3323443 | I154: 176644.7216
B155: HP_CD2-2 | C155: 1 | D155: 79.32949616 | E155: 15 | F155: 0 | G155: 0 | H155: 0 | I155: 0
B156: HP2_TS-4 | C156: 1 | D156: 79.25514872 | E156: 13.43 | F156: 8035.20955 | G156: 398.6197242 | H156: 11.56686043 | I156: 165370.4453
B157: HP_CD2-3 | C157: 1 | D157: 79.40385738 | E157: 13.43 | F157: 0 | G157: 0 | H157: 0 | I157: 0
B158: HP2-10 | C158: 1 | D158: 79.25514872 | E158: 13.43 | F158: 8035.20955 | G158: 398.6197242 | H158: 11.56686043 | I158: 165370.4453
B159: supply_loop | C159: 1 | D159: 5.761282419 | E159: 8.135 | F159: 403.1516286 | G159: 20 | H159: 0.5803456141 | I159: 77.05047144
B160: supply_loop1-1 | C160: 1 | D160: 5.750170856 | E160: 5.145 | F160: 201.5758143 | G160: 10 | H160: 0.290172807 | I160: 38.52523572
B161: CP1_outlet-2 | C161: 0 | D161: 4.575097452 | E161: 5.145 | F161: 9151.54197 | G161: 454 | H161: 13.17384544 | I161: -1109.098805
B162: supply_loop2 | C162: 1 | D162: 5.761282419 | E162: 8.135 | F162: 201.5758143 | G162: 10 | H162: 0.290172807 | I162: 38.52523572
B163: 2 | C163: 0 | D163: 4.578869488 | E163: 4.881 | F163: 19552.85399 | G163: 970 | H163: 28.14676228 | I163: -2453.050677
B164: HP8-2 | C164: 1 | D164: 5.761282419 | E164: 8.135 | F164: 0.002015758143 | G164: 0.0001 | H164: 2.90172807e-06 | I164: 0.0003852523572
B165: supply_loop1 | C165: 1 | D165: 5.761282419 | E165: 8.135 | F165: 201.5758143 | G165: 10 | H165: 0.290172807 | I165: 38.52523572
B166: supply_loop2-2 | C166: 1 | D166: 5.731104575 | E166: 4.881 | F166: 201.5758143 | G166: 10 | H166: 0.290172807 | I166: 38.52523572
B167: return-1 | C167: 0 | D167: 4.400587218 | E167: 4.609 | F167: 201.5758143 | G167: 10 | H167: 0.290172807 | I167: -33.4910537
B168: return-2 | C168: 0 | D168: 4.400587218 | E168: 3.941 | F168: 201.5758143 | G168: 10 | H168: 0.290172807 | I168: -36.13280756
B169: return-3 | C169: 0 | D169: 4.432819232 | E169: 3.941 | F169: 403.1516286 | G169: 20 | H169: 0.5803456141 | I169: -69.62386125
B170: CD_return | C170: 0 | D170: 4.432819232 | E170: 3.941 | F170: 0 | G170: 0 | H170: 0 | I170: 0
B171: baking_return | C171: 0 | D171: 4.432819232 | E171: 3.941 | F171: 0 | G171: 0 | H171: 0 | I171: 0
B172: LP5-1 | C172: 1 | D172: 20.52759271 | E172: 1.3 | F172: 10218.43349 | G172: 506.9275561 | H172: 14.70965919 | I172: 53698.60041
B173: baking_return-1 | C173: 0.009297656434 | D173: 4.49588565 | E173: 1.3 | F173: 0 | G173: 0 | H173: 0 | I173: 0
B174: LP2-1 | C174: 1 | D174: 78.81679131 | E174: 1.265 | F174: 10218.43349 | G174: 506.9275561 | H174: 14.70965919 | I174: 207623.5101
B175: CD_return-2 | C175: 0.01891049048 | D175: 4.466435797 | E175: 1.265 | F175: 0 | G175: 0 | H175: 0 | I175: 0
B176: CL_inlet-2 | C176: 1 | D176: 49.7813135 | E176: 13.41 | F176: 530.1443916 | G176: 26.3 | H176: 0.7631544825 | I176: 6840.547568
B177: return_4 | C177: 0 | D177: 4.432819232 | E177: 3.941 | F177: 0 | G177: 0 | H177: 0 | I177: 0
B178: return_damper | C178: 0 | D178: 4.432819232 | E178: 3.941 | F178: 403.1516286 | G178: 20 | H178: 0.5803456141 | I178: -69.62386125
B179: HP7-5 | C179: 1 | D179: 8.957428974 | E179: 13.15 | F179: 403.1536444 | G179: 20.0001 | H179: 0.5803485158 | I179: 480.880911
B180: return_damper-1 | C180: 0.06709312323 | D180: 4.297857877 | E180: 1.089 | F180: 403.1516286 | G180: 20 | H180: 0.5803456141 | I180: -69.62386125
B181: 1 | C181: 1 | D181: 5.761282419 | E181: 8.135 | F181: 403.1536444 | G181: 20.0001 | H181: 0.5803485158 | I181: 77.05085669
B182: CP1_inlet-1 | C182: 0 | D182: 4.400587218 | E182: 4.609 | F182: 9151.54197 | G182: 454 | H182: 13.17384544 | I182: -1520.493838
B183: CP2_Inlet-1 | C183: 0 | D183: 4.400587218 | E183: 3.941 | F183: 19552.85399 | G183: 970 | H183: 28.14676228 | I183: -3504.882333
B184: HP1-3 | C184: 1 | D184: 306.0354216 | E184: 15.43 | F184: 10929.97729 | G184: 542.2266221 | H184: 15.7339421 | I184: 864356.7003
B185: LP2-2 | C185: 1 | D185: 79.31720483 | E185: 1.265 | F185: 10731.86395 | G185: 532.3983924 | H185: 15.4487536 | I185: 219439.8973
B186: VLP2 | C186: 1 | D186: 78.81679224 | E186: 0.455 | F186: 470.5063174 | G186: 23.34140725 | H186: 0.6773041662 | I186: 9555.337557
B187: TS_outlet-2 | C187: 1 | D187: 99.29176839 | E187: 13.5 | F187: 8566.972108 | G187: 425 | H187: 12.3323443 | I187: 220744.7216
B188: HP2 | C188: 1 | D188: 88.65082219 | E188: 15.345 | F188: 10929.97729 | G188: 542.2266221 | H188: 15.7339421 | I188: 251819.605
B189: LP1 | C189: 1 | D189: 299.8263303 | E189: 1.13 | F189: 10731.86395 | G189: 532.3983924 | H189: 15.4487536 | I189: 829068.8372
B190: VLP1 | C190: 1 | D190: 299.8263303 | E190: 0.405 | F190: 470.5063174 | G190: 23.34140725 | H190: 0.6773041662 | I190: 36342.56462
B191: HP2_TS-1 | C191: 1 | D191: 88.65082219 | E191: 13.47 | F191: 8566.972108 | G191: 425 | H191: 12.3323443 | I191: 197165.2791
B192: LP1a | C192: 1 | D192: 99.35554845 | E192: 1.13 | F192: 10731.86395 | G192: 532.3983924 | H192: 15.4487536 | I192: 274840.2561
B193: VLP1a | C193: 1 | D193: 99.35556075 | E193: 0.405 | F193: 470.5063174 | G193: 23.34140725 | H193: 0.6773041662 | I193: 12044.74361
B194: HP1a | C194: 1 | D194: 100.6726408 | E194: 15.43 | F194: 10929.97729 | G194: 542.2266221 | H194: 15.7339421 | I194: 285830.1064

Sheet Dump_Baking (hidden)
B1: Case: | C1: (03)-JT60-OFFCase_A-BAKING.HSC
B2: Flowsheet: | C2: Case (Main)
B3: Current Flowsheet Environment: | C3: Case (Main)
B5: Name | C5: Vapour Fraction | D5: Temperature | E5: Pressure | F5: Molar Flow | G5: Mass Flow | H5: Liquid Volume Flow | I5: Heat Flow
A6: 1 | C6: <none> | D6: K | E6: bar | F6: Nm3/h(gas) | G6: g/s | H6: m3/h | I6: W*
B8: HP1-2 | C8: 1 | D8: 306.0354216 | E8: 15.43 | F8: 9160.154475 | G8: 454.4272588 | H8: 13.18624333 | I8: 724396.8296
B9: LP2 | C9: 1 | D9: 80.43946505 | E9: 1.265 | F9: 8981.263353 | G9: 445.5526266 | H9: 12.92872563 | I9: 186242.4201
B10: HP3-2 | C10: 1 | D10: 37.43277188 | E10: 12.71 | F10: 6462.115919 | G10: 320.5799238 | H10: 9.302357637 | I10: 62281.22944
B11: LP3 | C11: 1 | D11: 35.22697201 | E11: 1.28 | F11: 8981.263353 | G11: 445.5526266 | H11: 12.92872563 | I11: 81467.52564
B12: T1Inlet | C12: 1 | D12: 37.4350724 | E12: 9.353744978 | F12: 2545.302733 | G12: 126.2702443 | H12: 3.664019125 | I12: 24531.38415
B13: MP4 | C13: 1 | D13: 29.36218622 | E13: 4.06915627 | F13: 2539.255458 | G13: 125.9702443 | H13: 3.655313941 | I13: 19117.17116
B14: HP4 | C14: 1 | D14: 29.01764202 | E14: 12.69 | F14: 6462.115919 | G14: 320.5799238 | H14: 9.302357637 | I14: 47644.50522
B15: MP5 | C15: 1 | D15: 17.06422979 | E15: 4.01915627 | F15: 2539.255458 | G15: 125.9702443 | H15: 3.655313941 | I15: 10797.21815
B16: LP5 | C16: 1 | D16: 16.89333889 | E16: 1.3 | F16: 7647.919971 | G16: 379.4066266 | H16: 11.00934859 | I16: 32912.66571
B17: HP6 | C17: 1 | D17: 13.22528743 | E17: 12.46 | F17: 6462.115919 | G17: 320.5799238 | H17: 9.302357637 | I17: 17908.38302
B18: LP6 | C18: 1 | D18: 13.12528743 | E18: 1.33 | F18: 5114.711788 | G18: 253.7363823 | H18: 7.362739829 | I18: 16909.26897
B19: HP7 | C19: 1 | D19: 10.82370362 | E19: 12.45 | F19: 6462.115919 | G19: 320.5799238 | H19: 9.302357637 | I19: 12441.43459
B20: LP7 | C20: 1 | D20: 9.15368876 | E20: 1.335 | F20: 5114.711788 | G20: 253.7363823 | H20: 7.362739829 | I20: 11412.30614
B21: HP7-4 | C21: 1 | D21: 8.478897474 | E21: 5.18 | F21: 5114.015173 | G21: 253.7018238 | H21: 7.361737036 | I21: 8099.638086
B22: LP8 | C22: 0.9771542877 | D22: 4.533936714 | E22: 1.34 | F22: 5114.711788 | G22: 253.7363823 | H22: 7.362739829 | I22: 3733.572874
B23: JT2-3 | C23: 0.7218581735 | D23: 4.702075271 | E23: 1.543 | F23: 5113.786941 | G23: 253.6905014 | H23: 7.361408492 | I23: 2528.775723
B24: LHe 3,6K | C24: 0 | D24: 3.601771594 | E24: 0.53 | F24: 0 | G24: 0 | H24: 0 | I24: 0
B25: HP5 | C25: 1 | D25: 17.06422979 | E25: 12.67 | F25: 6462.115919 | G25: 320.5799238 | H25: 9.302357637 | I25: 25726.01126
B26: GHe 4,3K | C26: 1 | D26: 4.701562525 | E26: 1.543 | F26: 5114.932502 | G26: 253.7473317 | H26: 7.363057551 | I26: 3718.734341
B27: LHe 4,3K | C27: 0 | D27: 4.701562525 | E27: 1.543 | F27: 0 | G27: 0 | H27: 0 | I27: 0
B28: GHe 3,6K | C28: 1 | D28: 3.601771594 | E28: 0.53 | F28: 0.02665567638 | G28: 0.001322364812 | H28: 3.837143095e-05 | I28: 0.0197049714
B29: HP8-3 | C29: 1 | D29: 6.36249674 | E29: 5.16 | F29: 5114.015173 | G29: 253.7018238 | H29: 7.361737036 | I29: 2528.888584
B30: HP8-5 | C30: 1 | D30: 6.362496766 | E30: 5.16 | F30: 0.2282314907 | G30: 0.01132236481 | H30: 0.000328544238 | I30: 0.1128608328
B31: VLP0 | C31: 0.1754126556 | D31: 3.601761365 | E31: 0.53 | F31: 0.02665567638 | G31: 0.001322364812 | H31: 3.837143095e-05 | I31: -0.005357705282
B32: MP | C32: 1 | D32: 1117.336068 | E32: 16 | F32: 9693.553267 | G32: 480.8887068 | H32: 13.95408259 | I32: 2792112.578
B33: MP-1 | C33: 1 | D33: 306 | E33: 16 | F33: 9693.553267 | G33: 480.8887068 | H33: 13.95408259 | I33: 766578.694
B34: TS_inlet | C34: 1 | D34: 81.99999984 | E34: 15 | F34: 9160.152459 | G34: 454.4271588 | H34: 13.18624043 | I34: 195218.88
B35: TS_outlet | C35: 1 | D35: 142.0278588 | E35: 12.8 | F35: 9160.152459 | G35: 454.4271588 | H35: 13.18624043 | I35: 336968.88
B36: To Comp LP | C36: 1 | D36: 286.2552575 | E36: 1.05 | F36: 9693.553267 | G36: 480.8887068 | H36: 13.95408259 | I36: 714956.6383
B37: LIN-a | C37: 0 | D37: 78.45604933 | E37: 1.15 | F37: 1797.009249 | G37: 623.8613388 | H37: 2.785184982 | I37: -74322.4646
B38: Gan-c | C38: 1 | D38: 78.0683292 | E38: 1.1 | F38: 1904.436647 | G38: 661.1565282 | H38: 2.951686726 | I38: 51416.45173
B39: HP2-5 | C39: 1 | D39: 81.99946743 | E39: 15.01 | F39: 9160.154475 | G39: 454.4272588 | H39: 13.18624333 | I39: 195218.8104
B40: to_CL-1 | C40: 1 | D40: 81.90700813 | E40: 12.71 | F40: 0 | G40: 0 | H40: 0 | I40: 0
B41: CL_inlet | C41: 1 | D41: 37.4280278 | E41: 4 | F41: 0.02015758143 | G41: 0.001 | H41: 2.90172807e-05 | I41: 0.1942767616
B42: CL_outlet | C42: 1 | D42: 300 | E42: 1.05 | F42: 0.02015758143 | G42: 0.001 | H42: 2.90172807e-05 | I42: 1.558109859
B43: Gan-d | C43: 1 | D43: 298.5388522 | E43: 1.05 | F43: 843.7184655 | G43: 292.9107525 | H43: 1.307679412 | I43: 90694.53599
B44: After Comp | C44: 1 | D44: 306.0310716 | E44: 15.5 | F44: 9693.553267 | G44: 480.8887068 | H44: 13.95408259 | I44: 766578.694
B45: LPbypass | C45: 1 | D45: 306.0310716 | E45: 15.5 | F45: 290.806598 | G45: 14.4266612 | H45: 0.4186224778 | I45: 22997.36082
B46: Paliers | C46: 1 | D46: 306.0310716 | E46: 15.5 | F46: 241.8909772 | G46: 12 | H46: 0.3482073684 | I46: 19129.05044
B47: Recycle | C47: 1 | D47: 307 | E47: 1.05 | F47: 268.7005605 | G47: 13.33 | H47: 0.3868003518 | I47: 21254.11582
B48: To recycle | C48: 1 | D48: 277.5521729 | E48: 1.33 | F48: 268.7005605 | G48: 13.33 | H48: 0.3868003518 | I48: 19217.06716
B49: T1Outlet | C49: 1 | D49: 29.36218622 | E49: 4.06915627 | F49: 2545.302733 | G49: 126.2702443 | H49: 3.664019125 | I49: 19162.69898
B50: T1Leak | C50: 1 | D50: 29.36218622 | E50: 4.06915627 | F50: 6.047274429 | G50: 0.3 | H50: 0.008705184211 | I50: 45.52782585
B51: T2Outlet-1 | C51: 1 | D51: 12.62365423 | E51: 1.33 | F51: 2539.255458 | G51: 125.9702443 | H51: 3.655313941 | I51: 8054.977683
B52: T2Leak | C52: 1 | D52: 12.62365423 | E52: 1.33 | F52: 6.047274429 | G52: 0.3 | H52: 0.008705184211 | I52: 19.18304848
B53: T3Outlet | C53: 1 | D53: 8.478897474 | E53: 5.18 | F53: 5128.730207 | G53: 254.4318238 | H53: 7.382919651 | I53: 8122.943933
B54: T3Leak | C54: 1 | D54: 8.478897474 | E54: 5.18 | F54: 14.71503444 | G54: 0.73 | H54: 0.02118261491 | I54: 23.30584666
B55: ColdComp_Outlet | C55: 0.922112078 | D55: 4.540259295 | E55: 1.35 | F55: 0.02015758143 | G55: 0.001 | H55: 2.90172807e-05 | I55: 0.01365457423
B56: VLP9-1 | C56: 1 | D56: 1459.194928 | E56: 0.53 | F56: 0.02665567638 | G56: 0.001322364812 | H56: 3.837143095e-05 | I56: 10.01970497
B57: HP9 | C57: 0 | D57: 4.154987231 | E57: 5.07 | F57: 0.02665567638 | G57: 0.001322364812 | H57: 3.837143095e-05 | I57: -0.005357705282
B58: VLP8 | C58: 1 | D58: 1732.909669 | E58: 0.51 | F58: 0.02665567638 | G58: 0.001322364812 | H58: 3.837143095e-05 | I58: 11.89914874
B59: HP2-9 | C59: 1 | D59: 81.90506803 | E59: 12.75 | F59: 6462.136077 | G59: 320.5809238 | H59: 9.302386654 | I59: 137377.7411
B60: HP2_TS-2 | C60: 1 | D60: 81.90458296 | E60: 12.76 | F60: 9007.436794 | G60: 446.8510681 | H60: 12.96640288 | I60: 191487.97
B61: HP8-4 | C61: 1 | D61: 6.362496766 | E61: 5.16 | F61: 5113.786941 | G61: 253.6905014 | H61: 7.361408492 | I61: 2528.775723
B62: VLP7 | C62: 1 | D62: 9.153664851 | E62: 0.495 | F62: 0.02665567638 | G62: 0.001322364812 | H62: 3.837143095e-05 | I62: 0.06161595922
B63: VLP6 | C63: 1 | D63: 13.1251951 | E63: 0.49 | F63: 0.02665567638 | G63: 0.001322364812 | H63: 3.837143095e-05 | I63: 0.08938470596
B64: VLP5 | C64: 1 | D64: 16.89334092 | E64: 0.475 | F64: 0.02665567638 | G64: 0.001322364812 | H64: 3.837143095e-05 | I64: 0.1155246098
B65: VLP4 | C65: 1 | D65: 28.92109317 | E65: 0.47 | F65: 0.02665567638 | G65: 0.001322364812 | H65: 3.837143095e-05 | I65: 0.1984649862
B66: VLP3 | C66: 1 | D66: 35.22697435 | E66: 0.465 | F66: 0.02665567638 | G66: 0.001322364812 | H66: 3.837143095e-05 | I66: 0.2418486272
B67: LP | C67: 1 | D67: 558.6216241 | E67: 1.18 | F67: 0.2282314907 | G67: 0.01132236481 | H67: 0.000328544238 | I67: 32.84660448
B68: CryoPumps_Inlet | C68: 0 | D68: 3.7 | E68: 5 | F68: 0.2015758143 | G68: 0.01 | H68: 0.000290172807 | I68: -0.05557876749
B69: CryoPumps_Outlet | C69: 1 | D69: 1575.963323 | E69: 4.5 | F69: 0.2015758143 | G69: 0.01 | H69: 0.000290172807 | I69: 81.84442123
B70: LP9-2 | C70: 1 | D70: 1732.909669 | E70: 4.495 | F70: 0.2015758143 | G70: 0.01 | H70: 0.000290172807 | I70: 89.9937745
B71: HP9-1 | C71: 0 | D71: 4.154987231 | E71: 5.07 | F71: 0.2015758143 | G71: 0.01 | H71: 0.000290172807 | I71: -0.04051609081
B72: HP1 | C72: 1 | D72: 306.0310716 | E72: 15.5 | F72: 9160.154475 | G72: 454.4272588 | H72: 13.18624333 | I72: 724396.8296
B73: LP-4 | C73: 1 | D73: 284.9867707 | E73: 1.05 | F73: 9134.025831 | G73: 453.1310397 | H73: 13.14863057 | I73: 670703.594
B74: To Comp VLP | C74: 1 | D74: 304.471618 | E74: 0.35 | F74: 0.2282314907 | G74: 0.01132236481 | H74: 0.000328544238 | I74: 17.90182301
B75: to_TS | C75: 1 | D75: 81.99999984 | E75: 15 | F75: 9160.152459 | G75: 454.4271588 | H75: 13.18624043 | I75: 195218.88
B76: to_CL-2 | C76: 1 | D76: 81.90458296 | E76: 12.76 | F76: 0 | G76: 0 | H76: 0 | I76: 0
B77: HP2-7 | C77: 1 | D77: 82.10966348 | E77: 12.74 | F77: 0 | G77: 0 | H77: 0 | I77: 0
B78: HP2-8 | C78: 1 | D78: 81.90555306 | E78: 12.74 | F78: 2545.302733 | G78: 126.2702443 | H78: 3.664019125 | I78: 54110.27186
B79: HP5-1 | C79: 1 | D79: 17.09917993 | E79: 12.49 | F79: 6462.115919 | G79: 320.5799238 | H79: 9.302357637 | I79: 25826.01126
B80: Piston | C80: 1 | D80: 4.701562525 | E80: 1.543 | F80: -0.2207139875 | G80: -0.01094942805 | H80: -0.0003177226272 | I80: -0.1604667676
B81: To Buffer | C81: 1 | D81: 306.0310716 | E81: 15.5 | F81: 0.7012171817 | G81: 0.03478677162 | H81: 0.001009417517 | I81: 55.45315908
B82: VLP8-1 | C82: 1 | D82: 3917.439906 | E82: 0.5 | F82: 0.02665567638 | G82: 0.001322364812 | H82: 3.837143095e-05 | I82: 26.89914874
B83: HP2-4 | C83: 1 | D83: 81.90458296 | E83: 15.23 | F83: 9160.154475 | G83: 454.4272588 | H83: 13.18624333 | I83: 195018.8104
B84: CP1_Inlet | C84: 0 | D84: 4.801562525 | E84: 5.83 | F84: 0.02015758143 | G84: 0.001 | H84: 2.90172807e-05 | I84: -0.001253275741
B85: CP1_Outlet | C85: 0 | D85: 4.851722281 | E85: 6.07 | F85: 0.02015758143 | G85: 0.001 | H85: 2.90172807e-05 | I85: -0.0009553583104
B86: TF_Inlet | C86: 0 | D86: 4.801562525 | E86: 6 | F86: 867.7838806 | G86: 43.05 | H86: 1.249193934 | I86: -51.26402954
B87: TF_Outlet | C87: 1 | D87: 12.07978683 | E87: 5.9 | F87: 867.7838806 | G87: 43.05 | H87: 1.249193934 | I87: 2374.23597
B88: HP9-0 | C88: 0 | D88: 4.154987231 | E88: 5.07 | F88: 0.2282314907 | G88: 0.01132236481 | H88: 0.000328544238 | I88: -0.04587379609
B89: CP2_Inlet | C89: 0 | D89: 4.801562525 | E89: 5.83 | F89: 0.02015758143 | G89: 0.001 | H89: 2.90172807e-05 | I89: -0.001253275741
B90: CP2_outlet | C90: 0 | D90: 4.842863922 | E90: 6.07 | F90: 0.02015758143 | G90: 0.001 | H90: 2.90172807e-05 | I90: -0.0009925979892
B91: PF_Inlet | C91: 0 | D91: 4.801562525 | E91: 6 | F91: 465.6401311 | G91: 23.1 | H91: 0.6702991843 | I91: -27.50752805
B92: PF_Outlet | C92: 1 | D92: 11.40472403 | E92: 5.9 | F92: 465.6401311 | G92: 23.1 | H92: 0.6702991843 | I92: 1175.792472
B93: HP8-6 | C93: 0 | D93: 4.801562525 | E93: 5.09 | F93: 0.2282314907 | G93: 0.01132236481 | H93: 0.000328544238 | I93: -0.0170767571
B94: MP6 | C94: 1 | D94: 12.62365423 | E94: 1.33 | F94: 2533.208184 | G94: 125.6702443 | H94: 3.646608756 | I94: 8035.794634
B95: LP9-3 | C95: 1 | D95: 1733.051149 | E95: 1.543 | F95: 0.2015758143 | G95: 0.01 | H95: 0.000290172807 | I95: 89.9937745
B96: HP3-3 | C96: 1 | D96: 37.43277188 | E96: 12.72 | F96: 2545.302733 | G96: 126.2702443 | H96: 3.664019125 | I96: 24531.38415
B97: GHe1-3 | C97: 0.9966302804 | D97: 4.685690665 | E97: 1.523 | F97: 0.02015758143 | G97: 0.001 | H97: 2.90172807e-05 | I97: 0.01465526481
B98: T3Inlet | C98: 1 | D98: 10.5966018 | E98: 10.76301785 | F98: 5128.730207 | G98: 254.4318238 | H98: 7.382919651 | I98: 9874.283003
B99: LP-1 | C99: 1 | D99: 307 | E99: 1.13 | F99: 0.2282314907 | G99: 0.01132236481 | H99: 0.000328544238 | I99: 18.05331933
B100: VLP1-1 | C100: 1 | D100: 284.9851459 | E100: 0.35 | F100: 0.02665567638 | G100: 0.001322364812 | H100: 3.837143095e-05 | I100: 1.956992018
B101: VLPbypass | C101: 1 | D101: 307 | E101: 1.13 | F101: 0.2015758143 | G101: 0.01 | H101: 0.000290172807 | I101: 15.94483099
B102: VLP-2 | C102: 1 | D102: 307.0484413 | E102: 0.35 | F102: 0.2015758143 | G102: 0.01 | H102: 0.000290172807 | I102: 15.94483099
B103: Conso.liq | C103: 0 | D103: 4.69973147 | E103: 1.543 | F103: 0.9218112586 | G103: 0.04573025101 | H103: 0.00132696753 | I103: -0.102278406
B104: HP2-6 | C104: 1 | D104: 81.99946743 | E104: 15.01 | F104: 0 | G104: 0 | H104: 0 | I104: 0
B105: From_Buffer | C105: 1 | D105: 307 | E105: 1.05 | F105: 0 | G105: 0 | H105: 0 | I105: 0
B106: LPbypass-2 | C106: 1 | D106: 306.0310716 | E106: 15.5 | F106: 290.8067179 | G106: 14.42666715 | H106: 0.4186226504 | I106: 22997.3703
B107: LPbypass-3 | C107: 1 | D107: 306.9287887 | E107: 1.05 | F107: 290.8067179 | G107: 14.42666715 | H107: 0.4186226504 | I107: 22997.3703
B108: GHe | C108: 1 | D108: 4.701561896 | E108: 1.543 | F108: 5114.711788 | G108: 253.7363823 | H108: 7.362739829 | I108: 3718.573874
B109: LP6-2 | C109: 1 | D109: 12.95898055 | E109: 1.33 | F109: 7647.919971 | G109: 379.4066266 | H109: 11.00934859 | I109: 24945.06361
B110: LP4 | C110: 1 | D110: 28.9210854 | E110: 1.29 | F110: 8981.263353 | G110: 445.5526266 | H110: 12.92872563 | I110: 66800.8448
B111: HP3-4 | C111: 1 | D111: 37.43277188 | E111: 12.71 | F111: 0.02015758143 | G111: 0.001 | H111: 2.90172807e-05 | I111: 0.1942767616
B112: HP2_TS-3 | C112: 1 | D112: 81.90458296 | E112: 12.76 | F112: 9007.436794 | G112: 446.8510681 | H112: 12.96640288 | I112: 191487.97
B113: HP3-1 | C113: 1 | D113: 37.43277188 | E113: 12.71 | F113: 6462.136077 | G113: 320.5809238 | H113: 9.302386654 | I113: 62281.42372
B114: bypass | C114: 1 | D114: 81.90555306 | E114: 12.74 | F114: 2545.302733 | G114: 126.2702443 | H114: 3.664019125 | I114: 54110.27186
B115: bypass-2 | C115: 1 | D115: 81.90506803 | E115: 12.75 | F115: 2545.302733 | G115: 126.2702443 | H115: 3.664019125 | I115: 54110.27186
B116: T2Outlet | C116: 1 | D116: 12.62812827 | E116: 1.35 | F116: 2539.255458 | G116: 125.9702443 | H116: 3.655313941 | I116: 8054.977683
B117: HP8 | C117: 1 | D117: 6.36 | E117: 5.17 | F117: 5114.015173 | G117: 253.7018238 | H117: 7.361737036 | I117: 2513.888584
B118: LP-3 | C118: 1 | D118: 284.9817771 | E118: 1.13 | F118: 9134.025831 | G118: 453.1310397 | H118: 13.14863057 | I118: 670703.594
B119: HP8-1 | C119: 1 | D119: 6.36 | E119: 12.445 | F119: 1333.385712 | G119: 66.1481 | H119: 1.919437986 | I119: 521.0053514
B120: HP7-2 | C120: 1 | D120: 10.82370362 | E120: 12.45 | F120: 1333.385712 | G120: 66.1481 | H120: 1.919437986 | I120: 2567.151584
B121: HP7-3 | C121: 1 | D121: 10.82370362 | E121: 12.45 | F121: 5128.730207 | G121: 254.4318238 | H121: 7.382919651 | I121: 9874.283003
B122: to_damper | C122: 0.6005463016 | D122: 4.698441433 | E122: 1.543 | F122: 0.002015758143 | G122: 0.0001 | H122: 2.90172807e-06 | I122: 0.0007876346432
B123: 22 | C123: <empty> | D123: <empty> | E123: <empty> | F123: <empty> | G123: <empty> | H123: <empty> | I123: <empty>
B124: WaterInlet | C124: <empty> | D124: 303 | E124: <empty> | F124: <empty> | G124: <empty> | H124: <empty> | I124: <empty>
B125: LP-2 | C125: 1 | D125: 307 | E125: 1.13 | F125: 0.02665567638 | G125: 0.001322364812 | H125: 3.837143095e-05 | I125: 2.108488344
B126: HP_BP1-b | C126: 1 | D126: 306.0354216 | E126: 15.43 | F126: 1159.060932 | G126: 57.5 | H126: 1.66849364 | I126: 91660.03335
B127: HP_BP1-a | C127: 1 | D127: 306.0416358 | E127: 15.33 | F127: 1159.060932 | G127: 57.5 | H127: 1.66849364 | I127: 91660.03335
B128: HP_BP1 | C128: 1 | D128: 306.0416358 | E128: 15.33 | F128: 1159.060932 | G128: 57.5 | H128: 1.66849364 | I128: 91660.03335
B129: HP2_MEF | C129: 1 | D129: 110.0255915 | E129: 15.345 | F129: 0 | G129: 0 | H129: 0 | I129: 0
B130: HP2_MEF-2 | C130: 1 | D130: 110.0264385 | E130: 15.33 | F130: 0 | G130: 0 | H130: 0 | I130: 0
B131: HP2-1 | C131: 1 | D131: 110.0255915 | E131: 15.345 | F131: 8001.093542 | G131: 396.9272588 | H131: 11.51774969 | I131: 228566.4907
B132: HP2-2 | C132: 1 | D132: 110.0292618 | E132: 15.28 | F132: 8001.093542 | G132: 396.9272588 | H132: 11.51774969 | I132: 228566.4907
B133: HP_BP2 | C133: 1 | D133: 78.86832179 | E133: 15.28 | F133: 1159.060932 | G133: 57.5 | H133: 1.66849364 | I133: 23764.30467
B134: HP2-3 | C134: 1 | D134: 106.0800075 | E134: 15.28 | F134: 9160.154475 | G134: 454.4272588 | H134: 13.18624333 | I134: 252330.7954
B135: to_TS-3 | C135: 1 | D135: 81.99995244 | E135: 15 | F135: 9160.152459 | G135: 454.4271588 | H135: 13.18624043 | I135: 195218.7675
B136: HP_CD2-1 | C136: 1 | D136: 81.99946743 | E136: 15.01 | F136: 0.002015758143 | G136: 0.0001 | H136: 2.90172807e-06 | I136: 0.04295930903
B137: HP_CD2 | C137: 1 | D137: 81.99995244 | E137: 15 | F137: 0.002015758143 | G137: 0.0001 | H137: 2.90172807e-06 | I137: 0.04295930903
B138: HP_CD1 | C138: 1 | D138: 298.5387807 | E138: 15 | F138: 0.002015758143 | G138: 0.0001 | H138: 2.90172807e-06 | I138: 0.1555030371
B139: to_TS-2 | C139: 1 | D139: 81.99999984 | E139: 15 | F139: 9160.154475 | G139: 454.4272588 | H139: 13.18624333 | I139: 195218.923
B140: bypass_TS | C140: 1 | D140: 81.99999984 | E140: 15 | F140: 0 | G140: 0 | H140: 0 | I140: 0
B141: bypass_TS-1 | C141: 1 | D141: 82.10679563 | E141: 12.8 | F141: 0 | G141: 0 | H141: 0 | I141: 0
B142: to_TS-4 | C142: 1 | D142: 81.99946743 | E142: 15.01 | F142: 9160.152459 | G142: 454.4271588 | H142: 13.18624043 | I142: 195218.7675
B143: bypass_HP_BP-2 | C143: 1 | D143: 110.680097 | E143: 1.265 | F143: 152.7156649 | G143: 7.576090682 | H143: 0.2198375499 | I143: 4356.920228
B144: HP2_TS | C144: 1 | D144: 110.0255915 | E144: 12.79 | F144: 9007.436794 | G144: 446.8510681 | H144: 12.96640288 | I144: 256978.7691
B145: bypass_HP_BP | C145: 1 | D145: 110.0255915 | E145: 12.79 | F145: 152.7156649 | G145: 7.576090682 | H145: 0.2198375499 | I145: 4356.920228
B146: LIN | C146: 0.05640901628 | D146: 78.45604933 | E146: 1.15 | F146: 1904.436647 | G146: 661.1565282 | H146: 2.951686726 | I146: -71411.33229
B147: GAN-a | C147: 0.9998953033 | D147: 78.0713598 | E147: 1.1 | F147: 1797.009249 | G147: 623.8613388 | H147: 2.785184982 | I147: 48505.31942
B148: GAN | C148: 1 | D148: 78.45604933 | E148: 1.15 | F148: 107.4273978 | G148: 37.29518936 | H148: 0.1665017446 | I148: 2911.132312
B149: N2-a | C149: 0.002144412006 | D149: 83.59404103 | E149: 1.99 | F149: 1904.436647 | G149: 661.1565282 | H149: 2.951686726 | I149: -71411.33229
B150: N2 | C150: 0 | D150: 83.64404887 | E150: 2 | F150: 1904.436647 | G150: 661.1565282 | H150: 2.951686726 | I150: -71611.33229
B151: to_TS-1 | C151: 1 | D151: 81.99999984 | E151: 15 | F151: 9160.152459 | G151: 454.4271588 | H151: 13.18624043 | I151: 195218.88
B152: HP_CD2-2 | C152: 1 | D152: 81.99999984 | E152: 15 | F152: 0.002015758143 | G152: 0.0001 | H152: 2.90172807e-06 | I152: 0.04295933379
B153: HP2_TS-4 | C153: 1 | D153: 81.90506798 | E153: 12.75 | F153: 9007.436794 | G153: 446.8510681 | H153: 12.96640288 | I153: 191487.97
B154: HP_CD2-3 | C154: 1 | D154: 82.10922503 | E154: 12.75 | F154: 0.002015758143 | G154: 0.0001 | H154: 2.90172807e-06 | I154: 0.04295933379
B155: HP2-10 | C155: 1 | D155: 81.90506803 | E155: 12.75 | F155: 9007.43881 | G155: 446.8511681 | H155: 12.96640578 | I155: 191488.013
B156: supply_loop | C156: 1 | D156: 6.360000001 | E156: 12.445 | F156: 1333.383697 | G156: 66.148 | H156: 1.919435084 | I156: 521.0045638
B157: supply_loop1-1 | C157: 1 | D157: 6.318253135 | E157: 6.07 | F157: 867.763723 | G157: 43.049 | H157: 1.249164917 | I157: 339.0688375
B158: CP1_outlet-2 | C158: 1 | D158: 6.318230446 | E158: 6.07 | F158: 867.7838806 | G158: 43.05 | H158: 1.249193934 | I158: 339.0678822
B159: supply_loop2 | C159: 1 | D159: 6.360000001 | E159: 12.445 | F159: 465.6199735 | G159: 23.099 | H159: 0.670270167 | I159: 181.9357262
B160: 2 | C160: 1 | D160: 6.318210672 | E160: 6.07 | F160: 465.6401311 | G160: 23.1 | H160: 0.6702991843 | I160: 181.9347336
B161: HP8-2 | C161: 1 | D161: 6.360000001 | E161: 12.445 | F161: 0.002015758143 | G161: 0.0001 | H161: 2.90172807e-06 | I161: 0.0007876346432
B162: supply_loop1 | C162: 1 | D162: 6.360000001 | E162: 12.445 | F162: 867.763723 | G162: 43.049 | H162: 1.249164917 | I162: 339.0688375
B163: supply_loop2-2 | C163: 1 | D163: 6.318253135 | E163: 6.07 | F163: 465.6199735 | G163: 23.099 | H163: 0.670270167 | I163: 181.9357262
B164: return-1 | C164: 0 | D164: 4.801562525 | E164: 5.83 | F164: 1.461546008e-14 | G164: 7.250602028e-16 | H164: 2.103927543e-17 | I164: -9.087003627e-16
B165: return-2 | C165: 0 | D165: 4.801562525 | E165: 5.83 | F165: 8.460234194e-14 | G165: 7.666495206e-15 | H165: 1.217869273e-16 | I165: -5.260058758e-15
B166: return-3 | C166: 1 | D166: 11.82746942 | E166: 5.83 | F166: 1333.383697 | G166: 66.148 | H166: 1.919435084 | I166: 3549.922392
B167: CD_return | C167: 1 | D167: 11.82746942 | E167: 5.83 | F167: 0.02015758143 | G167: 0.001 | H167: 2.90172807e-05 | I167: 0.05366636016
B168: baking_return | C168: 1 | D168: 11.82746942 | E168: 5.83 | F168: 1333.343381 | G168: 66.146 | H168: 1.919377049 | I168: 3549.815059
B169: LP5-1 | C169: 1 | D169: 15.96719347 | E169: 1.3 | F169: 8981.263353 | G169: 445.5526266 | H169: 12.92872563 | I169: 36462.48077
B170: baking_return-1 | C170: 1 | D170: 10.7192148 | E170: 1.3 | F170: 1333.343381 | G170: 66.146 | H170: 1.919377049 | I170: 3549.815059
B171: LP2-1 | C171: 1 | D171: 80.43930767 | E171: 1.265 | F171: 8981.28351 | G171: 445.5536266 | H171: 12.92875465 | I171: 186242.4738
B172: CD_return-2 | C172: 1 | D172: 10.70929986 | E172: 1.265 | F172: 0.02015758143 | G172: 0.001 | H172: 2.90172807e-05 | I172: 0.05366636016
B173: CL_inlet-2 | C173: 1 | D173: 37.43277187 | E173: 12.71 | F173: 0.02015758143 | G173: 0.001 | H173: 2.90172807e-05 | I173: 0.1942767616
B174: return_4 | C174: 1 | D174: 11.82746942 | E174: 5.83 | F174: 1333.363539 | G174: 66.147 | H174: 1.919406067 | I174: 3549.868725
B175: return_damper | C175: 1 | D175: 11.82746942 | E175: 5.83 | F175: 0.02015758143 | G175: 0.001 | H175: 2.90172807e-05 | I175: 0.05366636016
B176: HP7-5 | C176: 1 | D176: 10.82370362 | E176: 12.45 | F176: 1333.385712 | G176: 66.1481 | H176: 1.919437986 | I176: 2567.151584
B177: return_damper-1 | C177: 1 | D177: 10.78744018 | E177: 1.543 | F177: 0.02015758143 | G177: 0.001 | H177: 2.90172807e-05 | I177: 0.05366636016
B178: 1 | C178: 1 | D178: 6.360000001 | E178: 12.445 | F178: 1333.385712 | G178: 66.1481 | H178: 1.919437986 | I178: 521.0053514
B179: CP1_inlet-1 | C179: 0 | D179: 4.801562525 | E179: 5.83 | F179: 0.02015758143 | G179: 0.001 | H179: 2.90172807e-05 | I179: -0.001253275741
B180: CP2_Inlet-1 | C180: 0 | D180: 4.801562525 | E180: 5.83 | F180: 0.02015758143 | G180: 0.001 | H180: 2.90172807e-05 | I180: -0.001253275741
B181: HP1-3 | C181: 1 | D181: 306.0354216 | E181: 15.43 | F181: 8001.093542 | G181: 396.9272588 | H181: 11.51774969 | I181: 632736.7962
B182: LP2-2 | C182: 1 | D182: 80.94481662 | E182: 1.265 | F182: 9133.999175 | G182: 453.1297173 | H182: 13.1485922 | I182: 190599.394
B183: VLP2 | C183: 1 | D183: 80.43946466 | E183: 0.455 | F183: 0.02665567638 | G183: 0.001322364812 | H183: 3.837143095e-05 | I183: 0.5524846213
B184: HP1_TS | C184: 1 | D184: 142.0278588 | E184: 12.8 | F184: 9160.152459 | G184: 454.4271588 | H184: 13.18624043 | I184: 336968.88
B185: HP2 | C185: 1 | D185: 110.0255915 | E185: 15.345 | F185: 8001.093542 | G185: 396.9272588 | H185: 11.51774969 | I185: 228566.4907
B186: LP1 | C186: 1 | D186: 284.9817128 | E186: 1.13 | F186: 9133.999175 | G186: 453.1297173 | H186: 13.1485922 | I186: 670701.4855
B187: VLP1 | C187: 1 | D187: 284.9817128 | E187: 0.405 | F187: 0.02665567638 | G187: 0.001322364812 | H187: 3.837143095e-05 | I187: 1.956992018
B188: HP2_TS-1 | C188: 1 | D188: 110.0255915 | E188: 12.79 | F188: 9160.152459 | G188: 454.4271588 | H188: 13.18624043 | I188: 261335.6893
B189: LP1a | C189: 1 | D189: 139.6697568 | E189: 1.13 | F189: 9133.999175 | G189: 453.1297173 | H189: 13.1485922 | I189: 328790.9675
B190: VLP1a | C190: 1 | D190: 139.6697557 | E190: 0.405 | F190: 0.02665567638 | G190: 0.001322364812 | H190: 3.837143095e-05 | I190: 0.9592060808
B191: HP1a | C191: 1 | D191: 140.1697569 | E191: 15.43 | F191: 8001.093542 | G191: 396.9272588 | H191: 11.51774969 | I191: 290825.2804
B192: GHe1-2 | C192: 1 | D192: 4.701561896 | E192: 1.543 | F192: 0.02015758143 | G192: 0.001 | H192: 2.90172807e-05 | I192: 0.01465526481
B193: bypass_CC | C193: 1 | D193: 4.701561896 | E193: 1.543 | F193: 5114.69163 | G193: 253.7353823 | H193: 7.362710812 | I193: 3718.559219
B194: bypass_CC-1 | C194: 0.9751107799 | D194: 4.54219032 | E194: 1.35 | F194: 5114.69163 | G194: 253.7353823 | H194: 7.362710812 | I194: 3718.559219
B195: LP8-1 | C195: 0.9751105717 | D195: 4.542190312 | E195: 1.35 | F195: 5114.711788 | G195: 253.7363823 | H195: 7.362739829 | I195: 3718.572874
B196: 3 | C196: 1 | D196: 12.07978683 | E196: 5.9 | F196: 0.02015758143 | G196: 0.001 | H196: 2.90172807e-05 | I196: 0.05515066133
B197: 4 | C197: 1 | D197: 12.07978683 | E197: 5.9 | F197: 867.763723 | G197: 43.049 | H197: 1.249164917 | I197: 2374.18082
B198: 5 | C198: 1 | D198: 11.40472403 | E198: 5.9 | F198: 0.02015758143 | G198: 0.001 | H198: 2.90172807e-05 | I198: 0.05090010701
B199: 6 | C199: 1 | D199: 11.40472403 | E199: 5.9 | F199: 465.6199735 | G199: 23.099 | H199: 0.670270167 | I199: 1175.741572
B200: 7 | C200: 1 | D200: 11.38943231 | E200: 5.83 | F200: 465.6199735 | G200: 23.099 | H200: 0.670270167 | I200: 1175.741572
B201: 8 | C201: 1 | D201: 11.82746942 | E201: 5.83 | F201: 1333.383697 | G201: 66.148 | H201: 1.919435084 | I201: 3549.922392
B202: Gan-B | C202: 1 | D202: 78.0683292 | E202: 1.1 | F202: 843.7184655 | G202: 292.9107525 | H202: 1.307679412 | I202: 22778.91986
... 2 more rows

Sheet Dump_STS (hidden)
B1: Case: | C1: STS\(03)-JT60-STS-OFFCase_A.HSC
B2: Flowsheet: | C2: Case (Main)
B3: Current Flowsheet Environment: | C3: Case (Main)
B5: Name | C5: Vapour Fraction | D5: Temperature | E5: Pressure | F5: Molar Flow | G5: Mass Flow | H5: Liquid Volume Flow | I5: Heat Flow
A6: 1 | C6: <none> | D6: K | E6: bar | F6: Nm3/h(gas) | G6: g/s | H6: m3/h | I6: W*
B8: HP1-2 | C8: 1 | D8: 306.0354216 | E8: 15.43 | F8: 8387.569634 | G8: 416.1 | H8: 12.0740905 | I8: 663299.8239
B9: LP2 | C9: 1 | D9: 78.69019949 | E9: 1.205 | F9: 7548.428477 | G9: 374.4709405 | H9: 10.8661284 | I9: 153121.1117
B10: HP3-2 | C10: 1 | D10: 40.72176136 | E10: 13.51 | F10: 4622.99079 | G10: 229.3425333 | H10: 6.654896665 | I10: 48603.95236
B11: LP3 | C11: 1 | D11: 37.37975888 | E11: 1.22 | F11: 7548.428477 | G11: 374.4709405 | H11: 10.8661284 | I11: 72673.63225
B12: T1Inlet | C12: 1 | D12: 40.73161437 | E12: 12.3927742 | F12: 3220.392445 | G12: 159.760855 | H12: 4.635825576 | I12: 33857.73091
B13: MP4 | C13: 1 | D13: 32.07255722 | E13: 5.241793771 | F13: 3214.34517 | G13: 159.460855 | H13: 4.627120391 | I13: 26464.85544
B14: HP4 | C14: 1 | D14: 31.94364671 | E14: 13.49 | F14: 4622.99079 | G14: 229.3425333 | H14: 6.654896665 | I14: 37740.69245
B15: MP5 | C15: 1 | D15: 17.74782967 | E15: 5.191793771 | F15: 3214.34517 | G15: 159.460855 | H15: 4.627120391 | I15: 14146.81961
B16: LP5 | C16: 1 | D16: 16.23523147 | E16: 1.24 | F16: 7548.428477 | G16: 374.4709405 | H16: 10.8661284 | I16: 31196.00278
B17: HP6 | C17: 1 | D17: 12.11207531 | E17: 13.26 | F17: 4622.99079 | G17: 229.3425333 | H17: 6.654896665 | I17: 10894.5566
B18: LP6 | C18: 1 | D18: 12.01306899 | E18: 1.27 | F18: 4340.130581 | G18: 215.3100855 | H18: 6.247713189 | I18: 13075.1961
B19: HP7 | C19: 1 | D19: 8.622874004 | E19: 13.25 | F19: 4622.99079 | G19: 229.3425333 | H19: 6.654896665 | I19: 4939.937552
B20: LP7 | C20: 1 | D20: 7.077441142 | E20: 1.275 | F20: 4340.130581 | G20: 215.3100855 | H20: 6.247713189 | I20: 7164.266096
B21: HP7-4 | C21: 1 | D21: 7.170516404 | E21: 5.18 | F21: 4588.116158 | G21: 227.6124333 | H21: 6.604693868 | I21: 4530.116142
B22: LP8 | C22: 1 | D22: 4.484609652 | E22: 1.28 | F22: 4340.130581 | G22: 215.3100855 | H22: 6.247713189 | I22: 3289.328116
B23: JT2-3 | C23: 0.3531755234 | D23: 4.498339589 | E23: 1.3 | F23: 4319.968968 | G23: 214.3098855 | H23: 6.218690105 | I23: 645.9953776
B24: LHe 3,6K | C24: 0 | D24: 3.601771594 | E24: 0.53 | F24: 0 | G24: 0 | H24: 0 | I24: 0
B25: HP5 | C25: 1 | D25: 17.74782967 | E25: 13.47 | F25: 4622.99079 | G25: 229.3425333 | H25: 6.654896665 | I25: 19264.05871
B26: GHe 4,3K | C26: 1 | D26: 4.498926129 | E26: 1.3 | F26: 4340.130581 | G26: 215.3100855 | H26: 6.247713189 | I26: 3274.328047
B27: LHe 4,3K | C27: 0 | D27: 4.498926129 | E27: 1.3 | F27: 0 | G27: 0 | H27: 0 | I27: 0
B28: GHe 3,6K | C28: 1 | D28: 3.601771594 | E28: 0.53 | F28: 56.49258488 | G28: 2.80254777 | H28: 0.08132231532 | I28: 41.76164032
B29: HP8-3 | C29: 1 | D29: 5.634265943 | E29: 5.16 | F29: 4588.116158 | G29: 227.6124333 | H29: 6.604693868 | I29: 686.093315
B30: HP8-5 | C30: 1 | D30: 5.634265943 | E30: 5.16 | F30: 268.1471899 | G30: 13.30254777 | H30: 0.3860037627 | I30: 40.09793739
B31: VLP0 | C31: 0.2488906505 | D31: 3.59901009 | E31: 0.53 | F31: 56.49258488 | G31: 2.80254777 | H31: 0.08132231532 | I31: -6.656580723
B32: MP | C32: 1 | D32: 1140.131136 | E32: 16 | F32: 8896.35094 | G32: 441.340196 | H32: 12.80649235 | I32: 2614720.524
B33: MP-1 | C33: 1 | D33: 306 | E33: 16 | F33: 8896.35094 | G33: 441.340196 | H33: 12.80649235 | I33: 703534.9058
B34: TS_inlet | C34: 1 | D34: 79.35753631 | E34: 15 | F34: 8387.569634 | G34: 416.1 | H34: 12.0740905 | I34: 173006.5768
B35: TS_outlet | C35: 1 | D35: 99.40143932 | E35: 13.6 | F35: 8387.569634 | G35: 416.1 | H35: 12.0740905 | I35: 216371.5769
B36: To Comp LP | C36: 1 | D36: 292.0957978 | E36: 1.05 | F36: 8896.35094 | G36: 441.340196 | H36: 12.80649235 | I36: 669542.7931
B37: LIN-a | C37: 0 | D37: 78.45666573 | E37: 1.15 | F37: 619.7923444 | G37: 215.1711139 | H37: 0.9606162741 | I37: -25633.70342
B38: GAN-b | C38: 1 | D38: 78.08356637 | E38: 1.1 | F38: 658.8649045 | G38: 228.7357962 | H38: 1.021174842 | I38: 17792.12826
B39: HP2-5 | C39: 1 | D39: 79.3570106 | E39: 15.01 | F39: 8387.569634 | G39: 416.1 | H39: 12.0740905 | I39: 173006.4632
B40: to_CL-1 | C40: 1 | D40: 79.25704163 | E40: 13.51 | F40: 79.46207991 | G40: 3.942044346 | H40: 0.1143874073 | I40: 1635.504254
B41: CL_inlet | C41: 1 | D41: 51.99999596 | E41: 4 | F41: 275.1509865 | G41: 13.65 | H41: 0.3960858816 | I41: 3692.885445
B42: CL_outlet | C42: 1 | D42: 300 | E42: 1.05 | F42: 275.1509865 | G42: 13.65 | H42: 0.3960858816 | I42: 21268.19957
B43: GAN-c | C43: 1 | D43: 297.9500778 | E43: 1.05 | F43: 658.8649045 | G43: 228.7357962 | H43: 1.021174842 | I43: 70683.76441
B44: After Comp | C44: 1 | D44: 306.0310716 | E44: 15.5 | F44: 8896.35094 | G44: 441.340196 | H44: 12.80649235 | I44: 703534.9058
B45: LPbypass | C45: 1 | D45: 306.0310716 | E45: 15.5 | F45: 266.8905282 | G45: 13.24020588 | H45: 0.3841947706 | I45: 21106.04718
B46: Paliers | C46: 1 | D46: 306.0310716 | E46: 15.5 | F46: 241.8909772 | G46: 12 | H46: 0.3482073684 | I46: 19129.05044
B47: Recycle | C47: 1 | D47: 307 | E47: 1.05 | F47: 268.7005605 | G47: 13.33 | H47: 0.3868003518 | I47: 21254.11582
B48: To recycle | C48: 1 | D48: 277.4766962 | E48: 1.27 | F48: 268.7005605 | G48: 13.33 | H48: 0.3868003518 | I48: 19211.58334
B49: T1Outlet | C49: 1 | D49: 32.07255722 | E49: 5.241793771 | F49: 3220.392445 | G49: 159.760855 | H49: 4.635825576 | I49: 26514.64482
B50: T1Leak | C50: 1 | D50: 32.07255722 | E50: 5.241793771 | F50: 6.047274429 | G50: 0.3 | H50: 0.008705184211 | I50: 49.78937704
B51: T2Outlet-1 | C51: 1 | D51: 12.01080097 | E51: 1.27 | F51: 3214.34517 | G51: 159.460855 | H51: 4.627120391 | I51: 9681.672651
B52: T2Leak | C52: 1 | D52: 12.01080097 | E52: 1.27 | F52: 6.047274429 | G52: 0.3 | H52: 0.008705184211 | I52: 18.21451286
B53: T3Outlet | C53: 1 | D53: 7.170516404 | E53: 5.18 | F53: 4602.831193 | G53: 228.3424333 | H53: 6.625876482 | I53: 4544.645158
B54: T3Leak | C54: 1 | D54: 7.170516233 | E54: 5.18 | F54: 14.71503444 | G54: 0.73 | H54: 0.02118261491 | I54: 14.52901643
B55: LP8-1 | C55: 0.9980258557 | D55: 4.491981398 | E55: 1.29 | F55: 4340.130581 | G55: 215.3100855 | H55: 6.247713189 | I55: 3274.328116
B56: VLP9-1 | C56: 1 | D56: 4.128263536 | E56: 0.53 | F56: 56.49258488 | G56: 2.80254777 | H56: 0.08132231532 | I56: 51.76164032
B57: HP9 | C57: 0 | D57: 4.598926129 | E57: 5.07 | F57: 56.49258488 | G57: 2.80254777 | H57: 0.08132231532 | I57: -6.656580723
B58: VLP8 | C58: 1 | D58: 4.702227454 | E58: 0.51 | F58: 56.49258488 | G58: 2.80254777 | H58: 0.08132231532 | I58: 61.92572458
B59: HP2-9 | C59: 1 | D59: 79.2551487 | E59: 13.55 | F59: 4818.679697 | G59: 239.0504889 | H59: 6.936595139 | I59: 99179.01913
B60: HP2_TS-2 | C60: 1 | D60: 79.25467548 | E60: 13.56 | F60: 8118.534221 | G60: 402.7533883 | H60: 11.68680812 | I60: 167097.278
B61: HP8-4 | C61: 1 | D61: 5.634265943 | E61: 5.16 | F61: 4319.968968 | G61: 214.3098855 | H61: 6.218690105 | I61: 645.9953776
B62: VLP7 | C62: 1 | D62: 7.077429591 | E62: 0.495 | F62: 56.49258488 | G62: 2.80254777 | H62: 0.08132231532 | I62: 99.34384455
B63: VLP6 | C63: 1 | D63: 12.01306698 | E63: 0.49 | F63: 56.49258488 | G63: 2.80254777 | H63: 0.08132231532 | I63: 173.0328829
B64: VLP5 | C64: 1 | D64: 16.23522794 | E64: 0.475 | F64: 56.49258488 | G64: 2.80254777 | H64: 0.08132231532 | I64: 235.186393
B65: VLP4 | C65: 1 | D65: 31.84276937 | E65: 0.47 | F65: 56.49258488 | G65: 2.80254777 | H65: 0.08132231532 | I65: 463.2254236
B66: VLP3 | C66: 1 | D66: 37.37975901 | E66: 0.465 | F66: 56.49258488 | G66: 2.80254777 | H66: 0.08132231532 | I66: 543.9344898
B67: LP | C67: 1 | D67: 546.6362957 | E67: 1.12 | F67: 558.4664155 | G67: 27.70503086 | H67: 0.8039246573 | I67: 78648.64749
B68: CryoPumps_Inlet | C68: 0 | D68: 3.7 | E68: 5 | F68: 211.654605 | G68: 10.5 | H68: 0.3046814474 | I68: -58.35770587
B69: CryoPumps_Outlet | C69: 1 | D69: 119.9936988 | E69: 4.5 | F69: 0.002015758143 | G69: 0.0001 | H69: 2.90172807e-06 | I69: 0.06244421233
B70: LP9-2 | C70: 0 | D70: 4.702318406 | E70: 4.495 | F70: 0.002015758143 | G70: 0.0001 | H70: 2.90172807e-06 | I70: -0.0002137428518
B71: HP9-1 | C71: 0 | D71: 4.598926129 | E71: 5.07 | F71: 211.654605 | G71: 10.5 | H71: 0.3046814474 | I71: -24.93948483
B72: HP1 | C72: 1 | D72: 306.0310716 | E72: 15.5 | F72: 8387.569634 | G72: 416.1 | H72: 12.0740905 | I72: 663299.8239
B73: LP-4 | C73: 1 | D73: 290.8419167 | E73: 1.05 | F73: 8085.609064 | G73: 401.12 | H73: 11.63941164 | I73: 605914.4462
B74: To Comp VLP | C74: 1 | D74: 305.3944137 | E74: 0.35 | F74: 558.4664155 | G74: 27.70503086 | H74: 0.8039246573 | I74: 43937.25565
B75: to_TS | C75: 1 | D75: 79.35753631 | E75: 15 | F75: 8387.569634 | G75: 416.1 | H75: 12.0740905 | I75: 173006.5768
B76: to_CL-2 | C76: 1 | D76: 79.25467548 | E76: 13.56 | F76: 79.46207991 | G76: 3.942044346 | H76: 0.1143874073 | I76: 1635.504254
B77: HP2-7 | C77: 1 | D77: 79.42688799 | E77: 13.535 | F77: 0 | G77: 0 | H77: 0 | I77: 0
B78: HP2-8 | C78: 1 | D78: 79.25585854 | E78: 13.535 | F78: 3220.392445 | G78: 159.760855 | H78: 4.635825576 | I78: 66282.75461
B79: HP5-1 | C79: 1 | D79: 17.80503125 | E79: 13.29 | F79: 4622.99079 | G79: 229.3425333 | H79: 6.654896665 | I79: 19364.05871
B80: Piston | C80: 1 | D80: 4.498926129 | E80: 1.3 | F80: 0 | G80: 0 | H80: 0 | I80: 0
B81: To Buffer | C81: 1 | D81: 306.0310716 | E81: 15.5 | F81: -0.0001987665547 | G81: -9.860635086e-06 | H81: -2.861288162e-07 | I81: -0.01571871549
B82: VLP8-1 | C82: 1 | D82: 5.62695448 | E82: 0.5 | F82: 56.49258488 | G82: 2.80254777 | H82: 0.08132231532 | I82: 76.92572458
B83: HP2-4 | C83: 1 | D83: 79.25467548 | E83: 15.23 | F83: 8387.569634 | G83: 416.1 | H83: 12.0740905 | I83: 172806.4632
B84: CP1_Inlet | C84: 0 | D84: 4.598926129 | E84: 3.94 | F84: 4031.516286 | G84: 200 | H84: 5.803456141 | I84: -554.1575849
B85: CP1_Outlet | C85: 0 | D85: 4.693550077 | E85: 4.11 | F85: 4031.516286 | G85: 200 | H85: 5.803456141 | I85: -458.6868175
B86: TF_Inlet | C86: 0 | D86: 4.598926129 | E86: 4.1 | F86: 4041.595077 | G86: 200.5 | H86: 5.817964781 | I86: -545.3120817
B87: TF_Outlet | C87: 1 | D87: 5.633251021 | E87: 3.95 | F87: 4041.595077 | G87: 200.5 | H87: 5.817964781 | I87: 788.6879183
B88: HP9-0 | C88: 0 | D88: 4.598926129 | E88: 5.07 | F88: 268.1471899 | G88: 13.30254777 | H88: 0.3860037627 | I88: -31.59606555
B89: CP2_Inlet | C89: 0 | D89: 4.598926129 | E89: 3.94 | F89: 2015.758143 | G89: 100 | H89: 2.90172807 | I89: -277.0787924
B90: CP2_outlet | C90: 0 | D90: 4.788326253 | E90: 4.11 | F90: 2015.758143 | G90: 100 | H90: 2.90172807 | I90: -185.0176954
B91: PF_Inlet | C91: 0 | D91: 4.598926129 | E91: 4.1 | F91: 2025.836934 | G91: 100.5 | H91: 2.916236711 | I91: -273.3359811
B92: PF_Outlet | C92: 1 | D92: 5.596748942 | E92: 3.95 | F92: 2025.836934 | G92: 100.5 | H92: 2.916236711 | I92: 356.6640189
B93: HP8-6 | C93: 0 | D93: 4.598926129 | E93: 5.09 | F93: 268.1471899 | G93: 13.30254777 | H93: 0.3860037627 | I93: -31.49463924
B94: MP6 | C94: 1 | D94: 12.01080097 | E94: 1.27 | F94: 3208.297896 | G94: 159.160855 | H94: 4.618415207 | I94: 9663.458138
B95: LP9-3 | C95: 0.08035097485 | D95: 4.496712787 | E95: 1.3 | F95: 0.002015758143 | G95: 0.0001 | H95: 2.90172807e-06 | I95: -0.0002137428518
B96: HP3-3 | C96: 1 | D96: 40.72176136 | E96: 13.515 | F96: 3220.392445 | G96: 159.760855 | H96: 4.635825576 | I96: 33857.73091
B97: GHe1-3 | C97: 0.9980157523 | D97: 4.481689124 | E97: 1.28 | F97: 0.02015758143 | G97: 0.001 | H97: 2.90172807e-05 | I97: 0.01520749964
B98: T3Inlet | C98: 1 | D98: 7.912441646 | E98: 7.369014396 | F98: 4602.831193 | G98: 228.3424333 | H98: 6.625876482 | I98: 4918.395837
B99: LP-1 | C99: 1 | D99: 307 | E99: 1.07 | F99: 558.4664155 | G99: 27.70503086 | H99: 0.8039246573 | I99: 44174.6674
B100: VLP1-1 | C100: 1 | D100: 290.7304022 | E100: 0.35 | F100: 56.49258488 | G100: 2.80254777 | H100: 0.08132231532 | I100: 4231.149077
B101: VLPbypass | C101: 1 | D101: 307 | E101: 1.07 | F101: 501.9738307 | G101: 24.90248309 | H101: 0.7226023419 | I101: 39706.10657
B102: VLP-2 | C102: 1 | D102: 307.044715 | E102: 0.35 | F102: 501.9738307 | G102: 24.90248309 | H102: 0.7226023419 | I102: 39706.10657
B103: Conso.liq | C103: 0 | D103: 4.497705426 | E103: 1.3 | F103: 0 | G103: 0 | H103: 0 | I103: 0
B104: HP2-6 | C104: 1 | D104: 79.3570106 | E104: 15.01 | F104: 0 | G104: 0 | H104: 0 | I104: 0
B105: From_Buffer | C105: 1 | D105: 307 | E105: 1.05 | F105: 0 | G105: 0 | H105: 0 | I105: 0
B106: LPbypass-2 | C106: 1 | D106: 306.0310716 | E106: 15.5 | F106: 266.8903294 | G106: 13.24019602 | H106: 0.3841944845 | I106: 21106.03146
B107: LPbypass-3 | C107: 1 | D107: 306.9287887 | E107: 1.05 | F107: 266.8903294 | G107: 13.24019602 | H107: 0.3841944845 | I107: 21106.03146
B108: GHe | C108: 1 | D108: 4.49892574 | E108: 1.3 | F108: 4340.130581 | G108: 215.3100855 | H108: 6.247713189 | I108: 3274.328047
B109: LP6-2 | C109: 1 | D109: 12.01210501 | E109: 1.27 | F109: 7548.428477 | G109: 374.4709405 | H109: 10.8661284 | I109: 22738.65424
B110: LP4 | C110: 1 | D110: 31.84276884 | E110: 1.23 | F110: 7548.428477 | G110: 374.4709405 | H110: 10.8661284 | I110: 61861.08141
B111: HP3-4 | C111: 1 | D111: 40.72176136 | E111: 13.51 | F111: 195.6889066 | G111: 9.707955654 | H111: 0.2816984743 | I111: 2057.381191
B112: HP2_TS-3 | C112: 1 | D112: 79.25467548 | E112: 13.56 | F112: 8039.072141 | G112: 398.8113439 | H112: 11.57242071 | I112: 165461.7737
B113: HP3-1 | C113: 1 | D113: 40.72176136 | E113: 13.51 | F113: 4818.679697 | G113: 239.0504889 | H113: 6.936595139 | I113: 50661.33355
B114: bypass | C114: 1 | D114: 79.25585854 | E114: 13.535 | F114: 3220.392445 | G114: 159.760855 | H114: 4.635825576 | I114: 66282.75461
B115: bypass-2 | C115: 1 | D115: 79.2551487 | E115: 13.55 | F115: 3220.392445 | G115: 159.760855 | H115: 4.635825576 | I115: 66282.75461
B116: T2Outlet | C116: 1 | D116: 12.0156213 | E116: 1.29 | F116: 3214.34517 | G116: 159.460855 | H116: 4.627120391 | I116: 9681.672651
B117: HP8 | C117: 1 | D117: 5.625 | E117: 5.17 | F117: 4588.116158 | G117: 227.6124333 | H117: 6.604693868 | I117: 671.093315
B118: LP-3 | C118: 1 | D118: 290.8406699 | E118: 1.07 | F118: 8085.609064 | G118: 401.12 | H118: 11.63941164 | I118: 605914.4462
B119: HP8-1 | C119: 1 | D119: 5.625 | E119: 8.245 | F119: 20.15959719 | G119: 1.0001 | H119: 0.02902018243 | I119: 3.208442346
B120: HP7-2 | C120: 1 | D120: 8.084118799 | E120: 8.25 | F120: 20.15959719 | G120: 1.0001 | H120: 0.02902018243 | I120: 21.54171525
B121: HP7-3 | C121: 1 | D121: 8.622874004 | E121: 13.25 | F121: 4602.831193 | G121: 228.3424333 | H121: 6.625876482 | I121: 4918.395837
B122: to_damper | C122: 0.4699204679 | D122: 4.497665885 | E122: 1.3 | F122: 0.002015758143 | G122: 0.0001 | H122: 2.90172807e-06 | I122: 0.0005207921554
B123: 22 | C123: <empty> | D123: <empty> | E123: <empty> | F123: <empty> | G123: <empty> | H123: <empty> | I123: <empty>
B124: WaterInlet | C124: <empty> | D124: 303 | E124: <empty> | F124: <empty> | G124: <empty> | H124: <empty> | I124: <empty>
B125: LP-2 | C125: 1 | D125: 307 | E125: 1.07 | F125: 56.49258488 | G125: 2.80254777 | H125: 0.08132231532 | I125: 4468.560827
B126: HP_BP1-b | C126: 1 | D126: 306.0354216 | E126: 15.43 | F126: 901.4470416 | G126: 44.72 | H126: 1.297652793 | I126: 71287.59463
B127: HP_BP1-a | C127: 1 | D127: 306.0416358 | E127: 15.33 | F127: 901.4470416 | G127: 44.72 | H127: 1.297652793 | I127: 71287.59463
B128: HP_BP1 | C128: 1 | D128: 306.0416358 | E128: 15.33 | F128: 901.4470416 | G128: 44.72 | H128: 1.297652793 | I128: 71287.59463
B129: HP2_MEF | C129: 1 | D129: 89.76395502 | E129: 15.345 | F129: 0 | G129: 0 | H129: 0 | I129: 0
B130: HP2_MEF-2 | C130: 1 | D130: 89.76472581 | E130: 15.33 | F130: 0 | G130: 0 | H130: 0 | I130: 0
B131: HP2-1 | C131: 1 | D131: 89.76395502 | E131: 15.345 | F131: 7486.122592 | G131: 371.38 | H131: 10.77643771 | I131: 174633.109
B132: HP2-2 | C132: 1 | D132: 89.76729517 | E132: 15.28 | F132: 7486.122592 | G132: 371.38 | H132: 10.77643771 | I132: 174633.109
B133: HP_BP2 | C133: 1 | D133: 78.58494477 | E133: 15.28 | F133: 901.4470416 | G133: 44.72 | H133: 1.297652793 | I133: 18416.15316
B134: HP2-3 | C134: 1 | D134: 88.56439655 | E134: 15.28 | F134: 8387.569634 | G134: 416.1 | H134: 12.0740905 | I134: 193049.2622
B135: to_TS-3 | C135: 1 | D135: 79.35748408 | E135: 15 | F135: 8387.567618 | G135: 416.0999 | H135: 12.0740876 | I135: 173006.4216
B136: HP_CD2-1 | C136: 1 | D136: 79.3570106 | E136: 15.01 | F136: 0.002015758143 | G136: 0.0001 | H136: 2.90172807e-06 | I136: 0.04157809739
B137: HP_CD2 | C137: 1 | D137: 79.35748408 | E137: 15 | F137: 0.002015758143 | G137: 0.0001 | H137: 2.90172807e-06 | I137: 0.04157809739
B138: HP_CD1 | C138: 1 | D138: 297.9500778 | E138: 15 | F138: 0.002015758144 | G138: 0.0001000000001 | H138: 2.901728072e-06 | I138: 0.1551974136
B139: to_TS-2 | C139: 1 | D139: 79.35753631 | E139: 15 | F139: 8387.569634 | G139: 416.1 | H139: 12.0740905 | I139: 173006.5768
B140: bypass_TS | C140: 1 | D140: 79.35753631 | E140: 15 | F140: 0 | G140: 0 | H140: 0 | I140: 0
B141: bypass_TS-1 | C141: 1 | D141: 79.42385925 | E141: 13.6 | F141: 0 | G141: 0 | H141: 0 | I141: 0
B142: to_TS-4 | C142: 1 | D142: 79.3570106 | E142: 15.01 | F142: 8387.567618 | G142: 416.0999 | H142: 12.0740876 | I142: 173006.4216
B143: bypass_HP_BP-2 | C143: 1 | D143: 90.40454659 | E143: 1.205 | F143: 269.0354126 | G143: 13.34661172 | H143: 0.3872823788 | I143: 6269.662027
B144: HP2_TS | C144: 1 | D144: 89.76395502 | E144: 13.59 | F144: 8118.534221 | G144: 402.7533883 | H144: 11.68680812 | I144: 189196.1553
B145: bypass_HP_BP | C145: 1 | D145: 89.76395502 | E145: 13.59 | F145: 269.0354126 | G145: 13.34661172 | H145: 0.3872823788 | I145: 6269.662027
B146: LIN | C146: 0.05930284006 | D146: 78.45666573 | E146: 1.15 | F146: 658.8649045 | G146: 228.7357962 | H146: 1.021174842 | I146: -24574.88221
B147: GAN-a | C147: 1 | D147: 78.0683292 | E147: 1.1 | F147: 619.7923444 | G147: 215.1711139 | H147: 0.9606162741 | I147: 16733.30704
B148: GAN | C148: 1 | D148: 78.45666573 | E148: 1.15 | F148: 39.07256005 | G148: 13.56468234 | H148: 0.06055856835 | I148: 1058.821213
B149: N2-a | C149: 0.005179708389 | D149: 83.59170709 | E149: 1.99 | F149: 658.8649045 | G149: 228.7357962 | H149: 1.021174842 | I149: -24574.88221
B150: N2 | C150: 0 | D150: 83.64404887 | E150: 2 | F150: 658.8649045 | G150: 228.7357962 | H150: 1.021174842 | I150: -24774.88221
B151: to_TS-1 | C151: 1 | D151: 79.35753631 | E151: 15 | F151: 8387.569634 | G151: 416.1 | H151: 12.0740905 | I151: 173006.5768
B152: HP_CD2-2 | C152: 1 | D152: 79.35753631 | E152: 15 | F152: 0 | G152: 0 | H152: 0 | I152: 0
B153: HP2_TS-4 | C153: 1 | D153: 79.2551487 | E153: 13.55 | F153: 8039.072141 | G153: 398.8113439 | H153: 11.57242071 | I153: 165461.7737
B154: HP_CD2-3 | C154: 1 | D154: 79.42622924 | E154: 13.55 | F154: 0 | G154: 0 | H154: 0 | I154: 0
B155: HP2-10 | C155: 1 | D155: 79.2551487 | E155: 13.55 | F155: 8039.072141 | G155: 398.8113439 | H155: 11.57242071 | I155: 165461.7737
B156: supply_loop | C156: 1 | D156: 6.015282656 | E156: 8.235 | F156: 20.15758143 | G156: 1 | H156: 0.0290172807 | I156: 5.207921554
B157: supply_loop1-1 | C157: 1 | D157: 5.770577743 | E157: 4.11 | F157: 10.07879072 | G157: 0.5 | H157: 0.01450864035 | I157: 2.603960777
B158: CP1_outlet-2 | C158: 0 | D158: 4.697639157 | E158: 4.11 | F158: 4041.595077 | G158: 200.5 | H158: 5.817964781 | I158: -456.0828568
B159: supply_loop2 | C159: 1 | D159: 6.015282656 | E159: 8.235 | F159: 10.07879072 | G159: 0.5 | H159: 0.01450864035 | I159: 2.603960777
B160: 2 | C160: 0 | D160: 4.795647139 | E160: 4.11 | F160: 2025.836934 | G160: 100.5 | H160: 2.916236711 | I160: -182.4137346
B161: HP8-2 | C161: 1 | D161: 6.015282656 | E161: 8.235 | F161: 0.002015758143 | G161: 0.0001 | H161: 2.90172807e-06 | I161: 0.0005207921554
B162: supply_loop1 | C162: 1 | D162: 6.015282656 | E162: 8.235 | F162: 10.07879072 | G162: 0.5 | H162: 0.01450864035 | I162: 2.603960777
B163: supply_loop2-2 | C163: 1 | D163: 5.770577858 | E163: 4.11 | F163: 10.07879072 | G163: 0.5 | H163: 0.01450864035 | I163: 2.603960777
B164: return-1 | C164: 0 | D164: 4.598926129 | E164: 3.94 | F164: 10.07879072 | G164: 0.5 | H164: 0.01450864035 | I164: -1.385393962
B165: return-2 | C165: 0 | D165: 4.598926129 | E165: 3.94 | F165: 10.07879072 | G165: 0.5 | H165: 0.01450864035 | I165: -1.385393962
B166: return-3 | C166: 0 | D166: 4.598930481 | E166: 3.94 | F166: 20.15758143 | G166: 1 | H166: 0.0290172807 | I166: -2.770787924
B167: CD_return | C167: 1 | D167: 120.0264222 | E167: 3.94 | F167: 211.6525893 | G167: 10.4999 | H167: 0.3046785457 | I167: 6556.57985
B168: baking_return | C168: 1 | D168: 120.0264222 | E168: 3.94 | F168: 0 | G168: 0 | H168: 0 | I168: 0
B169: LP5-1 | C169: 1 | D169: 16.23523147 | E169: 1.24 | F169: 7548.428477 | G169: 374.4709405 | H169: 10.8661284 | I169: 31196.00278
B170: baking_return-1 | C170: 1 | D170: 120.1843767 | E170: 1.24 | F170: 0 | G170: 0 | H170: 0 | I170: 0
B171: LP2-1 | C171: 1 | D171: 79.82171135 | E171: 1.205 | F171: 7760.081066 | G171: 384.9708405 | H171: 11.17080694 | I171: 159677.6915
B172: CD_return-2 | C172: 1 | D172: 120.1864262 | E172: 1.205 | F172: 211.6525893 | G172: 10.4999 | H172: 0.3046785457 | I172: 6556.57985
B173: CL_inlet-2 | C173: 1 | D173: 51.75376376 | E173: 13.51 | F173: 275.1509865 | G173: 13.65 | H173: 0.3960858816 | I173: 3692.885445
B174: return_4 | C174: 1 | D174: 120.0264222 | E174: 3.94 | F174: 211.6525893 | G174: 10.4999 | H174: 0.3046785457 | I174: 6556.57985
B175: return_damper | C175: 0 | D175: 4.598930481 | E175: 3.94 | F175: 20.15758143 | G175: 1 | H175: 0.0290172807 | I175: -2.770787924
B176: HP7-5 | C176: 1 | D176: 8.622874004 | E176: 13.25 | F176: 20.15959719 | G176: 1.0001 | H176: 0.02902018243 | I176: 21.54171525
B177: return_damper-1 | C177: 0.04635451902 | D177: 4.497710485 | E177: 1.3 | F177: 20.15758143 | G177: 1 | H177: 0.0290172807 | I177: -2.770787924
B178: 1 | C178: 1 | D178: 6.015282656 | E178: 8.235 | F178: 20.15959719 | G178: 1.0001 | H178: 0.02902018243 | I178: 5.208442346
B179: CP1_inlet-1 | C179: 0 | D179: 4.598926129 | E179: 3.94 | F179: 4041.595077 | G179: 200.5 | H179: 5.817964781 | I179: -555.5429788
B180: CP2_Inlet-1 | C180: 0 | D180: 4.598926129 | E180: 3.94 | F180: 2025.836934 | G180: 100.5 | H180: 2.916236711 | I180: -278.4641864
B181: HP1-3 | C181: 1 | D181: 306.0354216 | E181: 15.43 | F181: 7486.122592 | G181: 371.38 | H181: 10.77643771 | I181: 592012.2293
B182: LP2-2 | C182: 1 | D182: 80.17628577 | E182: 1.205 | F182: 8029.116479 | G182: 398.3174522 | H182: 11.55808932 | I182: 165947.3535
B183: VLP2 | C183: 1 | D183: 78.69019932 | E183: 0.455 | F183: 56.49258488 | G183: 2.80254777 | H183: 0.08132231532 | I183: 1145.444226
B184: TS_outlet-2 | C184: 1 | D184: 99.40143932 | E184: 13.6 | F184: 8387.569634 | G184: 416.1 | H184: 12.0740905 | I184: 216371.5769
B185: HP2 | C185: 1 | D185: 89.76395502 | E185: 15.345 | F185: 7486.122592 | G185: 371.38 | H185: 10.77643771 | I185: 174633.109
B186: LP1 | C186: 1 | D186: 290.7269735 | E186: 1.07 | F186: 8029.116479 | G186: 398.3174522 | H186: 11.55808932 | I186: 601445.8854
B187: VLP1 | C187: 1 | D187: 290.7269734 | E187: 0.405 | F187: 56.49258488 | G187: 2.80254777 | H187: 0.08132231532 | I187: 4231.149077
B188: HP2_TS-1 | C188: 1 | D188: 89.76395502 | E188: 13.59 | F188: 8387.569634 | G188: 416.1 | H188: 12.0740905 | I188: 195465.8174
B189: LP1a | C189: 1 | D189: 98.78946928 | E189: 1.07 | F189: 8029.116479 | G189: 398.3174522 | H189: 11.55808932 | I189: 204445.6771
B190: VLP1a | C190: 1 | D190: 98.78944595 | E190: 0.405 | F190: 56.49258488 | G190: 2.80254777 | H190: 0.08132231532 | I190: 1437.94479
B191: HP1a | C191: 1 | D191: 98.83792752 | E191: 15.43 | F191: 7486.122592 | G191: 371.38 | H191: 10.77643771 | I191: 192218.2539
B192: return-4 | C192: 1 | D192: 119.9936988 | E192: 4.5 | F192: 211.6525893 | G192: 10.4999 | H192: 0.3046785457 | I192: 6556.57985
B193: CryoPumps_Outlet-1 | C193: 1 | D193: 119.9936988 | E193: 4.5 | F193: 211.654605 | G193: 10.5 | H193: 0.3046814474 | I193: 6556.642294
B194: 3 | C194: 0 | D194: 4.598930481 | E194: 3.94 | F194: 0 | G194: 0 | H194: 0 | I194: 0
B195: GHe1-2 | C195: 1 | D195: 4.49892574 | E195: 1.3 | F195: 0.02015758143 | G195: 0.001 | H195: 2.90172807e-05 | I195: 0.01520749964
B196: bypass_CC | C196: 1 | D196: 4.49892574 | E196: 1.3 | F196: 4340.110424 | G196: 215.3090855 | H196: 6.247684172 | I196: 3274.31284
B197: ColdComp_Outlet | C197: 1 | D197: 4.494831173 | E197: 1.29 | F197: 0.02015758143 | G197: 0.001 | H197: 2.90172807e-05 | I197: 0.01527626396
B198: bypass_CC-1 | C198: 0.9980258554 | D198: 4.491981369 | E198: 1.29 | F198: 4340.110424 | G198: 215.3090855 | H198: 6.247684172 | I198: 3274.31284
